Body Name,Body,Date,Department,Beneficiary,Summary of Purpose (SeRCOP),Amount,Merchant Code,Transaction Number
Sandwell Metropolitan Borough Council,https://www.sandwell.gov.uk/performance-spending/government-procurement-cards,04-Jul-2023,FINANCE (Inc SIU),AMZNMKTPLACE AMAZON.CO,Assistant Chief Executive (Excl SIU),25.49,MISCELLANEOUS AND SPECIALTY RETAIL STORES,2023-24Q2_PC0001
Sandwell Metropolitan Borough Council,https://www.sandwell.gov.uk/performance-spending/government-procurement-cards,04-Jul-2023,FINANCE (Inc SIU),GLOBAL-E.JABRA,Assistant Chief Executive (Excl SIU),159.99,MISCELLANEOUS GENERAL MERCHANDISE,2023-24Q2_PC0002
Sandwell Metropolitan Borough Council,https://www.sandwell.gov.uk/performance-spending/government-procurement-cards,04-Jul-2023,Law & Governance,SAINSBURYS S/MKTS,Assistant Chief Executive (Excl SIU),10.8,"GROCERY STORES, SUPERMARKETS",2023-24Q2_PC0003
Sandwell Metropolitan Borough Council,https://www.sandwell.gov.uk/performance-spending/government-procurement-cards,04-Jul-2023,Assistant Chief Executive,WEST BROMWICH LEISURE,Assistant Chief Executive (Excl SIU),136,RECREATION SERVICES (NOT ELSEWHERE CLASSIFIED),2023-24Q2_PC0004
Sandwell Metropolitan Borough Council,https://www.sandwell.gov.uk/performance-spending/government-procurement-cards,04-Jul-2023,Childrens Services,121 CARZ LIMITED,Childrens Services,50,LIMOUSINES AND TAXICABS,2023-24Q2_PC0005
Sandwell Metropolitan Borough Council,https://www.sandwell.gov.uk/performance-spending/government-procurement-cards,04-Jul-2023,Childrens Services,APEX STICKERS,Childrens Services,158.32,"COMMERCIAL ART, GRAPHICS, PHOTOGRAPHY",2023-24Q2_PC0006
Sandwell Metropolitan Borough Council,https://www.sandwell.gov.uk/performance-spending/government-procurement-cards,04-Jul-2023,Childrens Services,ASDA GROCERIES ONLINE,Childrens Services,-3.42,"GROCERY STORES, SUPERMARKETS",2023-24Q2_PC0007
Sandwell Metropolitan Borough Council,https://www.sandwell.gov.uk/performance-spending/government-procurement-cards,04-Jul-2023,Childrens Services,ASDA GROCERIES ONLINE,Childrens Services,113.57,"GROCERY STORES, SUPERMARKETS",2023-24Q2_PC0008
Sandwell Metropolitan Borough Council,https://www.sandwell.gov.uk/performance-spending/government-procurement-cards,04-Jul-2023,Childrens Services,ASDA STORE,Childrens Services,10.7,"GROCERY STORES, SUPERMARKETS",2023-24Q2_PC0009
Sandwell Metropolitan Borough Council,https://www.sandwell.gov.uk/performance-spending/government-procurement-cards,04-Jul-2023,Childrens Services,ASDA STORES LTD 5865,Childrens Services,5.3,"GROCERY STORES, SUPERMARKETS",2023-24Q2_PC0010
Sandwell Metropolitan Borough Council,https://www.sandwell.gov.uk/performance-spending/government-procurement-cards,04-Jul-2023,Childrens Services,PAYPAL  MENZ PRINT,Childrens Services,115,MISCELLANEOUS PUBLISHING AND PRINTING,2023-24Q2_PC0011
Sandwell Metropolitan Borough Council,https://www.sandwell.gov.uk/performance-spending/government-procurement-cards,04-Jul-2023,Childrens Services,POST OFFICE COUNTER,Childrens Services,10.47,POSTAL SERVICES-GOVERNMENT ONLY,2023-24Q2_PC0012
Sandwell Metropolitan Borough Council,https://www.sandwell.gov.uk/performance-spending/government-procurement-cards,04-Jul-2023,Childrens Services,TESCO STORES 2770,Childrens Services,78.82,"GROCERY STORES, SUPERMARKETS",2023-24Q2_PC0013
Sandwell Metropolitan Borough Council,https://www.sandwell.gov.uk/performance-spending/government-procurement-cards,04-Jul-2023,Childrens Services,TRAVIS PERKINS,Childrens Services,16.26,"BUILDING MATERIALS, LUMBER STORES",2023-24Q2_PC0014
Sandwell Metropolitan Borough Council,https://www.sandwell.gov.uk/performance-spending/government-procurement-cards,04-Jul-2023,Childrens Services,WWW.E-BADGES.NET,Childrens Services,123.6,MISCELLANEOUS GENERAL MERCHANDISE,2023-24Q2_PC0015
Sandwell Metropolitan Borough Council,https://www.sandwell.gov.uk/performance-spending/government-procurement-cards,04-Jul-2023,Housing & Assets Total,WWW.VICARAGELODGE.COM,Corporate Management,560,"LODGING-HOTELS,MOTELS,RESORTS-NOT CLASSIFIED",2023-24Q2_PC0016
Sandwell Metropolitan Borough Council,https://www.sandwell.gov.uk/performance-spending/government-procurement-cards,04-Jul-2023,Housing & Assets Total,WWW.VICARAGELODGE.COM,Corporate Management,560,"LODGING-HOTELS,MOTELS,RESORTS-NOT CLASSIFIED",2023-24Q2_PC0017
Sandwell Metropolitan Borough Council,https://www.sandwell.gov.uk/performance-spending/government-procurement-cards,04-Jul-2023,Housing & Assets Total,WWW.VICARAGELODGE.COM,Corporate Management,560,"LODGING-HOTELS,MOTELS,RESORTS-NOT CLASSIFIED",2023-24Q2_PC0018
Sandwell Metropolitan Borough Council,https://www.sandwell.gov.uk/performance-spending/government-procurement-cards,04-Jul-2023,Housing & Assets Total,WWW.VICARAGELODGE.COM,Corporate Management,160,"LODGING-HOTELS,MOTELS,RESORTS-NOT CLASSIFIED",2023-24Q2_PC0019
Sandwell Metropolitan Borough Council,https://www.sandwell.gov.uk/performance-spending/government-procurement-cards,04-Jul-2023,Housing & Assets Total,WWW.VICARAGELODGE.COM,Corporate Management,560,"LODGING-HOTELS,MOTELS,RESORTS-NOT CLASSIFIED",2023-24Q2_PC0020
Sandwell Metropolitan Borough Council,https://www.sandwell.gov.uk/performance-spending/government-procurement-cards,04-Jul-2023,Housing & Assets Total,WWW.VICARAGELODGE.COM,Corporate Management,80,"LODGING-HOTELS,MOTELS,RESORTS-NOT CLASSIFIED",2023-24Q2_PC0021
Sandwell Metropolitan Borough Council,https://www.sandwell.gov.uk/performance-spending/government-procurement-cards,04-Jul-2023,Housing & Assets Total,WWW.VICARAGELODGE.COM,Corporate Management,490,"LODGING-HOTELS,MOTELS,RESORTS-NOT CLASSIFIED",2023-24Q2_PC0022
Sandwell Metropolitan Borough Council,https://www.sandwell.gov.uk/performance-spending/government-procurement-cards,04-Jul-2023,Housing & Assets Total,WWW.VICARAGELODGE.COM,Corporate Management,560,"LODGING-HOTELS,MOTELS,RESORTS-NOT CLASSIFIED",2023-24Q2_PC0023
Sandwell Metropolitan Borough Council,https://www.sandwell.gov.uk/performance-spending/government-procurement-cards,04-Jul-2023,Housing & Assets Total,WWW.VICARAGELODGE.COM,Corporate Management,700,"LODGING-HOTELS,MOTELS,RESORTS-NOT CLASSIFIED",2023-24Q2_PC0024
Sandwell Metropolitan Borough Council,https://www.sandwell.gov.uk/performance-spending/government-procurement-cards,04-Jul-2023,Housing & Assets Total,WWW.VICARAGELODGE.COM,Corporate Management,560,"LODGING-HOTELS,MOTELS,RESORTS-NOT CLASSIFIED",2023-24Q2_PC0025
Sandwell Metropolitan Borough Council,https://www.sandwell.gov.uk/performance-spending/government-procurement-cards,04-Jul-2023,Individual School Budgets With Inclusion,ASDA GROCERIES ONLINE,Individual School Budgets With Inclusion,29.03,"GROCERY STORES, SUPERMARKETS",2023-24Q2_PC0026
Sandwell Metropolitan Borough Council,https://www.sandwell.gov.uk/performance-spending/government-procurement-cards,04-Jul-2023,Assistant Chief Executive,AMZNMktplace,Neighbourhoods,42.99,MISCELLANEOUS AND SPECIALTY RETAIL STORES,2023-24Q2_PC0027
Sandwell Metropolitan Borough Council,https://www.sandwell.gov.uk/performance-spending/government-procurement-cards,04-Jul-2023,Total Borough Economy,Amazon.co.uk F56CA4VP5,Total Adult Social Care,25.16,DIRECT MARKETING-OTHER DIRECT MARKETERS/NOT ELSEW.,2023-24Q2_PC0028
Sandwell Metropolitan Borough Council,https://www.sandwell.gov.uk/performance-spending/government-procurement-cards,04-Jul-2023,Total Borough Economy,AMZNMktplace,Total Adult Social Care,28.98,MISCELLANEOUS AND SPECIALTY RETAIL STORES,2023-24Q2_PC0029
Sandwell Metropolitan Borough Council,https://www.sandwell.gov.uk/performance-spending/government-procurement-cards,04-Jul-2023,Total Borough Economy,FACEBK VC5H8RBKY2,Total Adult Social Care,17,ADVERTISING SERVICES,2023-24Q2_PC0030
Sandwell Metropolitan Borough Council,https://www.sandwell.gov.uk/performance-spending/government-procurement-cards,04-Jul-2023,Total ASCHWB,LIDL GB  BLACKHEATH,Total Adult Social Care,76.87,"GROCERY STORES, SUPERMARKETS",2023-24Q2_PC0031
Sandwell Metropolitan Borough Council,https://www.sandwell.gov.uk/performance-spending/government-procurement-cards,04-Jul-2023,Total ASCHWB,MUNIR BROTHERS SUPERMA,Total Adult Social Care,27.98,"GROCERY STORES, SUPERMARKETS",2023-24Q2_PC0032
Sandwell Metropolitan Borough Council,https://www.sandwell.gov.uk/performance-spending/government-procurement-cards,04-Jul-2023,Total ASCHWB,PMC ELECTRICS LIMI,Total Adult Social Care,330,TELECOMMUNICATION EQUIPMENT INCL TELEPHONE SALES,2023-24Q2_PC0033
Sandwell Metropolitan Borough Council,https://www.sandwell.gov.uk/performance-spending/government-procurement-cards,04-Jul-2023,Total Borough Economy,PODBEAN.COM,Total Adult Social Care,31.87,"CONSULTING, MANAGEMENT, AND PUBLIC RELATIONS SVCS",2023-24Q2_PC0034
Sandwell Metropolitan Borough Council,https://www.sandwell.gov.uk/performance-spending/government-procurement-cards,04-Jul-2023,Total Borough Economy,SLINGSANDSTRAPS.CO.UK,Total Adult Social Care,103.17,"AUTOMOTIVE PARTS, ACCESSORIES STORES",2023-24Q2_PC0035
Sandwell Metropolitan Borough Council,https://www.sandwell.gov.uk/performance-spending/government-procurement-cards,04-Jul-2023,Total ASCHWB,WILKO RETAIL LIMITED,Total Adult Social Care,63,MISCELLANEOUS GENERAL MERCHANDISE,2023-24Q2_PC0036
Sandwell Metropolitan Borough Council,https://www.sandwell.gov.uk/performance-spending/government-procurement-cards,04-Jul-2023,Total Housing Revenue Account,Amazon.co.uk O74HZ0UM5,Total Housing Revenue Account,14.85,DIRECT MARKETING-OTHER DIRECT MARKETERS/NOT ELSEW.,2023-24Q2_PC0037
Sandwell Metropolitan Borough Council,https://www.sandwell.gov.uk/performance-spending/government-procurement-cards,04-Jul-2023,Total Housing Revenue Account,AMZNMktplace,Total Housing Revenue Account,26.84,MISCELLANEOUS AND SPECIALTY RETAIL STORES,2023-24Q2_PC0038
Sandwell Metropolitan Borough Council,https://www.sandwell.gov.uk/performance-spending/government-procurement-cards,05-Jul-2023,FINANCE (Inc SIU),AMZNMktplace,Assistant Chief Executive (Excl SIU),252.41,MISCELLANEOUS AND SPECIALTY RETAIL STORES,2023-24Q2_PC0039
Sandwell Metropolitan Borough Council,https://www.sandwell.gov.uk/performance-spending/government-procurement-cards,05-Jul-2023,Childrens Services,ALDI 109 772,Childrens Services,3.2,"GROCERY STORES, SUPERMARKETS",2023-24Q2_PC0040
Sandwell Metropolitan Borough Council,https://www.sandwell.gov.uk/performance-spending/government-procurement-cards,05-Jul-2023,Childrens Services,Amazon Prime 383ZG7YA5,Childrens Services,8.99,DIRECT MARKETING-CONTINUITY/SUBSCRIPTION MERCHANTS,2023-24Q2_PC0041
Sandwell Metropolitan Borough Council,https://www.sandwell.gov.uk/performance-spending/government-procurement-cards,05-Jul-2023,Childrens Services,EDPSYCHED,Childrens Services,113.4,SCHOOLS & EDUCATIONAL SVC-NOT ELSEWHERE CLASSIFIED,2023-24Q2_PC0042
Sandwell Metropolitan Borough Council,https://www.sandwell.gov.uk/performance-spending/government-procurement-cards,05-Jul-2023,Childrens Services,RONTEC DUDLEY PORT,Childrens Services,12.39,SERVICE STATIONS WITH OR WITHOUT ANCILLARY SERVICE,2023-24Q2_PC0043
Sandwell Metropolitan Borough Council,https://www.sandwell.gov.uk/performance-spending/government-procurement-cards,05-Jul-2023,Childrens Services,THEEVENTSCALPLUGINS,Childrens Services,96.64,"COMPUTERS, COMPUTER PERIPHERAL EQUIPMENT, SOFTWARE",2023-24Q2_PC0044
Sandwell Metropolitan Borough Council,https://www.sandwell.gov.uk/performance-spending/government-procurement-cards,05-Jul-2023,Childrens Services,WWW.OFFICETEAMCONNECT.,Childrens Services,3.13,STATIONERY/OFFICE SUPPLIES/PRINTING & WRITING PAP.,2023-24Q2_PC0045
Sandwell Metropolitan Borough Council,https://www.sandwell.gov.uk/performance-spending/government-procurement-cards,05-Jul-2023,Childrens Services,WWW.WMCA.ORG.UK,Childrens Services,10,"TRANSPRTN-SUBRBN & LOCAL COMTR PSNGR, INCL FERRIES",2023-24Q2_PC0046
Sandwell Metropolitan Borough Council,https://www.sandwell.gov.uk/performance-spending/government-procurement-cards,05-Jul-2023,Housing & Assets Total,AMZNMktplace,Corporate Management,38.79,MISCELLANEOUS AND SPECIALTY RETAIL STORES,2023-24Q2_PC0047
Sandwell Metropolitan Borough Council,https://www.sandwell.gov.uk/performance-spending/government-procurement-cards,05-Jul-2023,Individual School Budgets With Inclusion,SHREWBURY PRISON,Individual School Budgets With Inclusion,340,"EATING PLACES, RESTAURANTS",2023-24Q2_PC0048
Sandwell Metropolitan Borough Council,https://www.sandwell.gov.uk/performance-spending/government-procurement-cards,05-Jul-2023,Individual School Budgets With Inclusion,WWW.SCREWFIX.COM,Individual School Budgets With Inclusion,5.98,"BUILDING MATERIALS, LUMBER STORES",2023-24Q2_PC0049
Sandwell Metropolitan Borough Council,https://www.sandwell.gov.uk/performance-spending/government-procurement-cards,05-Jul-2023,Individual School Budgets With Inclusion,WWW.SCREWFIX.COM,Individual School Budgets With Inclusion,14.95,"BUILDING MATERIALS, LUMBER STORES",2023-24Q2_PC0050
Sandwell Metropolitan Borough Council,https://www.sandwell.gov.uk/performance-spending/government-procurement-cards,05-Jul-2023,Regeneration & Growth,TOTAL JANITORIAL,Regeneration And The Economy,143.14,MISCELLANEOUS GENERAL MERCHANDISE,2023-24Q2_PC0051
Sandwell Metropolitan Borough Council,https://www.sandwell.gov.uk/performance-spending/government-procurement-cards,05-Jul-2023,Regeneration & Growth,WWW.ROBUSTDETAILS.COM,Regeneration And The Economy,630,GENERAL CONTRACTORS/RESIDENTIAL BUILDINGS,2023-24Q2_PC0052
Sandwell Metropolitan Borough Council,https://www.sandwell.gov.uk/performance-spending/government-procurement-cards,05-Jul-2023,Total ASCHWB,AMZNMktplace,Total Adult Social Care,65.98,MISCELLANEOUS AND SPECIALTY RETAIL STORES,2023-24Q2_PC0053
Sandwell Metropolitan Borough Council,https://www.sandwell.gov.uk/performance-spending/government-procurement-cards,05-Jul-2023,Total ASCHWB,AMZNMktplace,Total Adult Social Care,8.94,MISCELLANEOUS AND SPECIALTY RETAIL STORES,2023-24Q2_PC0054
Sandwell Metropolitan Borough Council,https://www.sandwell.gov.uk/performance-spending/government-procurement-cards,05-Jul-2023,Total Borough Economy,AMZNMktplace,Total Adult Social Care,13.04,MISCELLANEOUS AND SPECIALTY RETAIL STORES,2023-24Q2_PC0055
Sandwell Metropolitan Borough Council,https://www.sandwell.gov.uk/performance-spending/government-procurement-cards,05-Jul-2023,Total Borough Economy,AMZNMktplace,Total Adult Social Care,325.8,MISCELLANEOUS AND SPECIALTY RETAIL STORES,2023-24Q2_PC0056
Sandwell Metropolitan Borough Council,https://www.sandwell.gov.uk/performance-spending/government-procurement-cards,05-Jul-2023,Total Borough Economy,AMZNMktplace,Total Adult Social Care,38.49,MISCELLANEOUS AND SPECIALTY RETAIL STORES,2023-24Q2_PC0057
Sandwell Metropolitan Borough Council,https://www.sandwell.gov.uk/performance-spending/government-procurement-cards,05-Jul-2023,Total ASCHWB,AMZNMKTPLACE AMAZON.CO,Total Adult Social Care,49.78,MISCELLANEOUS AND SPECIALTY RETAIL STORES,2023-24Q2_PC0058
Sandwell Metropolitan Borough Council,https://www.sandwell.gov.uk/performance-spending/government-procurement-cards,05-Jul-2023,Total ASCHWB,AMZNMKTPLACE AMAZON.CO,Total Adult Social Care,231.98,MISCELLANEOUS AND SPECIALTY RETAIL STORES,2023-24Q2_PC0059
Sandwell Metropolitan Borough Council,https://www.sandwell.gov.uk/performance-spending/government-procurement-cards,05-Jul-2023,Total Borough Economy,AMZNMKTPLACE AMAZON.CO,Total Adult Social Care,51.5,MISCELLANEOUS AND SPECIALTY RETAIL STORES,2023-24Q2_PC0060
Sandwell Metropolitan Borough Council,https://www.sandwell.gov.uk/performance-spending/government-procurement-cards,05-Jul-2023,Total Borough Economy,BAKER ROSS,Total Adult Social Care,69.25,"ARTIST SUPPLY STORES, CRAFT SHOPS",2023-24Q2_PC0061
Sandwell Metropolitan Borough Council,https://www.sandwell.gov.uk/performance-spending/government-procurement-cards,05-Jul-2023,Total Borough Economy,HOLDENS BREWERYLTD,Total Adult Social Care,350.27,"EATING PLACES, RESTAURANTS",2023-24Q2_PC0062
Sandwell Metropolitan Borough Council,https://www.sandwell.gov.uk/performance-spending/government-procurement-cards,05-Jul-2023,Total Borough Economy,PAPERSTONE,Total Adult Social Care,100.54,STATIONERY/OFFICE SUPPLIES/PRINTING & WRITING PAP.,2023-24Q2_PC0063
Sandwell Metropolitan Borough Council,https://www.sandwell.gov.uk/performance-spending/government-procurement-cards,05-Jul-2023,Total Borough Economy,POUNDLAND LTD - 2528,Total Adult Social Care,2,DISCOUNT STORES,2023-24Q2_PC0064
Sandwell Metropolitan Borough Council,https://www.sandwell.gov.uk/performance-spending/government-procurement-cards,05-Jul-2023,Total Borough Economy,RAFIKI LAUNDERETTE,Total Adult Social Care,168.6,"CLEANING, GARMENT, AND LAUNDRY SERVICES",2023-24Q2_PC0065
Sandwell Metropolitan Borough Council,https://www.sandwell.gov.uk/performance-spending/government-procurement-cards,05-Jul-2023,Total Borough Economy,RINGGO PARKING,Total Adult Social Care,2.41,AUTOMOBILE PARKING LOTS AND GARAGES,2023-24Q2_PC0066
Sandwell Metropolitan Borough Council,https://www.sandwell.gov.uk/performance-spending/government-procurement-cards,05-Jul-2023,Total Borough Economy,RINGGO PARKING,Total Adult Social Care,1.71,AUTOMOBILE PARKING LOTS AND GARAGES,2023-24Q2_PC0067
Sandwell Metropolitan Borough Council,https://www.sandwell.gov.uk/performance-spending/government-procurement-cards,05-Jul-2023,Total ASCHWB,SAINSBURYS S/MKTS,Total Adult Social Care,18.1,"GROCERY STORES, SUPERMARKETS",2023-24Q2_PC0068
Sandwell Metropolitan Borough Council,https://www.sandwell.gov.uk/performance-spending/government-procurement-cards,05-Jul-2023,Total Borough Economy,TESCO STORES 2335,Total Adult Social Care,33.2,"GROCERY STORES, SUPERMARKETS",2023-24Q2_PC0069
Sandwell Metropolitan Borough Council,https://www.sandwell.gov.uk/performance-spending/government-procurement-cards,05-Jul-2023,Total Borough Economy,VIKING OFFICE UK LIMIT,Total Adult Social Care,131.7,STATIONERY/OFFICE SUPPLIES/PRINTING & WRITING PAP.,2023-24Q2_PC0070
Sandwell Metropolitan Borough Council,https://www.sandwell.gov.uk/performance-spending/government-procurement-cards,05-Jul-2023,Total Borough Economy,VIKING OFFICE UK LIMIT,Total Adult Social Care,130.02,STATIONERY/OFFICE SUPPLIES/PRINTING & WRITING PAP.,2023-24Q2_PC0071
Sandwell Metropolitan Borough Council,https://www.sandwell.gov.uk/performance-spending/government-procurement-cards,05-Jul-2023,Total ASCHWB,WONDERWALL REF. 205056,Total Adult Social Care,122.4,"GAME, TOY, AND HOBBY SHOPS",2023-24Q2_PC0072
Sandwell Metropolitan Borough Council,https://www.sandwell.gov.uk/performance-spending/government-procurement-cards,05-Jul-2023,Total Borough Economy,WWW.FILMBANK.CO.UK,Total Adult Social Care,150,MOTION PICTURE/VIDEO TAPE PRODUCTION/DISTRIBUTION,2023-24Q2_PC0073
Sandwell Metropolitan Borough Council,https://www.sandwell.gov.uk/performance-spending/government-procurement-cards,05-Jul-2023,Total ASCHWB,WWW.OFFICETEAMCONNECT.,Total Adult Social Care,154.36,STATIONERY/OFFICE SUPPLIES/PRINTING & WRITING PAP.,2023-24Q2_PC0074
Sandwell Metropolitan Borough Council,https://www.sandwell.gov.uk/performance-spending/government-procurement-cards,05-Jul-2023,Total Borough Economy,WWW.SANDWELL.GOV.UK,Total Adult Social Care,21,GOVERNMENT SERVICES-NOT ELSEWHERE CLASSIFIED,2023-24Q2_PC0075
Sandwell Metropolitan Borough Council,https://www.sandwell.gov.uk/performance-spending/government-procurement-cards,05-Jul-2023,Total Borough Economy,WWW.SORBUS-INTL.CO,Total Adult Social Care,217.69,"BUILDING MATERIALS, LUMBER STORES",2023-24Q2_PC0076
Sandwell Metropolitan Borough Council,https://www.sandwell.gov.uk/performance-spending/government-procurement-cards,05-Jul-2023,Total Housing Revenue Account,SIG,Total Housing Revenue Account,345.6,INDUSTRIAL SUPPLIES NOT ELSEWHERE CLASSIFIED,2023-24Q2_PC0077
Sandwell Metropolitan Borough Council,https://www.sandwell.gov.uk/performance-spending/government-procurement-cards,06-Jul-2023,Law & Governance,CARTRIDGEPEOPLE.COM,Assistant Chief Executive (Excl SIU),84.9,STATIONERY/OFFICE SUPPLIES/PRINTING & WRITING PAP.,2023-24Q2_PC0078
Sandwell Metropolitan Borough Council,https://www.sandwell.gov.uk/performance-spending/government-procurement-cards,06-Jul-2023,Assistant Chief Executive,SANDWELL M B C,Assistant Chief Executive (Excl SIU),76.75,GOVERNMENT SERVICES-NOT ELSEWHERE CLASSIFIED,2023-24Q2_PC0079
Sandwell Metropolitan Borough Council,https://www.sandwell.gov.uk/performance-spending/government-procurement-cards,06-Jul-2023,Childrens Services,AMZNMktplace,Childrens Services,3.4,MISCELLANEOUS AND SPECIALTY RETAIL STORES,2023-24Q2_PC0080
Sandwell Metropolitan Borough Council,https://www.sandwell.gov.uk/performance-spending/government-procurement-cards,06-Jul-2023,Childrens Services,ASDA GROCERIES ONLINE,Childrens Services,44.77,"GROCERY STORES, SUPERMARKETS",2023-24Q2_PC0081
Sandwell Metropolitan Borough Council,https://www.sandwell.gov.uk/performance-spending/government-procurement-cards,06-Jul-2023,Childrens Services,EDPSYCHED,Childrens Services,113.4,SCHOOLS & EDUCATIONAL SVC-NOT ELSEWHERE CLASSIFIED,2023-24Q2_PC0082
Sandwell Metropolitan Borough Council,https://www.sandwell.gov.uk/performance-spending/government-procurement-cards,06-Jul-2023,Housing & Assets Total,AMZNMKTPLACE AMAZON.CO,Corporate Management,267.31,MISCELLANEOUS AND SPECIALTY RETAIL STORES,2023-24Q2_PC0083
Sandwell Metropolitan Borough Council,https://www.sandwell.gov.uk/performance-spending/government-procurement-cards,06-Jul-2023,Individual School Budgets With Inclusion,AMZNMKTPLACE AMAZON.CO,Individual School Budgets With Inclusion,29.99,MISCELLANEOUS AND SPECIALTY RETAIL STORES,2023-24Q2_PC0084
Sandwell Metropolitan Borough Council,https://www.sandwell.gov.uk/performance-spending/government-procurement-cards,06-Jul-2023,Individual School Budgets With Inclusion,ASDA GROCERIES ONLINE,Individual School Budgets With Inclusion,-0.6,"GROCERY STORES, SUPERMARKETS",2023-24Q2_PC0085
Sandwell Metropolitan Borough Council,https://www.sandwell.gov.uk/performance-spending/government-procurement-cards,06-Jul-2023,Individual School Budgets With Inclusion,ASDA GROCERIES ONLINE,Individual School Budgets With Inclusion,89.35,"GROCERY STORES, SUPERMARKETS",2023-24Q2_PC0086
Sandwell Metropolitan Borough Council,https://www.sandwell.gov.uk/performance-spending/government-procurement-cards,06-Jul-2023,Total Public Health,Amazon.co.uk 9G1UC9KY5,Public Health,4.99,DIRECT MARKETING-OTHER DIRECT MARKETERS/NOT ELSEW.,2023-24Q2_PC0087
Sandwell Metropolitan Borough Council,https://www.sandwell.gov.uk/performance-spending/government-procurement-cards,06-Jul-2023,Total Public Health,Amazon.co.uk AS9RY9T85,Public Health,24.98,DIRECT MARKETING-OTHER DIRECT MARKETERS/NOT ELSEW.,2023-24Q2_PC0088
Sandwell Metropolitan Borough Council,https://www.sandwell.gov.uk/performance-spending/government-procurement-cards,06-Jul-2023,Regeneration & Growth,AMZNMktplace,Regeneration And The Economy,55.58,MISCELLANEOUS AND SPECIALTY RETAIL STORES,2023-24Q2_PC0089
Sandwell Metropolitan Borough Council,https://www.sandwell.gov.uk/performance-spending/government-procurement-cards,06-Jul-2023,Regeneration & Growth,AMZNMktplace,Regeneration And The Economy,42.27,MISCELLANEOUS AND SPECIALTY RETAIL STORES,2023-24Q2_PC0090
Sandwell Metropolitan Borough Council,https://www.sandwell.gov.uk/performance-spending/government-procurement-cards,06-Jul-2023,Regeneration & Growth,RTPI,Regeneration And The Economy,36,"CLUBS-CNTRY,MBRSHIP(ATHLET,REC,SPRTS,PRIVATE GOLF",2023-24Q2_PC0091
Sandwell Metropolitan Borough Council,https://www.sandwell.gov.uk/performance-spending/government-procurement-cards,06-Jul-2023,Regeneration & Growth,TIMPSON LTD,Regeneration And The Economy,13,MISCELLANEOUS AND SPECIALTY RETAIL STORES,2023-24Q2_PC0092
Sandwell Metropolitan Borough Council,https://www.sandwell.gov.uk/performance-spending/government-procurement-cards,06-Jul-2023,Regeneration & Growth,Trainline.COM,Regeneration And The Economy,90.68,PASSENGER RAILWAYS,2023-24Q2_PC0093
Sandwell Metropolitan Borough Council,https://www.sandwell.gov.uk/performance-spending/government-procurement-cards,06-Jul-2023,Regeneration & Growth,WWW.BRITISHGAS.CO.,Regeneration And The Economy,33.24,"UTLTS-ELCTRC, GAS, HEATING OIL, SANITARY, WATER",2023-24Q2_PC0094
Sandwell Metropolitan Borough Council,https://www.sandwell.gov.uk/performance-spending/government-procurement-cards,06-Jul-2023,Total ASCHWB,AMZNMktplace,Total Adult Social Care,68.34,MISCELLANEOUS AND SPECIALTY RETAIL STORES,2023-24Q2_PC0095
Sandwell Metropolitan Borough Council,https://www.sandwell.gov.uk/performance-spending/government-procurement-cards,06-Jul-2023,Total ASCHWB,AMZNMktplace,Total Adult Social Care,65.94,MISCELLANEOUS AND SPECIALTY RETAIL STORES,2023-24Q2_PC0096
Sandwell Metropolitan Borough Council,https://www.sandwell.gov.uk/performance-spending/government-procurement-cards,06-Jul-2023,Total ASCHWB,AMZNMktplace,Total Adult Social Care,28.95,MISCELLANEOUS AND SPECIALTY RETAIL STORES,2023-24Q2_PC0097
Sandwell Metropolitan Borough Council,https://www.sandwell.gov.uk/performance-spending/government-procurement-cards,06-Jul-2023,Total ASCHWB,AMZNMktplace,Total Adult Social Care,69.9,MISCELLANEOUS AND SPECIALTY RETAIL STORES,2023-24Q2_PC0098
Sandwell Metropolitan Borough Council,https://www.sandwell.gov.uk/performance-spending/government-procurement-cards,06-Jul-2023,Total ASCHWB,AMZNMktplace,Total Adult Social Care,82.25,MISCELLANEOUS AND SPECIALTY RETAIL STORES,2023-24Q2_PC0099
Sandwell Metropolitan Borough Council,https://www.sandwell.gov.uk/performance-spending/government-procurement-cards,06-Jul-2023,Total ASCHWB,AMZNMktplace,Total Adult Social Care,182.44,MISCELLANEOUS AND SPECIALTY RETAIL STORES,2023-24Q2_PC0100
Sandwell Metropolitan Borough Council,https://www.sandwell.gov.uk/performance-spending/government-procurement-cards,06-Jul-2023,Total ASCHWB,AMZNMKTPLACE AMAZON.CO,Total Adult Social Care,76.47,MISCELLANEOUS AND SPECIALTY RETAIL STORES,2023-24Q2_PC0101
Sandwell Metropolitan Borough Council,https://www.sandwell.gov.uk/performance-spending/government-procurement-cards,06-Jul-2023,Total ASCHWB,AMZNMKTPLACE AMAZON.CO,Total Adult Social Care,190.02,MISCELLANEOUS AND SPECIALTY RETAIL STORES,2023-24Q2_PC0102
Sandwell Metropolitan Borough Council,https://www.sandwell.gov.uk/performance-spending/government-procurement-cards,06-Jul-2023,Total Borough Economy,AMZNMKTPLACE AMAZON.CO,Total Adult Social Care,8.99,MISCELLANEOUS AND SPECIALTY RETAIL STORES,2023-24Q2_PC0103
Sandwell Metropolitan Borough Council,https://www.sandwell.gov.uk/performance-spending/government-procurement-cards,06-Jul-2023,Total Borough Economy,AMZNMKTPLACE AMAZON.CO,Total Adult Social Care,31.98,MISCELLANEOUS AND SPECIALTY RETAIL STORES,2023-24Q2_PC0104
Sandwell Metropolitan Borough Council,https://www.sandwell.gov.uk/performance-spending/government-procurement-cards,06-Jul-2023,Total Borough Economy,BOOKER LTD - 38593354,Total Adult Social Care,239.33,"GROCERY STORES, SUPERMARKETS",2023-24Q2_PC0105
Sandwell Metropolitan Borough Council,https://www.sandwell.gov.uk/performance-spending/government-procurement-cards,06-Jul-2023,Total ASCHWB,IMS HYGIENE,Total Adult Social Care,21.23,"CLEANING AND MAINTENANCE, JANITORIAL SERVICES",2023-24Q2_PC0106
Sandwell Metropolitan Borough Council,https://www.sandwell.gov.uk/performance-spending/government-procurement-cards,06-Jul-2023,Total Borough Economy,VIKING OFFICE UK LIMIT,Total Adult Social Care,79.52,STATIONERY/OFFICE SUPPLIES/PRINTING & WRITING PAP.,2023-24Q2_PC0107
Sandwell Metropolitan Borough Council,https://www.sandwell.gov.uk/performance-spending/government-procurement-cards,06-Jul-2023,Total Borough Economy,VIKING OFFICE UK LIMIT,Total Adult Social Care,74.26,STATIONERY/OFFICE SUPPLIES/PRINTING & WRITING PAP.,2023-24Q2_PC0108
Sandwell Metropolitan Borough Council,https://www.sandwell.gov.uk/performance-spending/government-procurement-cards,07-Jul-2023,Law & Governance,KENT AND SUSSEX VENDIN,Assistant Chief Executive (Excl SIU),99.74,"EQUIPMENT RENTAL&LEASING SVS, FURNTURE/TOOL RENTAL",2023-24Q2_PC0109
Sandwell Metropolitan Borough Council,https://www.sandwell.gov.uk/performance-spending/government-procurement-cards,07-Jul-2023,Law & Governance,SP PAPER CUPS DIRECT,Assistant Chief Executive (Excl SIU),44.35,MISCELLANEOUS GENERAL MERCHANDISE,2023-24Q2_PC0110
Sandwell Metropolitan Borough Council,https://www.sandwell.gov.uk/performance-spending/government-procurement-cards,07-Jul-2023,Law & Governance,TESCO STORES 2335,Assistant Chief Executive (Excl SIU),3.5,"GROCERY STORES, SUPERMARKETS",2023-24Q2_PC0111
Sandwell Metropolitan Borough Council,https://www.sandwell.gov.uk/performance-spending/government-procurement-cards,07-Jul-2023,Law & Governance,VIKING OFFICE UK LIMIT,Assistant Chief Executive (Excl SIU),37.8,STATIONERY/OFFICE SUPPLIES/PRINTING & WRITING PAP.,2023-24Q2_PC0112
Sandwell Metropolitan Borough Council,https://www.sandwell.gov.uk/performance-spending/government-procurement-cards,07-Jul-2023,Childrens Services,AMZNMktplace,Childrens Services,48.77,MISCELLANEOUS AND SPECIALTY RETAIL STORES,2023-24Q2_PC0113
Sandwell Metropolitan Borough Council,https://www.sandwell.gov.uk/performance-spending/government-procurement-cards,07-Jul-2023,Housing & Assets Total,STATION HOTEL,Corporate Management,1000,"LODGING-HOTELS,MOTELS,RESORTS-NOT CLASSIFIED",2023-24Q2_PC0114
Sandwell Metropolitan Borough Council,https://www.sandwell.gov.uk/performance-spending/government-procurement-cards,07-Jul-2023,Housing & Assets Total,STATION HOTEL,Corporate Management,575,"LODGING-HOTELS,MOTELS,RESORTS-NOT CLASSIFIED",2023-24Q2_PC0115
Sandwell Metropolitan Borough Council,https://www.sandwell.gov.uk/performance-spending/government-procurement-cards,07-Jul-2023,Individual School Budgets With Inclusion,TIMPSON LTD,Individual School Budgets With Inclusion,72,MISCELLANEOUS AND SPECIALTY RETAIL STORES,2023-24Q2_PC0116
Sandwell Metropolitan Borough Council,https://www.sandwell.gov.uk/performance-spending/government-procurement-cards,07-Jul-2023,Individual School Budgets With Inclusion,WWW.ARGOS.CO.UK,Individual School Budgets With Inclusion,363.95,DEPARTMENT STORES,2023-24Q2_PC0117
Sandwell Metropolitan Borough Council,https://www.sandwell.gov.uk/performance-spending/government-procurement-cards,07-Jul-2023,Individual School Budgets With Inclusion,WWW.FIRESEALSDIRECT.CO,Individual School Budgets With Inclusion,91.87,"BUILDING MATERIALS, LUMBER STORES",2023-24Q2_PC0118
Sandwell Metropolitan Borough Council,https://www.sandwell.gov.uk/performance-spending/government-procurement-cards,07-Jul-2023,Total Public Health,Domino s Pizza,Public Health,122.45,"EATING PLACES, RESTAURANTS",2023-24Q2_PC0119
Sandwell Metropolitan Borough Council,https://www.sandwell.gov.uk/performance-spending/government-procurement-cards,07-Jul-2023,Total Public Health,WWW.OFFICEFURNITUREONL,Public Health,211.2,OFFICE AND COMMERCIAL FURNITURE,2023-24Q2_PC0120
Sandwell Metropolitan Borough Council,https://www.sandwell.gov.uk/performance-spending/government-procurement-cards,07-Jul-2023,Regeneration & Growth,AMZNMKTPLACE AMAZON.CO,Regeneration And The Economy,24.84,MISCELLANEOUS AND SPECIALTY RETAIL STORES,2023-24Q2_PC0121
Sandwell Metropolitan Borough Council,https://www.sandwell.gov.uk/performance-spending/government-procurement-cards,07-Jul-2023,Regeneration & Growth,PCL CORPORATE WEAR LTD,Regeneration And The Economy,246.54,MISCELLANEOUS AND SPECIALTY RETAIL STORES,2023-24Q2_PC0122
Sandwell Metropolitan Borough Council,https://www.sandwell.gov.uk/performance-spending/government-procurement-cards,07-Jul-2023,Regeneration & Growth,RTPI,Regeneration And The Economy,324,"ORGANIZATIONS, CHARITABLE AND SOCIAL SERVICES",2023-24Q2_PC0123
Sandwell Metropolitan Borough Council,https://www.sandwell.gov.uk/performance-spending/government-procurement-cards,07-Jul-2023,Regeneration & Growth,WWW.ARCO.CO.UK,Regeneration And The Economy,64,INDUSTRIAL SUPPLIES NOT ELSEWHERE CLASSIFIED,2023-24Q2_PC0124
Sandwell Metropolitan Borough Council,https://www.sandwell.gov.uk/performance-spending/government-procurement-cards,07-Jul-2023,Total Borough Economy,AMZNMktplace,Total Adult Social Care,43.99,MISCELLANEOUS AND SPECIALTY RETAIL STORES,2023-24Q2_PC0125
Sandwell Metropolitan Borough Council,https://www.sandwell.gov.uk/performance-spending/government-procurement-cards,07-Jul-2023,Total Borough Economy,AMZNMktplace,Total Adult Social Care,86.94,MISCELLANEOUS AND SPECIALTY RETAIL STORES,2023-24Q2_PC0126
Sandwell Metropolitan Borough Council,https://www.sandwell.gov.uk/performance-spending/government-procurement-cards,07-Jul-2023,Total ASCHWB,AMZNMKTPLACE AMAZON.CO,Total Adult Social Care,16.69,MISCELLANEOUS AND SPECIALTY RETAIL STORES,2023-24Q2_PC0127
Sandwell Metropolitan Borough Council,https://www.sandwell.gov.uk/performance-spending/government-procurement-cards,07-Jul-2023,Total Borough Economy,AMZNMKTPLACE AMAZON.CO,Total Adult Social Care,114.95,MISCELLANEOUS AND SPECIALTY RETAIL STORES,2023-24Q2_PC0128
Sandwell Metropolitan Borough Council,https://www.sandwell.gov.uk/performance-spending/government-procurement-cards,07-Jul-2023,Total Borough Economy,ASDA STORES,Total Adult Social Care,9.05,"GROCERY STORES, SUPERMARKETS",2023-24Q2_PC0129
Sandwell Metropolitan Borough Council,https://www.sandwell.gov.uk/performance-spending/government-procurement-cards,07-Jul-2023,Total Borough Economy,B&M 049 - ASTLE PARK,Total Adult Social Care,80,MISCELLANEOUS GENERAL MERCHANDISE,2023-24Q2_PC0130
Sandwell Metropolitan Borough Council,https://www.sandwell.gov.uk/performance-spending/government-procurement-cards,07-Jul-2023,Total Borough Economy,FACEBK C9NVZSK9X2,Total Adult Social Care,1,ADVERTISING SERVICES,2023-24Q2_PC0131
Sandwell Metropolitan Borough Council,https://www.sandwell.gov.uk/performance-spending/government-procurement-cards,07-Jul-2023,Total Borough Economy,HERON FOODS,Total Adult Social Care,11.74,"GROCERY STORES, SUPERMARKETS",2023-24Q2_PC0132
Sandwell Metropolitan Borough Council,https://www.sandwell.gov.uk/performance-spending/government-procurement-cards,07-Jul-2023,Total ASCHWB,OVO Energy Ltd,Total Adult Social Care,116.6,"UTLTS-ELCTRC, GAS, HEATING OIL, SANITARY, WATER",2023-24Q2_PC0133
Sandwell Metropolitan Borough Council,https://www.sandwell.gov.uk/performance-spending/government-procurement-cards,07-Jul-2023,Total Borough Economy,THE ARBORICULTURAL ASS,Total Adult Social Care,46.95,"ORGANIZATIONS, CHARITABLE AND SOCIAL SERVICES",2023-24Q2_PC0134
Sandwell Metropolitan Borough Council,https://www.sandwell.gov.uk/performance-spending/government-procurement-cards,07-Jul-2023,Total Borough Economy,THE DEPOT,Total Adult Social Care,67.97,HARDWARE STORES,2023-24Q2_PC0135
Sandwell Metropolitan Borough Council,https://www.sandwell.gov.uk/performance-spending/government-procurement-cards,07-Jul-2023,Total Borough Economy,VIKING OFFICE UK LIMIT,Total Adult Social Care,488.57,STATIONERY/OFFICE SUPPLIES/PRINTING & WRITING PAP.,2023-24Q2_PC0136
Sandwell Metropolitan Borough Council,https://www.sandwell.gov.uk/performance-spending/government-procurement-cards,07-Jul-2023,Total Housing Revenue Account,AMZNMKTPLACE AMAZON.CO,Total Housing Revenue Account,32.97,MISCELLANEOUS AND SPECIALTY RETAIL STORES,2023-24Q2_PC0137
Sandwell Metropolitan Borough Council,https://www.sandwell.gov.uk/performance-spending/government-procurement-cards,07-Jul-2023,Total Housing Revenue Account,CAPITA GAS,Total Housing Revenue Account,39.6,"ORGANIZATIONS, MEMBERSHIP-NOT ELSEWHERE CLASSIFIED",2023-24Q2_PC0138
Sandwell Metropolitan Borough Council,https://www.sandwell.gov.uk/performance-spending/government-procurement-cards,10-Jul-2023,FINANCE (Inc SIU),Amazon Prime 2U35T0Z05,Assistant Chief Executive (Excl SIU),8.99,DIRECT MARKETING-CONTINUITY/SUBSCRIPTION MERCHANTS,2023-24Q2_PC0139
Sandwell Metropolitan Borough Council,https://www.sandwell.gov.uk/performance-spending/government-procurement-cards,10-Jul-2023,Assistant Chief Executive,AMZNMktplace,Assistant Chief Executive (Excl SIU),48.41,MISCELLANEOUS AND SPECIALTY RETAIL STORES,2023-24Q2_PC0140
Sandwell Metropolitan Borough Council,https://www.sandwell.gov.uk/performance-spending/government-procurement-cards,10-Jul-2023,FINANCE (Inc SIU),AMZNMktplace,Assistant Chief Executive (Excl SIU),22.06,MISCELLANEOUS AND SPECIALTY RETAIL STORES,2023-24Q2_PC0141
Sandwell Metropolitan Borough Council,https://www.sandwell.gov.uk/performance-spending/government-procurement-cards,10-Jul-2023,Assistant Chief Executive,AMZNMKTPLACE AMAZON.CO,Assistant Chief Executive (Excl SIU),49.96,MISCELLANEOUS AND SPECIALTY RETAIL STORES,2023-24Q2_PC0142
Sandwell Metropolitan Borough Council,https://www.sandwell.gov.uk/performance-spending/government-procurement-cards,10-Jul-2023,Law & Governance,trainline,Assistant Chief Executive (Excl SIU),123.19,PASSENGER RAILWAYS,2023-24Q2_PC0143
Sandwell Metropolitan Borough Council,https://www.sandwell.gov.uk/performance-spending/government-procurement-cards,10-Jul-2023,Childrens Services,BEEBYS BUBBLES,Childrens Services,112.5,"CLEANING, GARMENT, AND LAUNDRY SERVICES",2023-24Q2_PC0144
Sandwell Metropolitan Borough Council,https://www.sandwell.gov.uk/performance-spending/government-procurement-cards,10-Jul-2023,Childrens Services,WWW.WMCA.ORG.UK,Childrens Services,10,"TRANSPRTN-SUBRBN & LOCAL COMTR PSNGR, INCL FERRIES",2023-24Q2_PC0145
Sandwell Metropolitan Borough Council,https://www.sandwell.gov.uk/performance-spending/government-procurement-cards,10-Jul-2023,Housing & Assets Total,ASDA STORES,Corporate Management,31.78,"GROCERY STORES, SUPERMARKETS",2023-24Q2_PC0146
Sandwell Metropolitan Borough Council,https://www.sandwell.gov.uk/performance-spending/government-procurement-cards,10-Jul-2023,Individual School Budgets With Inclusion,ASDA GEORGE COM LEEDS,Individual School Budgets With Inclusion,35,"GROCERY STORES, SUPERMARKETS",2023-24Q2_PC0147
Sandwell Metropolitan Borough Council,https://www.sandwell.gov.uk/performance-spending/government-procurement-cards,10-Jul-2023,Individual School Budgets With Inclusion,ASDA STORES 4765,Individual School Budgets With Inclusion,19.02,"GROCERY STORES, SUPERMARKETS",2023-24Q2_PC0148
Sandwell Metropolitan Borough Council,https://www.sandwell.gov.uk/performance-spending/government-procurement-cards,10-Jul-2023,Individual School Budgets With Inclusion,ASDA STORES 4765,Individual School Budgets With Inclusion,2,"GROCERY STORES, SUPERMARKETS",2023-24Q2_PC0149
Sandwell Metropolitan Borough Council,https://www.sandwell.gov.uk/performance-spending/government-procurement-cards,10-Jul-2023,Total Public Health,AMZNMktplace,Public Health,29.98,MISCELLANEOUS AND SPECIALTY RETAIL STORES,2023-24Q2_PC0150
Sandwell Metropolitan Borough Council,https://www.sandwell.gov.uk/performance-spending/government-procurement-cards,10-Jul-2023,Total Public Health,AMZNMKTPLACE AMAZON.CO,Public Health,22.89,MISCELLANEOUS AND SPECIALTY RETAIL STORES,2023-24Q2_PC0151
Sandwell Metropolitan Borough Council,https://www.sandwell.gov.uk/performance-spending/government-procurement-cards,10-Jul-2023,Total Public Health,WF  UK3940166584,Public Health,204.98,"EQUIP, FURNITURE, HOME FURNSHNGS STRS (EXCPT APPL)",2023-24Q2_PC0152
Sandwell Metropolitan Borough Council,https://www.sandwell.gov.uk/performance-spending/government-procurement-cards,10-Jul-2023,Regeneration & Growth,CENTRE FOR ASSESSMENT,Regeneration And The Economy,1472.04,SCHOOLS & EDUCATIONAL SVC-NOT ELSEWHERE CLASSIFIED,2023-24Q2_PC0153
Sandwell Metropolitan Borough Council,https://www.sandwell.gov.uk/performance-spending/government-procurement-cards,10-Jul-2023,Total ASCHWB,AMZNMktplace,Total Adult Social Care,101.4,MISCELLANEOUS AND SPECIALTY RETAIL STORES,2023-24Q2_PC0154
Sandwell Metropolitan Borough Council,https://www.sandwell.gov.uk/performance-spending/government-procurement-cards,10-Jul-2023,Total ASCHWB,AMZNMktplace,Total Adult Social Care,189.64,MISCELLANEOUS AND SPECIALTY RETAIL STORES,2023-24Q2_PC0155
Sandwell Metropolitan Borough Council,https://www.sandwell.gov.uk/performance-spending/government-procurement-cards,10-Jul-2023,Total ASCHWB,AMZNMKTPLACE AMAZON.CO,Total Adult Social Care,28.47,MISCELLANEOUS AND SPECIALTY RETAIL STORES,2023-24Q2_PC0156
Sandwell Metropolitan Borough Council,https://www.sandwell.gov.uk/performance-spending/government-procurement-cards,10-Jul-2023,Total ASCHWB,AMZNMKTPLACE AMAZON.CO,Total Adult Social Care,23.95,MISCELLANEOUS AND SPECIALTY RETAIL STORES,2023-24Q2_PC0157
Sandwell Metropolitan Borough Council,https://www.sandwell.gov.uk/performance-spending/government-procurement-cards,10-Jul-2023,Total Borough Economy,AMZNMKTPLACE AMAZON.CO,Total Adult Social Care,21.99,MISCELLANEOUS AND SPECIALTY RETAIL STORES,2023-24Q2_PC0158
Sandwell Metropolitan Borough Council,https://www.sandwell.gov.uk/performance-spending/government-procurement-cards,10-Jul-2023,Total Borough Economy,DARLASTON BUILDERS MER,Total Adult Social Care,48.19,"BUILDING MATERIALS, LUMBER STORES",2023-24Q2_PC0159
Sandwell Metropolitan Borough Council,https://www.sandwell.gov.uk/performance-spending/government-procurement-cards,10-Jul-2023,Total Borough Economy,DARLASTON BUILDERS MER,Total Adult Social Care,23.76,"BUILDING MATERIALS, LUMBER STORES",2023-24Q2_PC0160
Sandwell Metropolitan Borough Council,https://www.sandwell.gov.uk/performance-spending/government-procurement-cards,10-Jul-2023,Total ASCHWB,E.ON NEXT,Total Adult Social Care,41.86,"UTLTS-ELCTRC, GAS, HEATING OIL, SANITARY, WATER",2023-24Q2_PC0161
Sandwell Metropolitan Borough Council,https://www.sandwell.gov.uk/performance-spending/government-procurement-cards,10-Jul-2023,Total ASCHWB,E.ON NEXT,Total Adult Social Care,68.35,"UTLTS-ELCTRC, GAS, HEATING OIL, SANITARY, WATER",2023-24Q2_PC0162
Sandwell Metropolitan Borough Council,https://www.sandwell.gov.uk/performance-spending/government-procurement-cards,10-Jul-2023,Total ASCHWB,E.ON NEXT,Total Adult Social Care,45.85,"UTLTS-ELCTRC, GAS, HEATING OIL, SANITARY, WATER",2023-24Q2_PC0163
Sandwell Metropolitan Borough Council,https://www.sandwell.gov.uk/performance-spending/government-procurement-cards,10-Jul-2023,Total ASCHWB,MYSYCOUS - UTILITIES,Total Adult Social Care,9.01,COMPUTER SOFTWARE STORES,2023-24Q2_PC0164
Sandwell Metropolitan Borough Council,https://www.sandwell.gov.uk/performance-spending/government-procurement-cards,10-Jul-2023,Total ASCHWB,MYSYCOUS - UTILITIES,Total Adult Social Care,9.99,COMPUTER SOFTWARE STORES,2023-24Q2_PC0165
Sandwell Metropolitan Borough Council,https://www.sandwell.gov.uk/performance-spending/government-procurement-cards,10-Jul-2023,Total ASCHWB,MYSYCOUS - UTILITIES,Total Adult Social Care,3.41,COMPUTER SOFTWARE STORES,2023-24Q2_PC0166
Sandwell Metropolitan Borough Council,https://www.sandwell.gov.uk/performance-spending/government-procurement-cards,10-Jul-2023,Total Borough Economy,PAYPAL  INFO,Total Adult Social Care,146.5,PROFESSIONAL SERVICES-NOT ELSEWHERE CLASSIFIED,2023-24Q2_PC0167
Sandwell Metropolitan Borough Council,https://www.sandwell.gov.uk/performance-spending/government-procurement-cards,10-Jul-2023,Total Borough Economy,SAINSBURYS S/MKTS,Total Adult Social Care,8.1,"GROCERY STORES, SUPERMARKETS",2023-24Q2_PC0168
Sandwell Metropolitan Borough Council,https://www.sandwell.gov.uk/performance-spending/government-procurement-cards,10-Jul-2023,Total Borough Economy,Vistaprint,Total Adult Social Care,36.74,BUSINESS SERVICES-NOT ELSEWHERE CLASSIFIED,2023-24Q2_PC0169
Sandwell Metropolitan Borough Council,https://www.sandwell.gov.uk/performance-spending/government-procurement-cards,10-Jul-2023,Total Borough Economy,WALSALL CLEARANCE,Total Adult Social Care,9.99,DISCOUNT STORES,2023-24Q2_PC0170
Sandwell Metropolitan Borough Council,https://www.sandwell.gov.uk/performance-spending/government-procurement-cards,10-Jul-2023,Total Borough Economy,WWW.SCREWFIX.COM,Total Adult Social Care,9.29,"BUILDING MATERIALS, LUMBER STORES",2023-24Q2_PC0171
Sandwell Metropolitan Borough Council,https://www.sandwell.gov.uk/performance-spending/government-procurement-cards,10-Jul-2023,Total Housing Revenue Account,CAPITA GAS,Total Housing Revenue Account,35.4,"ORGANIZATIONS, MEMBERSHIP-NOT ELSEWHERE CLASSIFIED",2023-24Q2_PC0172
Sandwell Metropolitan Borough Council,https://www.sandwell.gov.uk/performance-spending/government-procurement-cards,10-Jul-2023,Total Housing Revenue Account,CAPITA GAS,Total Housing Revenue Account,35.4,"ORGANIZATIONS, MEMBERSHIP-NOT ELSEWHERE CLASSIFIED",2023-24Q2_PC0173
Sandwell Metropolitan Borough Council,https://www.sandwell.gov.uk/performance-spending/government-procurement-cards,10-Jul-2023,Total Housing Revenue Account,CAPITA GAS,Total Housing Revenue Account,35.4,"ORGANIZATIONS, MEMBERSHIP-NOT ELSEWHERE CLASSIFIED",2023-24Q2_PC0174
Sandwell Metropolitan Borough Council,https://www.sandwell.gov.uk/performance-spending/government-procurement-cards,10-Jul-2023,Total Housing Revenue Account,MINICABIT,Total Housing Revenue Account,-5.06,"COMPUTERS, COMPUTER PERIPHERAL EQUIPMENT, SOFTWARE",2023-24Q2_PC0175
Sandwell Metropolitan Borough Council,https://www.sandwell.gov.uk/performance-spending/government-procurement-cards,10-Jul-2023,Total Housing Revenue Account,MINICABIT,Total Housing Revenue Account,-34.96,"COMPUTERS, COMPUTER PERIPHERAL EQUIPMENT, SOFTWARE",2023-24Q2_PC0176
Sandwell Metropolitan Borough Council,https://www.sandwell.gov.uk/performance-spending/government-procurement-cards,11-Jul-2023,Law & Governance,AMZNMktplace,Assistant Chief Executive (Excl SIU),419.8,MISCELLANEOUS AND SPECIALTY RETAIL STORES,2023-24Q2_PC0177
Sandwell Metropolitan Borough Council,https://www.sandwell.gov.uk/performance-spending/government-procurement-cards,11-Jul-2023,Law & Governance,TOOLSTATION UK,Assistant Chief Executive (Excl SIU),20.98,HARDWARE STORES,2023-24Q2_PC0178
Sandwell Metropolitan Borough Council,https://www.sandwell.gov.uk/performance-spending/government-procurement-cards,11-Jul-2023,FINANCE (Inc SIU),VIKING OFFICE UK LIMIT,Assistant Chief Executive (Excl SIU),70.1,STATIONERY/OFFICE SUPPLIES/PRINTING & WRITING PAP.,2023-24Q2_PC0179
Sandwell Metropolitan Borough Council,https://www.sandwell.gov.uk/performance-spending/government-procurement-cards,11-Jul-2023,Childrens Services,Amazon.co.uk 0C2GR7Y05,Childrens Services,150,DIRECT MARKETING-OTHER DIRECT MARKETERS/NOT ELSEW.,2023-24Q2_PC0180
Sandwell Metropolitan Borough Council,https://www.sandwell.gov.uk/performance-spending/government-procurement-cards,11-Jul-2023,Childrens Services,Amazon.co.uk IS8KD4OT5,Childrens Services,16.17,DIRECT MARKETING-OTHER DIRECT MARKETERS/NOT ELSEW.,2023-24Q2_PC0181
Sandwell Metropolitan Borough Council,https://www.sandwell.gov.uk/performance-spending/government-procurement-cards,11-Jul-2023,Childrens Services,AMZNMktplace,Childrens Services,59.85,MISCELLANEOUS AND SPECIALTY RETAIL STORES,2023-24Q2_PC0182
Sandwell Metropolitan Borough Council,https://www.sandwell.gov.uk/performance-spending/government-procurement-cards,11-Jul-2023,Childrens Services,AMZNMktplace,Childrens Services,36.05,MISCELLANEOUS AND SPECIALTY RETAIL STORES,2023-24Q2_PC0183
Sandwell Metropolitan Borough Council,https://www.sandwell.gov.uk/performance-spending/government-procurement-cards,11-Jul-2023,Childrens Services,AMZNMktplace,Childrens Services,26.3,MISCELLANEOUS AND SPECIALTY RETAIL STORES,2023-24Q2_PC0184
Sandwell Metropolitan Borough Council,https://www.sandwell.gov.uk/performance-spending/government-procurement-cards,11-Jul-2023,Childrens Services,AMZNMktplace,Childrens Services,8.66,MISCELLANEOUS AND SPECIALTY RETAIL STORES,2023-24Q2_PC0185
Sandwell Metropolitan Borough Council,https://www.sandwell.gov.uk/performance-spending/government-procurement-cards,11-Jul-2023,Childrens Services,AMZNMktplace,Childrens Services,45.93,MISCELLANEOUS AND SPECIALTY RETAIL STORES,2023-24Q2_PC0186
Sandwell Metropolitan Borough Council,https://www.sandwell.gov.uk/performance-spending/government-procurement-cards,11-Jul-2023,Childrens Services,AMZNMktplace,Childrens Services,34.8,MISCELLANEOUS AND SPECIALTY RETAIL STORES,2023-24Q2_PC0187
Sandwell Metropolitan Borough Council,https://www.sandwell.gov.uk/performance-spending/government-procurement-cards,11-Jul-2023,Childrens Services,AMZNMktplace,Childrens Services,324.75,MISCELLANEOUS AND SPECIALTY RETAIL STORES,2023-24Q2_PC0188
Sandwell Metropolitan Borough Council,https://www.sandwell.gov.uk/performance-spending/government-procurement-cards,11-Jul-2023,Childrens Services,AMZNMktplace,Childrens Services,11.29,MISCELLANEOUS AND SPECIALTY RETAIL STORES,2023-24Q2_PC0189
Sandwell Metropolitan Borough Council,https://www.sandwell.gov.uk/performance-spending/government-procurement-cards,11-Jul-2023,Childrens Services,AMZNMktplace,Childrens Services,20.49,MISCELLANEOUS AND SPECIALTY RETAIL STORES,2023-24Q2_PC0190
Sandwell Metropolitan Borough Council,https://www.sandwell.gov.uk/performance-spending/government-procurement-cards,11-Jul-2023,Childrens Services,AMZNMKTPLACE AMAZON.CO,Childrens Services,26.98,MISCELLANEOUS AND SPECIALTY RETAIL STORES,2023-24Q2_PC0191
Sandwell Metropolitan Borough Council,https://www.sandwell.gov.uk/performance-spending/government-procurement-cards,11-Jul-2023,Childrens Services,ASDA GROCERIES ONLINE,Childrens Services,120.98,"GROCERY STORES, SUPERMARKETS",2023-24Q2_PC0192
Sandwell Metropolitan Borough Council,https://www.sandwell.gov.uk/performance-spending/government-procurement-cards,11-Jul-2023,Childrens Services,BAKER ROSS,Childrens Services,242.46,"ARTIST SUPPLY STORES, CRAFT SHOPS",2023-24Q2_PC0193
Sandwell Metropolitan Borough Council,https://www.sandwell.gov.uk/performance-spending/government-procurement-cards,11-Jul-2023,Childrens Services,CARTRIDGEPEOPLE.COM,Childrens Services,93.9,STATIONERY/OFFICE SUPPLIES/PRINTING & WRITING PAP.,2023-24Q2_PC0194
Sandwell Metropolitan Borough Council,https://www.sandwell.gov.uk/performance-spending/government-procurement-cards,11-Jul-2023,Childrens Services,FARMFOODS 621,Childrens Services,19.95,"GROCERY STORES, SUPERMARKETS",2023-24Q2_PC0195
Sandwell Metropolitan Borough Council,https://www.sandwell.gov.uk/performance-spending/government-procurement-cards,11-Jul-2023,Childrens Services,LIDL GB PORTHMADOG,Childrens Services,77.4,"GROCERY STORES, SUPERMARKETS",2023-24Q2_PC0196
Sandwell Metropolitan Borough Council,https://www.sandwell.gov.uk/performance-spending/government-procurement-cards,11-Jul-2023,Childrens Services,LIDL GB PORTHMADOG,Childrens Services,66.87,"GROCERY STORES, SUPERMARKETS",2023-24Q2_PC0197
Sandwell Metropolitan Borough Council,https://www.sandwell.gov.uk/performance-spending/government-procurement-cards,11-Jul-2023,Childrens Services,NW MINE REPORTS,Childrens Services,217,"BANDS, ORCHESTRAS, & MISC ENTRTNRS-NOT ELSWHR CLAS",2023-24Q2_PC0198
Sandwell Metropolitan Borough Council,https://www.sandwell.gov.uk/performance-spending/government-procurement-cards,11-Jul-2023,Childrens Services,SP AVERN CLEANING LTD,Childrens Services,115.13,HOUSEHOLD APPLIANCE STORES,2023-24Q2_PC0199
Sandwell Metropolitan Borough Council,https://www.sandwell.gov.uk/performance-spending/government-procurement-cards,11-Jul-2023,Childrens Services,Temu.com,Childrens Services,115.08,MISCELLANEOUS GENERAL MERCHANDISE,2023-24Q2_PC0200
Sandwell Metropolitan Borough Council,https://www.sandwell.gov.uk/performance-spending/government-procurement-cards,11-Jul-2023,Childrens Services,TESCO STORES 2770,Childrens Services,53.39,"GROCERY STORES, SUPERMARKETS",2023-24Q2_PC0201
Sandwell Metropolitan Borough Council,https://www.sandwell.gov.uk/performance-spending/government-procurement-cards,11-Jul-2023,Childrens Services,TESCO STORES 2770,Childrens Services,-0.5,"GROCERY STORES, SUPERMARKETS",2023-24Q2_PC0202
Sandwell Metropolitan Borough Council,https://www.sandwell.gov.uk/performance-spending/government-procurement-cards,11-Jul-2023,Childrens Services,TESCO STORES 3057,Childrens Services,51.45,"GROCERY STORES, SUPERMARKETS",2023-24Q2_PC0203
Sandwell Metropolitan Borough Council,https://www.sandwell.gov.uk/performance-spending/government-procurement-cards,11-Jul-2023,Childrens Services,TESCO STORES 3057,Childrens Services,7.8,"GROCERY STORES, SUPERMARKETS",2023-24Q2_PC0204
Sandwell Metropolitan Borough Council,https://www.sandwell.gov.uk/performance-spending/government-procurement-cards,11-Jul-2023,Childrens Services,WWW.ARCO.CO.UK,Childrens Services,-18,INDUSTRIAL SUPPLIES NOT ELSEWHERE CLASSIFIED,2023-24Q2_PC0205
Sandwell Metropolitan Borough Council,https://www.sandwell.gov.uk/performance-spending/government-procurement-cards,11-Jul-2023,Childrens Services,WWW.NISBETS.COM,Childrens Services,59.98,DIRECT MARKETING-CATALOG MERCHANTS,2023-24Q2_PC0206
Sandwell Metropolitan Borough Council,https://www.sandwell.gov.uk/performance-spending/government-procurement-cards,11-Jul-2023,Childrens Services,WWW.NISBETS.COM,Childrens Services,15.34,DIRECT MARKETING-CATALOG MERCHANTS,2023-24Q2_PC0207
Sandwell Metropolitan Borough Council,https://www.sandwell.gov.uk/performance-spending/government-procurement-cards,11-Jul-2023,Housing & Assets Total,LB WASTE MANAGEMENT LI,Corporate Management,504,SALVAGE AND WRECKING YARDS,2023-24Q2_PC0208
Sandwell Metropolitan Borough Council,https://www.sandwell.gov.uk/performance-spending/government-procurement-cards,11-Jul-2023,Total Borough Economy,ALDI 103 772,Total Adult Social Care,4.64,"GROCERY STORES, SUPERMARKETS",2023-24Q2_PC0209
Sandwell Metropolitan Borough Council,https://www.sandwell.gov.uk/performance-spending/government-procurement-cards,11-Jul-2023,Total Borough Economy,ASDA STORES,Total Adult Social Care,11.85,"GROCERY STORES, SUPERMARKETS",2023-24Q2_PC0210
Sandwell Metropolitan Borough Council,https://www.sandwell.gov.uk/performance-spending/government-procurement-cards,11-Jul-2023,Total Borough Economy,DARLASTON BUILDERS MER,Total Adult Social Care,8.75,"BUILDING MATERIALS, LUMBER STORES",2023-24Q2_PC0211
Sandwell Metropolitan Borough Council,https://www.sandwell.gov.uk/performance-spending/government-procurement-cards,11-Jul-2023,Total Borough Economy,FACEBK YM69CSXMR2,Total Adult Social Care,14,ADVERTISING SERVICES,2023-24Q2_PC0212
Sandwell Metropolitan Borough Council,https://www.sandwell.gov.uk/performance-spending/government-procurement-cards,11-Jul-2023,Total Borough Economy,NISA LOCAL,Total Adult Social Care,5.34,"MISC FOOD STORE-CONVENIENCE,MRKT,SPLTY,VENDNG MACS",2023-24Q2_PC0213
Sandwell Metropolitan Borough Council,https://www.sandwell.gov.uk/performance-spending/government-procurement-cards,11-Jul-2023,Total Borough Economy,POUNDLAND LTD - 2528,Total Adult Social Care,1.55,DISCOUNT STORES,2023-24Q2_PC0214
Sandwell Metropolitan Borough Council,https://www.sandwell.gov.uk/performance-spending/government-procurement-cards,11-Jul-2023,Total Borough Economy,POUNDLAND LTD - 2528,Total Adult Social Care,-1.55,DISCOUNT STORES,2023-24Q2_PC0215
Sandwell Metropolitan Borough Council,https://www.sandwell.gov.uk/performance-spending/government-procurement-cards,11-Jul-2023,Total Borough Economy,WWW.OFFICETEAMCONNECT.,Total Adult Social Care,53.04,STATIONERY/OFFICE SUPPLIES/PRINTING & WRITING PAP.,2023-24Q2_PC0216
Sandwell Metropolitan Borough Council,https://www.sandwell.gov.uk/performance-spending/government-procurement-cards,11-Jul-2023,Total Borough Economy,WWW.PRINTED4YOU.COM,Total Adult Social Care,306,MISCELLANEOUS AND SPECIALTY RETAIL STORES,2023-24Q2_PC0217
Sandwell Metropolitan Borough Council,https://www.sandwell.gov.uk/performance-spending/government-procurement-cards,11-Jul-2023,Total Housing Revenue Account,AMZNMktplace,Total Housing Revenue Account,20.98,MISCELLANEOUS AND SPECIALTY RETAIL STORES,2023-24Q2_PC0218
Sandwell Metropolitan Borough Council,https://www.sandwell.gov.uk/performance-spending/government-procurement-cards,11-Jul-2023,Total Housing Revenue Account,AMZNMktplace,Total Housing Revenue Account,129.98,MISCELLANEOUS AND SPECIALTY RETAIL STORES,2023-24Q2_PC0219
Sandwell Metropolitan Borough Council,https://www.sandwell.gov.uk/performance-spending/government-procurement-cards,11-Jul-2023,Total Housing Revenue Account,AMZNMktplace,Total Housing Revenue Account,14.94,MISCELLANEOUS AND SPECIALTY RETAIL STORES,2023-24Q2_PC0220
Sandwell Metropolitan Borough Council,https://www.sandwell.gov.uk/performance-spending/government-procurement-cards,11-Jul-2023,Total Housing Revenue Account,AMZNMktplace,Total Housing Revenue Account,19.38,MISCELLANEOUS AND SPECIALTY RETAIL STORES,2023-24Q2_PC0221
Sandwell Metropolitan Borough Council,https://www.sandwell.gov.uk/performance-spending/government-procurement-cards,11-Jul-2023,Total Housing Revenue Account,AMZNMktplace,Total Housing Revenue Account,15.42,MISCELLANEOUS AND SPECIALTY RETAIL STORES,2023-24Q2_PC0222
Sandwell Metropolitan Borough Council,https://www.sandwell.gov.uk/performance-spending/government-procurement-cards,11-Jul-2023,Total Housing Revenue Account,AMZNMktplace,Total Housing Revenue Account,98,MISCELLANEOUS AND SPECIALTY RETAIL STORES,2023-24Q2_PC0223
Sandwell Metropolitan Borough Council,https://www.sandwell.gov.uk/performance-spending/government-procurement-cards,11-Jul-2023,Total Housing Revenue Account,AMZNMktplace,Total Housing Revenue Account,69.29,MISCELLANEOUS AND SPECIALTY RETAIL STORES,2023-24Q2_PC0224
Sandwell Metropolitan Borough Council,https://www.sandwell.gov.uk/performance-spending/government-procurement-cards,11-Jul-2023,Total Housing Revenue Account,AMZNMktplace,Total Housing Revenue Account,48.5,MISCELLANEOUS AND SPECIALTY RETAIL STORES,2023-24Q2_PC0225
Sandwell Metropolitan Borough Council,https://www.sandwell.gov.uk/performance-spending/government-procurement-cards,11-Jul-2023,Total Housing Revenue Account,AMZNMktplace,Total Housing Revenue Account,27.98,MISCELLANEOUS AND SPECIALTY RETAIL STORES,2023-24Q2_PC0226
Sandwell Metropolitan Borough Council,https://www.sandwell.gov.uk/performance-spending/government-procurement-cards,11-Jul-2023,Total Housing Revenue Account,AMZNMktplace,Total Housing Revenue Account,46.97,MISCELLANEOUS AND SPECIALTY RETAIL STORES,2023-24Q2_PC0227
Sandwell Metropolitan Borough Council,https://www.sandwell.gov.uk/performance-spending/government-procurement-cards,11-Jul-2023,Total Housing Revenue Account,AMZNMktplace,Total Housing Revenue Account,134.19,MISCELLANEOUS AND SPECIALTY RETAIL STORES,2023-24Q2_PC0228
Sandwell Metropolitan Borough Council,https://www.sandwell.gov.uk/performance-spending/government-procurement-cards,11-Jul-2023,Total Housing Revenue Account,WWW.OFFICETEAMCONNECT.,Total Housing Revenue Account,257.81,STATIONERY/OFFICE SUPPLIES/PRINTING & WRITING PAP.,2023-24Q2_PC0229
Sandwell Metropolitan Borough Council,https://www.sandwell.gov.uk/performance-spending/government-procurement-cards,12-Jul-2023,Law & Governance,AMZNMKTPLACE AMAZON.CO,Assistant Chief Executive (Excl SIU),6.49,MISCELLANEOUS AND SPECIALTY RETAIL STORES,2023-24Q2_PC0230
Sandwell Metropolitan Borough Council,https://www.sandwell.gov.uk/performance-spending/government-procurement-cards,12-Jul-2023,Assistant Chief Executive,WESTMINSTER INSIGHT,Assistant Chief Executive (Excl SIU),430.92,DIGITAL GOODS AUDIOVISUAL MEDIA,2023-24Q2_PC0231
Sandwell Metropolitan Borough Council,https://www.sandwell.gov.uk/performance-spending/government-procurement-cards,12-Jul-2023,Childrens Services,AMZNMktplace,Childrens Services,158.5,MISCELLANEOUS AND SPECIALTY RETAIL STORES,2023-24Q2_PC0232
Sandwell Metropolitan Borough Council,https://www.sandwell.gov.uk/performance-spending/government-procurement-cards,12-Jul-2023,Childrens Services,AMZNMktplace,Childrens Services,22.95,MISCELLANEOUS AND SPECIALTY RETAIL STORES,2023-24Q2_PC0233
Sandwell Metropolitan Borough Council,https://www.sandwell.gov.uk/performance-spending/government-procurement-cards,12-Jul-2023,Childrens Services,AMZNMktplace,Childrens Services,19.9,MISCELLANEOUS AND SPECIALTY RETAIL STORES,2023-24Q2_PC0234
Sandwell Metropolitan Borough Council,https://www.sandwell.gov.uk/performance-spending/government-procurement-cards,12-Jul-2023,Childrens Services,AMZNMKTPLACE AMAZON.CO,Childrens Services,184.8,MISCELLANEOUS AND SPECIALTY RETAIL STORES,2023-24Q2_PC0235
Sandwell Metropolitan Borough Council,https://www.sandwell.gov.uk/performance-spending/government-procurement-cards,12-Jul-2023,Childrens Services,ASDA GROCERIES ONLINE,Childrens Services,79.76,"GROCERY STORES, SUPERMARKETS",2023-24Q2_PC0236
Sandwell Metropolitan Borough Council,https://www.sandwell.gov.uk/performance-spending/government-procurement-cards,12-Jul-2023,Childrens Services,LAMPSHOPONLINE,Childrens Services,35.78,ELECTRONIC SALES,2023-24Q2_PC0237
Sandwell Metropolitan Borough Council,https://www.sandwell.gov.uk/performance-spending/government-procurement-cards,12-Jul-2023,Childrens Services,TESCO STORES 3057,Childrens Services,6,"GROCERY STORES, SUPERMARKETS",2023-24Q2_PC0238
Sandwell Metropolitan Borough Council,https://www.sandwell.gov.uk/performance-spending/government-procurement-cards,12-Jul-2023,Childrens Services,TESCO STORES 6481,Childrens Services,5.8,"GROCERY STORES, SUPERMARKETS",2023-24Q2_PC0239
Sandwell Metropolitan Borough Council,https://www.sandwell.gov.uk/performance-spending/government-procurement-cards,12-Jul-2023,Childrens Services,WM MORRISONS STORE,Childrens Services,18.49,"GROCERY STORES, SUPERMARKETS",2023-24Q2_PC0240
Sandwell Metropolitan Borough Council,https://www.sandwell.gov.uk/performance-spending/government-procurement-cards,12-Jul-2023,Housing & Assets Total,ASDA STORES,Corporate Management,53.19,"GROCERY STORES, SUPERMARKETS",2023-24Q2_PC0241
Sandwell Metropolitan Borough Council,https://www.sandwell.gov.uk/performance-spending/government-procurement-cards,12-Jul-2023,Housing & Assets Total,CANVA  I03843-16465155,Corporate Management,99.99,PHOTOGRAPHIC STUDIOS,2023-24Q2_PC0242
Sandwell Metropolitan Borough Council,https://www.sandwell.gov.uk/performance-spending/government-procurement-cards,12-Jul-2023,Individual School Budgets With Inclusion,AMZNMKTPLACE AMAZON.CO,Individual School Budgets With Inclusion,4.99,MISCELLANEOUS AND SPECIALTY RETAIL STORES,2023-24Q2_PC0243
Sandwell Metropolitan Borough Council,https://www.sandwell.gov.uk/performance-spending/government-procurement-cards,12-Jul-2023,Total Public Health,AMZNMktplace,Public Health,95.32,MISCELLANEOUS AND SPECIALTY RETAIL STORES,2023-24Q2_PC0244
Sandwell Metropolitan Borough Council,https://www.sandwell.gov.uk/performance-spending/government-procurement-cards,12-Jul-2023,Regeneration & Growth,WWW.BRITISHGAS.CO.,Regeneration And The Economy,250,"UTLTS-ELCTRC, GAS, HEATING OIL, SANITARY, WATER",2023-24Q2_PC0245
Sandwell Metropolitan Borough Council,https://www.sandwell.gov.uk/performance-spending/government-procurement-cards,12-Jul-2023,Regeneration & Growth,WWW.BRITISHGAS.CO.,Regeneration And The Economy,136.88,"UTLTS-ELCTRC, GAS, HEATING OIL, SANITARY, WATER",2023-24Q2_PC0246
Sandwell Metropolitan Borough Council,https://www.sandwell.gov.uk/performance-spending/government-procurement-cards,12-Jul-2023,Total ASCHWB,Amazon.co.uk HM4K75AE5,Total Adult Social Care,199.27,DIRECT MARKETING-OTHER DIRECT MARKETERS/NOT ELSEW.,2023-24Q2_PC0247
Sandwell Metropolitan Borough Council,https://www.sandwell.gov.uk/performance-spending/government-procurement-cards,12-Jul-2023,Total ASCHWB,AMZNMktplace,Total Adult Social Care,22.48,MISCELLANEOUS AND SPECIALTY RETAIL STORES,2023-24Q2_PC0248
Sandwell Metropolitan Borough Council,https://www.sandwell.gov.uk/performance-spending/government-procurement-cards,12-Jul-2023,Total Borough Economy,AMZNMktplace,Total Adult Social Care,21.47,MISCELLANEOUS AND SPECIALTY RETAIL STORES,2023-24Q2_PC0249
Sandwell Metropolitan Borough Council,https://www.sandwell.gov.uk/performance-spending/government-procurement-cards,12-Jul-2023,Total Borough Economy,AMZNMKTPLACE AMAZON.CO,Total Adult Social Care,19.97,MISCELLANEOUS AND SPECIALTY RETAIL STORES,2023-24Q2_PC0250
Sandwell Metropolitan Borough Council,https://www.sandwell.gov.uk/performance-spending/government-procurement-cards,12-Jul-2023,Total ASCHWB,FIXXON,Total Adult Social Care,26,NURSING AND PERSONAL CARE FACILITIES,2023-24Q2_PC0251
Sandwell Metropolitan Borough Council,https://www.sandwell.gov.uk/performance-spending/government-procurement-cards,12-Jul-2023,Total Borough Economy,HANDY LABELS,Total Adult Social Care,81.3,MISCELLANEOUS PUBLISHING AND PRINTING,2023-24Q2_PC0252
Sandwell Metropolitan Borough Council,https://www.sandwell.gov.uk/performance-spending/government-procurement-cards,12-Jul-2023,Total Borough Economy,HOMEBASE LTD 085,Total Adult Social Care,16,HOME SUPPLY WAREHOUSE STORES,2023-24Q2_PC0253
Sandwell Metropolitan Borough Council,https://www.sandwell.gov.uk/performance-spending/government-procurement-cards,12-Jul-2023,Total Borough Economy,POUNDLAND LTD - 1729,Total Adult Social Care,2,DISCOUNT STORES,2023-24Q2_PC0254
Sandwell Metropolitan Borough Council,https://www.sandwell.gov.uk/performance-spending/government-procurement-cards,12-Jul-2023,Total Borough Economy,ROTACLOUD,Total Adult Social Care,412.8,COMPUTER SOFTWARE STORES,2023-24Q2_PC0255
Sandwell Metropolitan Borough Council,https://www.sandwell.gov.uk/performance-spending/government-procurement-cards,12-Jul-2023,Total Borough Economy,TILLROLLSTHERMAL,Total Adult Social Care,18.6,STATIONERY/OFFICE SUPPLIES/PRINTING & WRITING PAP.,2023-24Q2_PC0256
Sandwell Metropolitan Borough Council,https://www.sandwell.gov.uk/performance-spending/government-procurement-cards,12-Jul-2023,Total Borough Economy,VIKING OFFICE UK LIMIT,Total Adult Social Care,124.5,STATIONERY/OFFICE SUPPLIES/PRINTING & WRITING PAP.,2023-24Q2_PC0257
Sandwell Metropolitan Borough Council,https://www.sandwell.gov.uk/performance-spending/government-procurement-cards,12-Jul-2023,Total Borough Economy,WWW.BUYSHEDSDIRECT.CO.,Total Adult Social Care,519.96,"BUILDING MATERIALS, LUMBER STORES",2023-24Q2_PC0258
Sandwell Metropolitan Borough Council,https://www.sandwell.gov.uk/performance-spending/government-procurement-cards,12-Jul-2023,Total Borough Economy,WWW.HOTLINE.CO.UK,Total Adult Social Care,302.4,"OFFICE, SCHOOL SUPPLY, AND STATIONERY STORES",2023-24Q2_PC0259
Sandwell Metropolitan Borough Council,https://www.sandwell.gov.uk/performance-spending/government-procurement-cards,12-Jul-2023,Total Borough Economy,WWW.NISBETS.COM,Total Adult Social Care,496.63,DIRECT MARKETING-CATALOG MERCHANTS,2023-24Q2_PC0260
Sandwell Metropolitan Borough Council,https://www.sandwell.gov.uk/performance-spending/government-procurement-cards,12-Jul-2023,Total Housing Revenue Account,AMZNMktplace,Total Housing Revenue Account,69.98,MISCELLANEOUS AND SPECIALTY RETAIL STORES,2023-24Q2_PC0261
Sandwell Metropolitan Borough Council,https://www.sandwell.gov.uk/performance-spending/government-procurement-cards,13-Jul-2023,Law & Governance,SAINSBURYS S/MKTS,Assistant Chief Executive (Excl SIU),8.15,"GROCERY STORES, SUPERMARKETS",2023-24Q2_PC0262
Sandwell Metropolitan Borough Council,https://www.sandwell.gov.uk/performance-spending/government-procurement-cards,13-Jul-2023,Assistant Chief Executive,WWW.NUMED.CO.UK,Assistant Chief Executive (Excl SIU),139.02,DENTAL/LAB/MED/OPHTHALMIC HOSP EQUIP & SUPPLIES,2023-24Q2_PC0263
Sandwell Metropolitan Borough Council,https://www.sandwell.gov.uk/performance-spending/government-procurement-cards,13-Jul-2023,Law & Governance,WWW.OFFICETEAMCONNECT.,Assistant Chief Executive (Excl SIU),194.15,STATIONERY/OFFICE SUPPLIES/PRINTING & WRITING PAP.,2023-24Q2_PC0264
Sandwell Metropolitan Borough Council,https://www.sandwell.gov.uk/performance-spending/government-procurement-cards,13-Jul-2023,Childrens Services,AMZNMktplace,Childrens Services,46.71,MISCELLANEOUS AND SPECIALTY RETAIL STORES,2023-24Q2_PC0265
Sandwell Metropolitan Borough Council,https://www.sandwell.gov.uk/performance-spending/government-procurement-cards,13-Jul-2023,Childrens Services,AMZNMktplace,Childrens Services,17.44,MISCELLANEOUS AND SPECIALTY RETAIL STORES,2023-24Q2_PC0266
Sandwell Metropolitan Borough Council,https://www.sandwell.gov.uk/performance-spending/government-procurement-cards,13-Jul-2023,Childrens Services,AMZNMktplace,Childrens Services,19.99,MISCELLANEOUS AND SPECIALTY RETAIL STORES,2023-24Q2_PC0267
Sandwell Metropolitan Borough Council,https://www.sandwell.gov.uk/performance-spending/government-procurement-cards,13-Jul-2023,Childrens Services,ASDA GROCERIES ONLINE,Childrens Services,-20,"GROCERY STORES, SUPERMARKETS",2023-24Q2_PC0268
Sandwell Metropolitan Borough Council,https://www.sandwell.gov.uk/performance-spending/government-procurement-cards,13-Jul-2023,Childrens Services,ASDA GROCERIES ONLINE,Childrens Services,49.75,"GROCERY STORES, SUPERMARKETS",2023-24Q2_PC0269
Sandwell Metropolitan Borough Council,https://www.sandwell.gov.uk/performance-spending/government-procurement-cards,13-Jul-2023,Childrens Services,ASDA GROCERIES ONLINE,Childrens Services,23.8,"GROCERY STORES, SUPERMARKETS",2023-24Q2_PC0270
Sandwell Metropolitan Borough Council,https://www.sandwell.gov.uk/performance-spending/government-procurement-cards,13-Jul-2023,Childrens Services,ASDA SUPERSTORE,Childrens Services,88,"GROCERY STORES, SUPERMARKETS",2023-24Q2_PC0271
Sandwell Metropolitan Borough Council,https://www.sandwell.gov.uk/performance-spending/government-procurement-cards,13-Jul-2023,Childrens Services,TESCO STORES 2770,Childrens Services,15,"GROCERY STORES, SUPERMARKETS",2023-24Q2_PC0272
Sandwell Metropolitan Borough Council,https://www.sandwell.gov.uk/performance-spending/government-procurement-cards,13-Jul-2023,Corporate Management,AMZNMktplace,Corporate Management,41.98,MISCELLANEOUS AND SPECIALTY RETAIL STORES,2023-24Q2_PC0273
Sandwell Metropolitan Borough Council,https://www.sandwell.gov.uk/performance-spending/government-procurement-cards,13-Jul-2023,Corporate Management,AMZNMktplace,Corporate Management,37.58,MISCELLANEOUS AND SPECIALTY RETAIL STORES,2023-24Q2_PC0274
Sandwell Metropolitan Borough Council,https://www.sandwell.gov.uk/performance-spending/government-procurement-cards,13-Jul-2023,Housing & Assets Total,ASDA STORES,Corporate Management,4.5,"GROCERY STORES, SUPERMARKETS",2023-24Q2_PC0275
Sandwell Metropolitan Borough Council,https://www.sandwell.gov.uk/performance-spending/government-procurement-cards,13-Jul-2023,Housing & Assets Total,ASDA STORES,Corporate Management,7.25,"GROCERY STORES, SUPERMARKETS",2023-24Q2_PC0276
Sandwell Metropolitan Borough Council,https://www.sandwell.gov.uk/performance-spending/government-procurement-cards,13-Jul-2023,Housing & Assets Total,ASDA STORES,Corporate Management,7,"GROCERY STORES, SUPERMARKETS",2023-24Q2_PC0277
Sandwell Metropolitan Borough Council,https://www.sandwell.gov.uk/performance-spending/government-procurement-cards,13-Jul-2023,Housing & Assets Total,STATION HOTEL,Corporate Management,1000,"LODGING-HOTELS,MOTELS,RESORTS-NOT CLASSIFIED",2023-24Q2_PC0278
Sandwell Metropolitan Borough Council,https://www.sandwell.gov.uk/performance-spending/government-procurement-cards,13-Jul-2023,Housing & Assets Total,STATION HOTEL,Corporate Management,575,"LODGING-HOTELS,MOTELS,RESORTS-NOT CLASSIFIED",2023-24Q2_PC0279
Sandwell Metropolitan Borough Council,https://www.sandwell.gov.uk/performance-spending/government-procurement-cards,13-Jul-2023,Housing & Assets Total,WWW.ARGOS.CO.UK,Corporate Management,33.95,DEPARTMENT STORES,2023-24Q2_PC0280
Sandwell Metropolitan Borough Council,https://www.sandwell.gov.uk/performance-spending/government-procurement-cards,13-Jul-2023,Individual School Budgets With Inclusion,ASDA GROCERIES ONLINE,Individual School Budgets With Inclusion,59,"GROCERY STORES, SUPERMARKETS",2023-24Q2_PC0281
Sandwell Metropolitan Borough Council,https://www.sandwell.gov.uk/performance-spending/government-procurement-cards,13-Jul-2023,Regeneration & Growth,WWW.BRITISHGAS.CO.,Regeneration And The Economy,224.7,"UTLTS-ELCTRC, GAS, HEATING OIL, SANITARY, WATER",2023-24Q2_PC0282
Sandwell Metropolitan Borough Council,https://www.sandwell.gov.uk/performance-spending/government-procurement-cards,13-Jul-2023,Total ASCHWB,AMZNMktplace,Total Adult Social Care,169.23,MISCELLANEOUS AND SPECIALTY RETAIL STORES,2023-24Q2_PC0283
Sandwell Metropolitan Borough Council,https://www.sandwell.gov.uk/performance-spending/government-procurement-cards,13-Jul-2023,Total Borough Economy,AMZNMktplace,Total Adult Social Care,79.71,MISCELLANEOUS AND SPECIALTY RETAIL STORES,2023-24Q2_PC0284
Sandwell Metropolitan Borough Council,https://www.sandwell.gov.uk/performance-spending/government-procurement-cards,13-Jul-2023,Total Borough Economy,AMZNMktplace,Total Adult Social Care,97.29,MISCELLANEOUS AND SPECIALTY RETAIL STORES,2023-24Q2_PC0285
Sandwell Metropolitan Borough Council,https://www.sandwell.gov.uk/performance-spending/government-procurement-cards,13-Jul-2023,Total Borough Economy,AMZNMKTPLACE AMAZON.CO,Total Adult Social Care,12.31,MISCELLANEOUS AND SPECIALTY RETAIL STORES,2023-24Q2_PC0286
Sandwell Metropolitan Borough Council,https://www.sandwell.gov.uk/performance-spending/government-procurement-cards,13-Jul-2023,Total Borough Economy,HANDY LABELS,Total Adult Social Care,131.64,MISCELLANEOUS PUBLISHING AND PRINTING,2023-24Q2_PC0287
Sandwell Metropolitan Borough Council,https://www.sandwell.gov.uk/performance-spending/government-procurement-cards,13-Jul-2023,Total Borough Economy,STAR SUPERMARKET,Total Adult Social Care,4.56,"MISC FOOD STORE-CONVENIENCE,MRKT,SPLTY,VENDNG MACS",2023-24Q2_PC0288
Sandwell Metropolitan Borough Council,https://www.sandwell.gov.uk/performance-spending/government-procurement-cards,13-Jul-2023,Total Borough Economy,VIKING OFFICE UK LIMIT,Total Adult Social Care,147.34,STATIONERY/OFFICE SUPPLIES/PRINTING & WRITING PAP.,2023-24Q2_PC0289
Sandwell Metropolitan Borough Council,https://www.sandwell.gov.uk/performance-spending/government-procurement-cards,13-Jul-2023,Total ASCHWB,VISION COMMERCIAL KITC,Total Adult Social Care,166.2,"COMMERCIAL EQUIPMENT, NOT ELSEWHERE CLASSIFIED",2023-24Q2_PC0290
Sandwell Metropolitan Borough Council,https://www.sandwell.gov.uk/performance-spending/government-procurement-cards,13-Jul-2023,Total Housing Revenue Account,CAPITA GAS,Total Housing Revenue Account,35.4,"ORGANIZATIONS, MEMBERSHIP-NOT ELSEWHERE CLASSIFIED",2023-24Q2_PC0291
Sandwell Metropolitan Borough Council,https://www.sandwell.gov.uk/performance-spending/government-procurement-cards,13-Jul-2023,Total Housing Revenue Account,STAFFORDSHIRE BUILDER,Total Housing Revenue Account,86.07,"BUILDING MATERIALS, LUMBER STORES",2023-24Q2_PC0292
Sandwell Metropolitan Borough Council,https://www.sandwell.gov.uk/performance-spending/government-procurement-cards,14-Jul-2023,Law & Governance,AMZNMktplace,Assistant Chief Executive (Excl SIU),136.52,MISCELLANEOUS AND SPECIALTY RETAIL STORES,2023-24Q2_PC0293
Sandwell Metropolitan Borough Council,https://www.sandwell.gov.uk/performance-spending/government-procurement-cards,14-Jul-2023,Childrens Services,Amazon.co.uk HP1B46CM5,Childrens Services,53.29,DIRECT MARKETING-OTHER DIRECT MARKETERS/NOT ELSEW.,2023-24Q2_PC0294
Sandwell Metropolitan Borough Council,https://www.sandwell.gov.uk/performance-spending/government-procurement-cards,14-Jul-2023,Childrens Services,AMZ Invero,Childrens Services,-9.95,MISCELLANEOUS AND SPECIALTY RETAIL STORES,2023-24Q2_PC0295
Sandwell Metropolitan Borough Council,https://www.sandwell.gov.uk/performance-spending/government-procurement-cards,14-Jul-2023,Childrens Services,AMZNMktplace,Childrens Services,63.52,MISCELLANEOUS AND SPECIALTY RETAIL STORES,2023-24Q2_PC0296
Sandwell Metropolitan Borough Council,https://www.sandwell.gov.uk/performance-spending/government-procurement-cards,14-Jul-2023,Childrens Services,AMZNMktplace,Childrens Services,230.89,MISCELLANEOUS AND SPECIALTY RETAIL STORES,2023-24Q2_PC0297
Sandwell Metropolitan Borough Council,https://www.sandwell.gov.uk/performance-spending/government-procurement-cards,14-Jul-2023,Childrens Services,AMZNMKTPLACE AMAZON.CO,Childrens Services,33.54,MISCELLANEOUS AND SPECIALTY RETAIL STORES,2023-24Q2_PC0298
Sandwell Metropolitan Borough Council,https://www.sandwell.gov.uk/performance-spending/government-procurement-cards,14-Jul-2023,Childrens Services,ASDA GROCERIES ONLINE,Childrens Services,-0.01,"GROCERY STORES, SUPERMARKETS",2023-24Q2_PC0299
Sandwell Metropolitan Borough Council,https://www.sandwell.gov.uk/performance-spending/government-procurement-cards,14-Jul-2023,Childrens Services,ASDA GROCERIES ONLINE,Childrens Services,53.64,"GROCERY STORES, SUPERMARKETS",2023-24Q2_PC0300
Sandwell Metropolitan Borough Council,https://www.sandwell.gov.uk/performance-spending/government-procurement-cards,14-Jul-2023,Childrens Services,Etsy.com - Badgemaster,Childrens Services,12.29,MISCELLANEOUS GENERAL MERCHANDISE,2023-24Q2_PC0301
Sandwell Metropolitan Borough Council,https://www.sandwell.gov.uk/performance-spending/government-procurement-cards,14-Jul-2023,Childrens Services,PAYPAL  MENZ PRINT,Childrens Services,102,MISCELLANEOUS PUBLISHING AND PRINTING,2023-24Q2_PC0302
Sandwell Metropolitan Borough Council,https://www.sandwell.gov.uk/performance-spending/government-procurement-cards,14-Jul-2023,Childrens Services,POST OFFICE COUNTER,Childrens Services,1.85,POSTAL SERVICES-GOVERNMENT ONLY,2023-24Q2_PC0303
Sandwell Metropolitan Borough Council,https://www.sandwell.gov.uk/performance-spending/government-procurement-cards,14-Jul-2023,Childrens Services,POUNDLAND LTD - 1729,Childrens Services,58.75,DISCOUNT STORES,2023-24Q2_PC0304
Sandwell Metropolitan Borough Council,https://www.sandwell.gov.uk/performance-spending/government-procurement-cards,14-Jul-2023,Childrens Services,POUNDLAND LTD - 1792,Childrens Services,76,DISCOUNT STORES,2023-24Q2_PC0305
Sandwell Metropolitan Borough Council,https://www.sandwell.gov.uk/performance-spending/government-procurement-cards,14-Jul-2023,Childrens Services,RONTEC DUDLEY PORT,Childrens Services,3.3,SERVICE STATIONS WITH OR WITHOUT ANCILLARY SERVICE,2023-24Q2_PC0306
Sandwell Metropolitan Borough Council,https://www.sandwell.gov.uk/performance-spending/government-procurement-cards,14-Jul-2023,Corporate Management,AMZNMktplace,Corporate Management,37.58,MISCELLANEOUS AND SPECIALTY RETAIL STORES,2023-24Q2_PC0307
Sandwell Metropolitan Borough Council,https://www.sandwell.gov.uk/performance-spending/government-procurement-cards,14-Jul-2023,Corporate Management,AMZNMKTPLACE AMAZON.CO,Corporate Management,37.58,MISCELLANEOUS AND SPECIALTY RETAIL STORES,2023-24Q2_PC0308
Sandwell Metropolitan Borough Council,https://www.sandwell.gov.uk/performance-spending/government-procurement-cards,14-Jul-2023,Corporate Management,AMZNMKTPLACE AMAZON.CO,Corporate Management,37.58,MISCELLANEOUS AND SPECIALTY RETAIL STORES,2023-24Q2_PC0309
Sandwell Metropolitan Borough Council,https://www.sandwell.gov.uk/performance-spending/government-procurement-cards,14-Jul-2023,Housing & Assets Total,ASDA STORES,Corporate Management,19.75,"GROCERY STORES, SUPERMARKETS",2023-24Q2_PC0310
Sandwell Metropolitan Borough Council,https://www.sandwell.gov.uk/performance-spending/government-procurement-cards,14-Jul-2023,Individual School Budgets With Inclusion,London NW,Individual School Budgets With Inclusion,53,PASSENGER RAILWAYS,2023-24Q2_PC0311
Sandwell Metropolitan Borough Council,https://www.sandwell.gov.uk/performance-spending/government-procurement-cards,14-Jul-2023,Individual School Budgets With Inclusion,WWW.OFFICETEAMCONNECT.,Individual School Budgets With Inclusion,106.57,STATIONERY/OFFICE SUPPLIES/PRINTING & WRITING PAP.,2023-24Q2_PC0312
Sandwell Metropolitan Borough Council,https://www.sandwell.gov.uk/performance-spending/government-procurement-cards,14-Jul-2023,Total Public Health,Amazon.co.uk 1S8DT1N04,Public Health,39.95,DIRECT MARKETING-OTHER DIRECT MARKETERS/NOT ELSEW.,2023-24Q2_PC0313
Sandwell Metropolitan Borough Council,https://www.sandwell.gov.uk/performance-spending/government-procurement-cards,14-Jul-2023,Total Public Health,AQUAID WATERCOOLERS,Public Health,436.8,MISCELLANEOUS GENERAL MERCHANDISE,2023-24Q2_PC0314
Sandwell Metropolitan Borough Council,https://www.sandwell.gov.uk/performance-spending/government-procurement-cards,14-Jul-2023,Total Public Health,ICELAND 1603,Public Health,33.85,"GROCERY STORES, SUPERMARKETS",2023-24Q2_PC0315
Sandwell Metropolitan Borough Council,https://www.sandwell.gov.uk/performance-spending/government-procurement-cards,14-Jul-2023,Regeneration & Growth,Amazon.co.uk FW2OA37S5,Regeneration And The Economy,25.48,DIRECT MARKETING-OTHER DIRECT MARKETERS/NOT ELSEW.,2023-24Q2_PC0316
Sandwell Metropolitan Borough Council,https://www.sandwell.gov.uk/performance-spending/government-procurement-cards,14-Jul-2023,Regeneration & Growth,AMZNMktplace,Regeneration And The Economy,6.98,MISCELLANEOUS AND SPECIALTY RETAIL STORES,2023-24Q2_PC0317
Sandwell Metropolitan Borough Council,https://www.sandwell.gov.uk/performance-spending/government-procurement-cards,14-Jul-2023,Regeneration & Growth,PROCONFERENCES.COM,Regeneration And The Economy,142.8,"COLLEGES, UNIV, PRO SCHOOLS, JUNIOR COLLEGES",2023-24Q2_PC0318
Sandwell Metropolitan Borough Council,https://www.sandwell.gov.uk/performance-spending/government-procurement-cards,14-Jul-2023,Regeneration & Growth,SSE ENERGY SOLUTIONS,Regeneration And The Economy,94.8,"UTLTS-ELCTRC, GAS, HEATING OIL, SANITARY, WATER",2023-24Q2_PC0319
Sandwell Metropolitan Borough Council,https://www.sandwell.gov.uk/performance-spending/government-procurement-cards,14-Jul-2023,Total ASCHWB,Amazon.co.uk FU6MQ4YP5,Total Adult Social Care,165.57,DIRECT MARKETING-OTHER DIRECT MARKETERS/NOT ELSEW.,2023-24Q2_PC0320
Sandwell Metropolitan Borough Council,https://www.sandwell.gov.uk/performance-spending/government-procurement-cards,14-Jul-2023,Total ASCHWB,AMZNMktplace,Total Adult Social Care,66.9,MISCELLANEOUS AND SPECIALTY RETAIL STORES,2023-24Q2_PC0321
Sandwell Metropolitan Borough Council,https://www.sandwell.gov.uk/performance-spending/government-procurement-cards,14-Jul-2023,Total Borough Economy,AMZNMktplace,Total Adult Social Care,136.28,MISCELLANEOUS AND SPECIALTY RETAIL STORES,2023-24Q2_PC0322
Sandwell Metropolitan Borough Council,https://www.sandwell.gov.uk/performance-spending/government-procurement-cards,14-Jul-2023,Total Borough Economy,AMZNMktplace,Total Adult Social Care,403.81,MISCELLANEOUS AND SPECIALTY RETAIL STORES,2023-24Q2_PC0323
Sandwell Metropolitan Borough Council,https://www.sandwell.gov.uk/performance-spending/government-procurement-cards,14-Jul-2023,Total Borough Economy,AMZNMktplace,Total Adult Social Care,69.98,MISCELLANEOUS AND SPECIALTY RETAIL STORES,2023-24Q2_PC0324
Sandwell Metropolitan Borough Council,https://www.sandwell.gov.uk/performance-spending/government-procurement-cards,14-Jul-2023,Total Borough Economy,AMZNMktplace,Total Adult Social Care,422.98,MISCELLANEOUS AND SPECIALTY RETAIL STORES,2023-24Q2_PC0325
Sandwell Metropolitan Borough Council,https://www.sandwell.gov.uk/performance-spending/government-procurement-cards,14-Jul-2023,Total Borough Economy,AMZNMktplace,Total Adult Social Care,21.99,MISCELLANEOUS AND SPECIALTY RETAIL STORES,2023-24Q2_PC0326
Sandwell Metropolitan Borough Council,https://www.sandwell.gov.uk/performance-spending/government-procurement-cards,14-Jul-2023,Total ASCHWB,AMZNMKTPLACE AMAZON.CO,Total Adult Social Care,60.82,MISCELLANEOUS AND SPECIALTY RETAIL STORES,2023-24Q2_PC0327
Sandwell Metropolitan Borough Council,https://www.sandwell.gov.uk/performance-spending/government-procurement-cards,14-Jul-2023,Total Borough Economy,CLR www.paints4trade.,Total Adult Social Care,479.89,"PAINTS,VARNISHES AND SUPPLIES",2023-24Q2_PC0328
Sandwell Metropolitan Borough Council,https://www.sandwell.gov.uk/performance-spending/government-procurement-cards,14-Jul-2023,Total Borough Economy,DARLASTON BUILDERS MER,Total Adult Social Care,86.4,"BUILDING MATERIALS, LUMBER STORES",2023-24Q2_PC0329
Sandwell Metropolitan Borough Council,https://www.sandwell.gov.uk/performance-spending/government-procurement-cards,14-Jul-2023,Total Borough Economy,HANDY LABELS,Total Adult Social Care,-81.3,MISCELLANEOUS PUBLISHING AND PRINTING,2023-24Q2_PC0330
Sandwell Metropolitan Borough Council,https://www.sandwell.gov.uk/performance-spending/government-procurement-cards,14-Jul-2023,Total Borough Economy,HOUSE OF MARBLES,Total Adult Social Care,431.38,MISCELLANEOUS GENERAL MERCHANDISE,2023-24Q2_PC0331
Sandwell Metropolitan Borough Council,https://www.sandwell.gov.uk/performance-spending/government-procurement-cards,14-Jul-2023,Total Borough Economy,IKEA LTD SHOP ONLINE,Total Adult Social Care,125,"EQUIP, FURNITURE, HOME FURNSHNGS STRS (EXCPT APPL)",2023-24Q2_PC0332
Sandwell Metropolitan Borough Council,https://www.sandwell.gov.uk/performance-spending/government-procurement-cards,14-Jul-2023,Total Borough Economy,IKEA LTD SHOP ONLINE,Total Adult Social Care,125,"EQUIP, FURNITURE, HOME FURNSHNGS STRS (EXCPT APPL)",2023-24Q2_PC0333
Sandwell Metropolitan Borough Council,https://www.sandwell.gov.uk/performance-spending/government-procurement-cards,14-Jul-2023,Total Borough Economy,SECURITY INDUSTRY AUTH,Total Adult Social Care,184,GOVERNMENT SERVICES-NOT ELSEWHERE CLASSIFIED,2023-24Q2_PC0334
Sandwell Metropolitan Borough Council,https://www.sandwell.gov.uk/performance-spending/government-procurement-cards,14-Jul-2023,Total ASCHWB,VIKING OFFICE UK LIMIT,Total Adult Social Care,198.9,STATIONERY/OFFICE SUPPLIES/PRINTING & WRITING PAP.,2023-24Q2_PC0335
Sandwell Metropolitan Borough Council,https://www.sandwell.gov.uk/performance-spending/government-procurement-cards,14-Jul-2023,Total Borough Economy,Vistaprint,Total Adult Social Care,112.26,BUSINESS SERVICES-NOT ELSEWHERE CLASSIFIED,2023-24Q2_PC0336
Sandwell Metropolitan Borough Council,https://www.sandwell.gov.uk/performance-spending/government-procurement-cards,14-Jul-2023,Total ASCHWB,WWW.ARGOS.CO.UK,Total Adult Social Care,156.99,DEPARTMENT STORES,2023-24Q2_PC0337
Sandwell Metropolitan Borough Council,https://www.sandwell.gov.uk/performance-spending/government-procurement-cards,14-Jul-2023,Total Borough Economy,WWW.NISBETS.COM,Total Adult Social Care,356.31,DIRECT MARKETING-CATALOG MERCHANTS,2023-24Q2_PC0338
Sandwell Metropolitan Borough Council,https://www.sandwell.gov.uk/performance-spending/government-procurement-cards,14-Jul-2023,Total Borough Economy,WWW.OFFICETEAMCONNECT.,Total Adult Social Care,318.96,STATIONERY/OFFICE SUPPLIES/PRINTING & WRITING PAP.,2023-24Q2_PC0339
Sandwell Metropolitan Borough Council,https://www.sandwell.gov.uk/performance-spending/government-procurement-cards,17-Jul-2023,Law & Governance,Amazon Prime 1S60R86T5,Assistant Chief Executive (Excl SIU),8.99,DIRECT MARKETING-CONTINUITY/SUBSCRIPTION MERCHANTS,2023-24Q2_PC0340
Sandwell Metropolitan Borough Council,https://www.sandwell.gov.uk/performance-spending/government-procurement-cards,17-Jul-2023,Assistant Chief Executive,AMZNMktplace,Assistant Chief Executive (Excl SIU),48.98,MISCELLANEOUS AND SPECIALTY RETAIL STORES,2023-24Q2_PC0341
Sandwell Metropolitan Borough Council,https://www.sandwell.gov.uk/performance-spending/government-procurement-cards,17-Jul-2023,FINANCE (Inc SIU),AMZNMktplace,Assistant Chief Executive (Excl SIU),21.99,MISCELLANEOUS AND SPECIALTY RETAIL STORES,2023-24Q2_PC0342
Sandwell Metropolitan Borough Council,https://www.sandwell.gov.uk/performance-spending/government-procurement-cards,17-Jul-2023,FINANCE (Inc SIU),AMZNMktplace,Assistant Chief Executive (Excl SIU),35.96,MISCELLANEOUS AND SPECIALTY RETAIL STORES,2023-24Q2_PC0343
Sandwell Metropolitan Borough Council,https://www.sandwell.gov.uk/performance-spending/government-procurement-cards,17-Jul-2023,FINANCE (Inc SIU),AMZNMktplace,Assistant Chief Executive (Excl SIU),26.39,MISCELLANEOUS AND SPECIALTY RETAIL STORES,2023-24Q2_PC0344
Sandwell Metropolitan Borough Council,https://www.sandwell.gov.uk/performance-spending/government-procurement-cards,17-Jul-2023,Law & Governance,ICELAND 1603,Assistant Chief Executive (Excl SIU),12.2,"GROCERY STORES, SUPERMARKETS",2023-24Q2_PC0345
Sandwell Metropolitan Borough Council,https://www.sandwell.gov.uk/performance-spending/government-procurement-cards,17-Jul-2023,FINANCE (Inc SIU),REMARKABLE,Assistant Chief Executive (Excl SIU),2.99,ELECTRONIC SALES,2023-24Q2_PC0346
Sandwell Metropolitan Borough Council,https://www.sandwell.gov.uk/performance-spending/government-procurement-cards,17-Jul-2023,Childrens Services,JUNGLE BUGS,Childrens Services,13.6,RECREATIONAL AND SPORTING CAMPS,2023-24Q2_PC0347
Sandwell Metropolitan Borough Council,https://www.sandwell.gov.uk/performance-spending/government-procurement-cards,17-Jul-2023,Childrens Services,Amazon.co.uk JP0RK5YN5,Childrens Services,125.4,DIRECT MARKETING-OTHER DIRECT MARKETERS/NOT ELSEW.,2023-24Q2_PC0348
Sandwell Metropolitan Borough Council,https://www.sandwell.gov.uk/performance-spending/government-procurement-cards,17-Jul-2023,Childrens Services,Amazon.co.uk NL2A03CW5,Childrens Services,63.84,DIRECT MARKETING-OTHER DIRECT MARKETERS/NOT ELSEW.,2023-24Q2_PC0349
Sandwell Metropolitan Borough Council,https://www.sandwell.gov.uk/performance-spending/government-procurement-cards,17-Jul-2023,Childrens Services,Amazon.co.uk QS3I59NU5,Childrens Services,43.93,DIRECT MARKETING-OTHER DIRECT MARKETERS/NOT ELSEW.,2023-24Q2_PC0350
Sandwell Metropolitan Borough Council,https://www.sandwell.gov.uk/performance-spending/government-procurement-cards,17-Jul-2023,Childrens Services,AMZNMktplace,Childrens Services,167.92,MISCELLANEOUS AND SPECIALTY RETAIL STORES,2023-24Q2_PC0351
Sandwell Metropolitan Borough Council,https://www.sandwell.gov.uk/performance-spending/government-procurement-cards,17-Jul-2023,Childrens Services,AMZNMktplace,Childrens Services,132.25,MISCELLANEOUS AND SPECIALTY RETAIL STORES,2023-24Q2_PC0352
Sandwell Metropolitan Borough Council,https://www.sandwell.gov.uk/performance-spending/government-procurement-cards,17-Jul-2023,Childrens Services,BEEBYS BUBBLES,Childrens Services,127.5,"CLEANING, GARMENT, AND LAUNDRY SERVICES",2023-24Q2_PC0353
Sandwell Metropolitan Borough Council,https://www.sandwell.gov.uk/performance-spending/government-procurement-cards,17-Jul-2023,Childrens Services,High Street Vouchers,Childrens Services,30,DEPARTMENT STORES,2023-24Q2_PC0354
Sandwell Metropolitan Borough Council,https://www.sandwell.gov.uk/performance-spending/government-procurement-cards,17-Jul-2023,Childrens Services,SpaceHoppers PlayZone,Childrens Services,236.6,"AMUSEMENT PARKS,CARNIVALS,CIRCUS,FORTUNE TELLERS",2023-24Q2_PC0355
Sandwell Metropolitan Borough Council,https://www.sandwell.gov.uk/performance-spending/government-procurement-cards,17-Jul-2023,Childrens Services,Spotify UK,Childrens Services,9.99,DIGITAL GOODS AUDIOVISUAL MEDIA,2023-24Q2_PC0356
Sandwell Metropolitan Borough Council,https://www.sandwell.gov.uk/performance-spending/government-procurement-cards,17-Jul-2023,Childrens Services,WWW.WMCA.ORG.UK,Childrens Services,10,"TRANSPRTN-SUBRBN & LOCAL COMTR PSNGR, INCL FERRIES",2023-24Q2_PC0357
Sandwell Metropolitan Borough Council,https://www.sandwell.gov.uk/performance-spending/government-procurement-cards,17-Jul-2023,Housing & Assets Total,AMZNMktplace,Corporate Management,35.9,MISCELLANEOUS AND SPECIALTY RETAIL STORES,2023-24Q2_PC0358
Sandwell Metropolitan Borough Council,https://www.sandwell.gov.uk/performance-spending/government-procurement-cards,17-Jul-2023,Individual School Budgets With Inclusion,AMZNMktplace,Individual School Budgets With Inclusion,6.99,MISCELLANEOUS AND SPECIALTY RETAIL STORES,2023-24Q2_PC0359
Sandwell Metropolitan Borough Council,https://www.sandwell.gov.uk/performance-spending/government-procurement-cards,17-Jul-2023,Individual School Budgets With Inclusion,ASDA GROCERIES ONLINE,Individual School Budgets With Inclusion,30.7,"GROCERY STORES, SUPERMARKETS",2023-24Q2_PC0360
Sandwell Metropolitan Borough Council,https://www.sandwell.gov.uk/performance-spending/government-procurement-cards,17-Jul-2023,Regeneration & Growth,Amazon.co.uk R50K41U55,Regeneration And The Economy,53.98,DIRECT MARKETING-OTHER DIRECT MARKETERS/NOT ELSEW.,2023-24Q2_PC0361
Sandwell Metropolitan Borough Council,https://www.sandwell.gov.uk/performance-spending/government-procurement-cards,17-Jul-2023,Regeneration & Growth,AMZNMKTPLACE AMAZON.CO,Regeneration And The Economy,37.13,MISCELLANEOUS AND SPECIALTY RETAIL STORES,2023-24Q2_PC0362
Sandwell Metropolitan Borough Council,https://www.sandwell.gov.uk/performance-spending/government-procurement-cards,17-Jul-2023,Total Borough Economy,ADOBE ACROPRO SUBS,Total Adult Social Care,19.97,COMPUTER SOFTWARE STORES,2023-24Q2_PC0363
Sandwell Metropolitan Borough Council,https://www.sandwell.gov.uk/performance-spending/government-procurement-cards,17-Jul-2023,Total ASCHWB,Amazon Prime SK7693LR5,Total Adult Social Care,8.99,DIRECT MARKETING-CONTINUITY/SUBSCRIPTION MERCHANTS,2023-24Q2_PC0364
Sandwell Metropolitan Borough Council,https://www.sandwell.gov.uk/performance-spending/government-procurement-cards,17-Jul-2023,Total Borough Economy,Amazon.co.uk LR6Z08845,Total Adult Social Care,6.99,DIRECT MARKETING-OTHER DIRECT MARKETERS/NOT ELSEW.,2023-24Q2_PC0365
Sandwell Metropolitan Borough Council,https://www.sandwell.gov.uk/performance-spending/government-procurement-cards,17-Jul-2023,Total ASCHWB,AMZNMktplace,Total Adult Social Care,11.98,MISCELLANEOUS AND SPECIALTY RETAIL STORES,2023-24Q2_PC0366
Sandwell Metropolitan Borough Council,https://www.sandwell.gov.uk/performance-spending/government-procurement-cards,17-Jul-2023,Total Borough Economy,AMZNMktplace,Total Adult Social Care,5.85,MISCELLANEOUS AND SPECIALTY RETAIL STORES,2023-24Q2_PC0367
Sandwell Metropolitan Borough Council,https://www.sandwell.gov.uk/performance-spending/government-procurement-cards,17-Jul-2023,Total Borough Economy,AMZNMktplace,Total Adult Social Care,8.98,MISCELLANEOUS AND SPECIALTY RETAIL STORES,2023-24Q2_PC0368
Sandwell Metropolitan Borough Council,https://www.sandwell.gov.uk/performance-spending/government-procurement-cards,17-Jul-2023,Total Borough Economy,AMZNMktplace,Total Adult Social Care,38.77,MISCELLANEOUS AND SPECIALTY RETAIL STORES,2023-24Q2_PC0369
Sandwell Metropolitan Borough Council,https://www.sandwell.gov.uk/performance-spending/government-procurement-cards,17-Jul-2023,Total Borough Economy,AMZNMktplace,Total Adult Social Care,209.99,MISCELLANEOUS AND SPECIALTY RETAIL STORES,2023-24Q2_PC0370
Sandwell Metropolitan Borough Council,https://www.sandwell.gov.uk/performance-spending/government-procurement-cards,17-Jul-2023,Total Borough Economy,AMZNMktplace,Total Adult Social Care,22.99,MISCELLANEOUS AND SPECIALTY RETAIL STORES,2023-24Q2_PC0371
Sandwell Metropolitan Borough Council,https://www.sandwell.gov.uk/performance-spending/government-procurement-cards,17-Jul-2023,Total Borough Economy,AMZNMktplace,Total Adult Social Care,239.96,MISCELLANEOUS AND SPECIALTY RETAIL STORES,2023-24Q2_PC0372
Sandwell Metropolitan Borough Council,https://www.sandwell.gov.uk/performance-spending/government-procurement-cards,17-Jul-2023,Total Borough Economy,AMZNMktplace,Total Adult Social Care,260.61,MISCELLANEOUS AND SPECIALTY RETAIL STORES,2023-24Q2_PC0373
Sandwell Metropolitan Borough Council,https://www.sandwell.gov.uk/performance-spending/government-procurement-cards,17-Jul-2023,Total Borough Economy,AMZNMktplace,Total Adult Social Care,15.78,MISCELLANEOUS AND SPECIALTY RETAIL STORES,2023-24Q2_PC0374
Sandwell Metropolitan Borough Council,https://www.sandwell.gov.uk/performance-spending/government-procurement-cards,17-Jul-2023,Total Borough Economy,AMZNMktplace,Total Adult Social Care,5.76,MISCELLANEOUS AND SPECIALTY RETAIL STORES,2023-24Q2_PC0375
Sandwell Metropolitan Borough Council,https://www.sandwell.gov.uk/performance-spending/government-procurement-cards,17-Jul-2023,Total Borough Economy,AMZNMktplace,Total Adult Social Care,37.96,MISCELLANEOUS AND SPECIALTY RETAIL STORES,2023-24Q2_PC0376
Sandwell Metropolitan Borough Council,https://www.sandwell.gov.uk/performance-spending/government-procurement-cards,17-Jul-2023,Total ASCHWB,AMZNMKTPLACE AMAZON.CO,Total Adult Social Care,174.99,MISCELLANEOUS AND SPECIALTY RETAIL STORES,2023-24Q2_PC0377
Sandwell Metropolitan Borough Council,https://www.sandwell.gov.uk/performance-spending/government-procurement-cards,17-Jul-2023,Total Borough Economy,AMZNMKTPLACE AMAZON.CO,Total Adult Social Care,22.97,MISCELLANEOUS AND SPECIALTY RETAIL STORES,2023-24Q2_PC0378
Sandwell Metropolitan Borough Council,https://www.sandwell.gov.uk/performance-spending/government-procurement-cards,17-Jul-2023,Total Borough Economy,AMZNMKTPLACE AMAZON.CO,Total Adult Social Care,7.78,MISCELLANEOUS AND SPECIALTY RETAIL STORES,2023-24Q2_PC0379
Sandwell Metropolitan Borough Council,https://www.sandwell.gov.uk/performance-spending/government-procurement-cards,17-Jul-2023,Total Borough Economy,AMZNMKTPLACE AMAZON.CO,Total Adult Social Care,32.97,MISCELLANEOUS AND SPECIALTY RETAIL STORES,2023-24Q2_PC0380
Sandwell Metropolitan Borough Council,https://www.sandwell.gov.uk/performance-spending/government-procurement-cards,17-Jul-2023,Total Borough Economy,AMZNMKTPLACE AMAZON.CO,Total Adult Social Care,280.32,MISCELLANEOUS AND SPECIALTY RETAIL STORES,2023-24Q2_PC0381
Sandwell Metropolitan Borough Council,https://www.sandwell.gov.uk/performance-spending/government-procurement-cards,17-Jul-2023,Total Borough Economy,BOOKER LTD - 38593354,Total Adult Social Care,218.89,"GROCERY STORES, SUPERMARKETS",2023-24Q2_PC0382
Sandwell Metropolitan Borough Council,https://www.sandwell.gov.uk/performance-spending/government-procurement-cards,17-Jul-2023,Total ASCHWB,SumUp   A J tyre Servi,Total Adult Social Care,240,"CLEANING, GARMENT, AND LAUNDRY SERVICES",2023-24Q2_PC0383
Sandwell Metropolitan Borough Council,https://www.sandwell.gov.uk/performance-spending/government-procurement-cards,17-Jul-2023,Total Borough Economy,TESCO STORES 6227,Total Adult Social Care,20,"GROCERY STORES, SUPERMARKETS",2023-24Q2_PC0384
Sandwell Metropolitan Borough Council,https://www.sandwell.gov.uk/performance-spending/government-procurement-cards,17-Jul-2023,Total Borough Economy,Wm Morrisons Store Pic,Total Adult Social Care,69.68,"GROCERY STORES, SUPERMARKETS",2023-24Q2_PC0385
Sandwell Metropolitan Borough Council,https://www.sandwell.gov.uk/performance-spending/government-procurement-cards,17-Jul-2023,Total Housing Revenue Account,AMZNMktplace,Total Housing Revenue Account,34.88,MISCELLANEOUS AND SPECIALTY RETAIL STORES,2023-24Q2_PC0386
Sandwell Metropolitan Borough Council,https://www.sandwell.gov.uk/performance-spending/government-procurement-cards,18-Jul-2023,Childrens Services,Aberconwy car & Van HI,Childrens Services,990,TRUCK RENTAL,2023-24Q2_PC0387
Sandwell Metropolitan Borough Council,https://www.sandwell.gov.uk/performance-spending/government-procurement-cards,18-Jul-2023,Childrens Services,AMZNMktplace,Childrens Services,75.03,MISCELLANEOUS AND SPECIALTY RETAIL STORES,2023-24Q2_PC0388
Sandwell Metropolitan Borough Council,https://www.sandwell.gov.uk/performance-spending/government-procurement-cards,18-Jul-2023,Childrens Services,AMZNMktplace,Childrens Services,17.98,MISCELLANEOUS AND SPECIALTY RETAIL STORES,2023-24Q2_PC0389
Sandwell Metropolitan Borough Council,https://www.sandwell.gov.uk/performance-spending/government-procurement-cards,18-Jul-2023,Childrens Services,ASDA GROCERIES ONLINE,Childrens Services,-2.4,"GROCERY STORES, SUPERMARKETS",2023-24Q2_PC0390
Sandwell Metropolitan Borough Council,https://www.sandwell.gov.uk/performance-spending/government-procurement-cards,18-Jul-2023,Childrens Services,ASDA GROCERIES ONLINE,Childrens Services,-0.1,"GROCERY STORES, SUPERMARKETS",2023-24Q2_PC0391
Sandwell Metropolitan Borough Council,https://www.sandwell.gov.uk/performance-spending/government-procurement-cards,18-Jul-2023,Childrens Services,ASDA GROCERIES ONLINE,Childrens Services,128.31,"GROCERY STORES, SUPERMARKETS",2023-24Q2_PC0392
Sandwell Metropolitan Borough Council,https://www.sandwell.gov.uk/performance-spending/government-procurement-cards,18-Jul-2023,Childrens Services,ASDA GROCERIES ONLINE,Childrens Services,95.49,"GROCERY STORES, SUPERMARKETS",2023-24Q2_PC0393
Sandwell Metropolitan Borough Council,https://www.sandwell.gov.uk/performance-spending/government-procurement-cards,18-Jul-2023,Childrens Services,CENTRAL ENG COOP,Childrens Services,4,"GROCERY STORES, SUPERMARKETS",2023-24Q2_PC0394
Sandwell Metropolitan Borough Council,https://www.sandwell.gov.uk/performance-spending/government-procurement-cards,18-Jul-2023,Childrens Services,NOPCOMMERCE STORE,Childrens Services,80.4,MEN'S AND WOMEN'S CLOTHING STORES,2023-24Q2_PC0395
Sandwell Metropolitan Borough Council,https://www.sandwell.gov.uk/performance-spending/government-procurement-cards,18-Jul-2023,Childrens Services,POUNDLAND LTD - 2528,Childrens Services,43.5,DISCOUNT STORES,2023-24Q2_PC0396
Sandwell Metropolitan Borough Council,https://www.sandwell.gov.uk/performance-spending/government-procurement-cards,18-Jul-2023,Childrens Services,TESCO STORES 2770,Childrens Services,77.73,"GROCERY STORES, SUPERMARKETS",2023-24Q2_PC0397
Sandwell Metropolitan Borough Council,https://www.sandwell.gov.uk/performance-spending/government-procurement-cards,18-Jul-2023,Childrens Services,VMO Vimeo PRO,Childrens Services,226.8,DIRECT MARKETING-CONTINUITY/SUBSCRIPTION MERCHANTS,2023-24Q2_PC0398
Sandwell Metropolitan Borough Council,https://www.sandwell.gov.uk/performance-spending/government-procurement-cards,18-Jul-2023,Housing & Assets Total,AMZNMKTPLACE AMAZON.CO,Corporate Management,197.94,MISCELLANEOUS AND SPECIALTY RETAIL STORES,2023-24Q2_PC0399
Sandwell Metropolitan Borough Council,https://www.sandwell.gov.uk/performance-spending/government-procurement-cards,18-Jul-2023,Housing & Assets Total,ASDA SUPERSTORE,Corporate Management,133.49,"GROCERY STORES, SUPERMARKETS",2023-24Q2_PC0400
Sandwell Metropolitan Borough Council,https://www.sandwell.gov.uk/performance-spending/government-procurement-cards,18-Jul-2023,Regeneration & Growth,AMZNMktplace,Regeneration And The Economy,37.33,MISCELLANEOUS AND SPECIALTY RETAIL STORES,2023-24Q2_PC0401
Sandwell Metropolitan Borough Council,https://www.sandwell.gov.uk/performance-spending/government-procurement-cards,18-Jul-2023,Total ASCHWB,Amazon.co.uk 8H7LE3X45,Total Adult Social Care,165.57,DIRECT MARKETING-OTHER DIRECT MARKETERS/NOT ELSEW.,2023-24Q2_PC0402
Sandwell Metropolitan Borough Council,https://www.sandwell.gov.uk/performance-spending/government-procurement-cards,18-Jul-2023,Total Borough Economy,AMZNMktplace,Total Adult Social Care,452.98,MISCELLANEOUS AND SPECIALTY RETAIL STORES,2023-24Q2_PC0403
Sandwell Metropolitan Borough Council,https://www.sandwell.gov.uk/performance-spending/government-procurement-cards,18-Jul-2023,Total ASCHWB,AMZNMKTPLACE AMAZON.CO,Total Adult Social Care,149.75,MISCELLANEOUS AND SPECIALTY RETAIL STORES,2023-24Q2_PC0404
Sandwell Metropolitan Borough Council,https://www.sandwell.gov.uk/performance-spending/government-procurement-cards,18-Jul-2023,Total Borough Economy,AMZNMKTPLACE AMAZON.CO,Total Adult Social Care,111.5,MISCELLANEOUS AND SPECIALTY RETAIL STORES,2023-24Q2_PC0405
Sandwell Metropolitan Borough Council,https://www.sandwell.gov.uk/performance-spending/government-procurement-cards,18-Jul-2023,Total Borough Economy,APPOINTEDD,Total Adult Social Care,68,COMPUTER SOFTWARE STORES,2023-24Q2_PC0406
Sandwell Metropolitan Borough Council,https://www.sandwell.gov.uk/performance-spending/government-procurement-cards,18-Jul-2023,Total Borough Economy,ASDA SUPERSTORE,Total Adult Social Care,11.3,"GROCERY STORES, SUPERMARKETS",2023-24Q2_PC0407
Sandwell Metropolitan Borough Council,https://www.sandwell.gov.uk/performance-spending/government-procurement-cards,18-Jul-2023,Total Borough Economy,FACEBK  W9495QPDB2,Total Adult Social Care,17.6,ADVERTISING SERVICES,2023-24Q2_PC0408
Sandwell Metropolitan Borough Council,https://www.sandwell.gov.uk/performance-spending/government-procurement-cards,18-Jul-2023,Total Borough Economy,IKEA LTD SHOP ONLINE,Total Adult Social Care,129,"EQUIP, FURNITURE, HOME FURNSHNGS STRS (EXCPT APPL)",2023-24Q2_PC0409
Sandwell Metropolitan Borough Council,https://www.sandwell.gov.uk/performance-spending/government-procurement-cards,18-Jul-2023,Total ASCHWB,S STAFFS WATER PBN,Total Adult Social Care,158.15,"UTLTS-ELCTRC, GAS, HEATING OIL, SANITARY, WATER",2023-24Q2_PC0410
Sandwell Metropolitan Borough Council,https://www.sandwell.gov.uk/performance-spending/government-procurement-cards,18-Jul-2023,Total ASCHWB,S STAFFS WATER PBN,Total Adult Social Care,177.64,"UTLTS-ELCTRC, GAS, HEATING OIL, SANITARY, WATER",2023-24Q2_PC0411
Sandwell Metropolitan Borough Council,https://www.sandwell.gov.uk/performance-spending/government-procurement-cards,18-Jul-2023,Total ASCHWB,S STAFFS WATER PBN,Total Adult Social Care,177.64,"UTLTS-ELCTRC, GAS, HEATING OIL, SANITARY, WATER",2023-24Q2_PC0412
Sandwell Metropolitan Borough Council,https://www.sandwell.gov.uk/performance-spending/government-procurement-cards,18-Jul-2023,Total ASCHWB,S STAFFS WATER PBN,Total Adult Social Care,147.22,"UTLTS-ELCTRC, GAS, HEATING OIL, SANITARY, WATER",2023-24Q2_PC0413
Sandwell Metropolitan Borough Council,https://www.sandwell.gov.uk/performance-spending/government-procurement-cards,18-Jul-2023,Total Borough Economy,SCREWFIX DIR LTD,Total Adult Social Care,18.87,"BUILDING MATERIALS, LUMBER STORES",2023-24Q2_PC0414
Sandwell Metropolitan Borough Council,https://www.sandwell.gov.uk/performance-spending/government-procurement-cards,18-Jul-2023,Total ASCHWB,SMARTY CO UK,Total Adult Social Care,20,TELECOM INCL PREPAID/RECURRING PHONE SVCS,2023-24Q2_PC0415
Sandwell Metropolitan Borough Council,https://www.sandwell.gov.uk/performance-spending/government-procurement-cards,18-Jul-2023,Total Borough Economy,TESCO STORES 2335,Total Adult Social Care,5.4,"GROCERY STORES, SUPERMARKETS",2023-24Q2_PC0416
Sandwell Metropolitan Borough Council,https://www.sandwell.gov.uk/performance-spending/government-procurement-cards,18-Jul-2023,Total Borough Economy,VALLEY CONVENIENCE STO,Total Adult Social Care,1.55,"MISC FOOD STORE-CONVENIENCE,MRKT,SPLTY,VENDNG MACS",2023-24Q2_PC0417
Sandwell Metropolitan Borough Council,https://www.sandwell.gov.uk/performance-spending/government-procurement-cards,18-Jul-2023,Total Borough Economy,WWW.ARGOS.CO.UK,Total Adult Social Care,7,DEPARTMENT STORES,2023-24Q2_PC0418
Sandwell Metropolitan Borough Council,https://www.sandwell.gov.uk/performance-spending/government-procurement-cards,18-Jul-2023,Total Housing Revenue Account,AMZNMktplace,Total Housing Revenue Account,74.72,MISCELLANEOUS AND SPECIALTY RETAIL STORES,2023-24Q2_PC0419
Sandwell Metropolitan Borough Council,https://www.sandwell.gov.uk/performance-spending/government-procurement-cards,19-Jul-2023,FINANCE (Inc SIU),WWW.OFFICETEAMCONNECT.,Assistant Chief Executive (Excl SIU),27.64,STATIONERY/OFFICE SUPPLIES/PRINTING & WRITING PAP.,2023-24Q2_PC0420
Sandwell Metropolitan Borough Council,https://www.sandwell.gov.uk/performance-spending/government-procurement-cards,19-Jul-2023,Childrens Services,AMZNMktplace,Childrens Services,23.88,MISCELLANEOUS AND SPECIALTY RETAIL STORES,2023-24Q2_PC0421
Sandwell Metropolitan Borough Council,https://www.sandwell.gov.uk/performance-spending/government-procurement-cards,19-Jul-2023,Childrens Services,AMZNMktplace,Childrens Services,23.98,MISCELLANEOUS AND SPECIALTY RETAIL STORES,2023-24Q2_PC0422
Sandwell Metropolitan Borough Council,https://www.sandwell.gov.uk/performance-spending/government-procurement-cards,19-Jul-2023,Childrens Services,AMZNMktplace,Childrens Services,67.92,MISCELLANEOUS AND SPECIALTY RETAIL STORES,2023-24Q2_PC0423
Sandwell Metropolitan Borough Council,https://www.sandwell.gov.uk/performance-spending/government-procurement-cards,19-Jul-2023,Childrens Services,ASDA SUPERSTORE 04236,Childrens Services,24.7,"GROCERY STORES, SUPERMARKETS",2023-24Q2_PC0424
Sandwell Metropolitan Borough Council,https://www.sandwell.gov.uk/performance-spending/government-procurement-cards,19-Jul-2023,Individual School Budgets With Inclusion,B & Q 1357,Individual School Budgets With Inclusion,10,HOME SUPPLY WAREHOUSE STORES,2023-24Q2_PC0425
Sandwell Metropolitan Borough Council,https://www.sandwell.gov.uk/performance-spending/government-procurement-cards,19-Jul-2023,Individual School Budgets With Inclusion,CO-OPERATIVE FOOD,Individual School Budgets With Inclusion,3.5,"GROCERY STORES, SUPERMARKETS",2023-24Q2_PC0426
Sandwell Metropolitan Borough Council,https://www.sandwell.gov.uk/performance-spending/government-procurement-cards,19-Jul-2023,Total ASCHWB,Amazon Prime,Total Adult Social Care,-8.99,DIRECT MARKETING-CONTINUITY/SUBSCRIPTION MERCHANTS,2023-24Q2_PC0427
Sandwell Metropolitan Borough Council,https://www.sandwell.gov.uk/performance-spending/government-procurement-cards,19-Jul-2023,Total Borough Economy,Amazon.co.uk H51MG6RU5,Total Adult Social Care,119,DIRECT MARKETING-OTHER DIRECT MARKETERS/NOT ELSEW.,2023-24Q2_PC0428
Sandwell Metropolitan Borough Council,https://www.sandwell.gov.uk/performance-spending/government-procurement-cards,19-Jul-2023,Total ASCHWB,AMZNMktplace,Total Adult Social Care,24.98,MISCELLANEOUS AND SPECIALTY RETAIL STORES,2023-24Q2_PC0429
Sandwell Metropolitan Borough Council,https://www.sandwell.gov.uk/performance-spending/government-procurement-cards,19-Jul-2023,Total ASCHWB,AMZNMKTPLACE AMAZON.CO,Total Adult Social Care,77.97,MISCELLANEOUS AND SPECIALTY RETAIL STORES,2023-24Q2_PC0430
Sandwell Metropolitan Borough Council,https://www.sandwell.gov.uk/performance-spending/government-procurement-cards,19-Jul-2023,Total Borough Economy,AMZNMKTPLACE AMAZON.CO,Total Adult Social Care,14.22,MISCELLANEOUS AND SPECIALTY RETAIL STORES,2023-24Q2_PC0431
Sandwell Metropolitan Borough Council,https://www.sandwell.gov.uk/performance-spending/government-procurement-cards,19-Jul-2023,Total Borough Economy,AMZNMKTPLACE AMAZON.CO,Total Adult Social Care,4.8,MISCELLANEOUS AND SPECIALTY RETAIL STORES,2023-24Q2_PC0432
Sandwell Metropolitan Borough Council,https://www.sandwell.gov.uk/performance-spending/government-procurement-cards,19-Jul-2023,Total Borough Economy,AMZNMKTPLACE AMAZON.CO,Total Adult Social Care,256.91,MISCELLANEOUS AND SPECIALTY RETAIL STORES,2023-24Q2_PC0433
Sandwell Metropolitan Borough Council,https://www.sandwell.gov.uk/performance-spending/government-procurement-cards,19-Jul-2023,Total Borough Economy,AMZNMKTPLACE AMAZON.CO,Total Adult Social Care,17.74,MISCELLANEOUS AND SPECIALTY RETAIL STORES,2023-24Q2_PC0434
Sandwell Metropolitan Borough Council,https://www.sandwell.gov.uk/performance-spending/government-procurement-cards,19-Jul-2023,Total ASCHWB,BINLINERS CO UK,Total Adult Social Care,270,HOME SUPPLY WAREHOUSE STORES,2023-24Q2_PC0435
Sandwell Metropolitan Borough Council,https://www.sandwell.gov.uk/performance-spending/government-procurement-cards,19-Jul-2023,Total Borough Economy,FACEBK KNRJQQ7DB2,Total Adult Social Care,16.56,ADVERTISING SERVICES,2023-24Q2_PC0436
Sandwell Metropolitan Borough Council,https://www.sandwell.gov.uk/performance-spending/government-procurement-cards,19-Jul-2023,Total ASCHWB,Klarna poundshop.com,Total Adult Social Care,141.3,MISCELLANEOUS AND SPECIALTY RETAIL STORES,2023-24Q2_PC0437
Sandwell Metropolitan Borough Council,https://www.sandwell.gov.uk/performance-spending/government-procurement-cards,19-Jul-2023,Total Borough Economy,S&D SUPERMARKET WOLVER,Total Adult Social Care,5.68,"GROCERY STORES, SUPERMARKETS",2023-24Q2_PC0438
Sandwell Metropolitan Borough Council,https://www.sandwell.gov.uk/performance-spending/government-procurement-cards,19-Jul-2023,Total Borough Economy,STAR SUPERMARKET,Total Adult Social Care,3.57,"MISC FOOD STORE-CONVENIENCE,MRKT,SPLTY,VENDNG MACS",2023-24Q2_PC0439
Sandwell Metropolitan Borough Council,https://www.sandwell.gov.uk/performance-spending/government-procurement-cards,19-Jul-2023,Total Borough Economy,THE ORIGINAL BAKER LIM,Total Adult Social Care,500,BAKERIES,2023-24Q2_PC0440
Sandwell Metropolitan Borough Council,https://www.sandwell.gov.uk/performance-spending/government-procurement-cards,19-Jul-2023,Total Borough Economy,UPPAL SWEET CENTRE LTD,Total Adult Social Care,28,BAKERIES,2023-24Q2_PC0441
Sandwell Metropolitan Borough Council,https://www.sandwell.gov.uk/performance-spending/government-procurement-cards,19-Jul-2023,Total ASCHWB,VIKING OFFICE UK LIMIT,Total Adult Social Care,210.9,STATIONERY/OFFICE SUPPLIES/PRINTING & WRITING PAP.,2023-24Q2_PC0442
Sandwell Metropolitan Borough Council,https://www.sandwell.gov.uk/performance-spending/government-procurement-cards,19-Jul-2023,Total Borough Economy,Vistaprint,Total Adult Social Care,136.37,BUSINESS SERVICES-NOT ELSEWHERE CLASSIFIED,2023-24Q2_PC0443
Sandwell Metropolitan Borough Council,https://www.sandwell.gov.uk/performance-spending/government-procurement-cards,19-Jul-2023,FINANCE (Inc SIU),WWW.OFFICETEAMCONNECT.,Total Adult Social Care,30.49,STATIONERY/OFFICE SUPPLIES/PRINTING & WRITING PAP.,2023-24Q2_PC0444
Sandwell Metropolitan Borough Council,https://www.sandwell.gov.uk/performance-spending/government-procurement-cards,19-Jul-2023,Total Borough Economy,WWW.OFFICETEAMCONNECT.,Total Adult Social Care,63.07,STATIONERY/OFFICE SUPPLIES/PRINTING & WRITING PAP.,2023-24Q2_PC0445
Sandwell Metropolitan Borough Council,https://www.sandwell.gov.uk/performance-spending/government-procurement-cards,19-Jul-2023,Total Borough Economy,WWW.PONDKEEPER.CO.UK,Total Adult Social Care,151.5,LANDSCAPING AND HORTICULTURAL SERVICES,2023-24Q2_PC0446
Sandwell Metropolitan Borough Council,https://www.sandwell.gov.uk/performance-spending/government-procurement-cards,19-Jul-2023,Total Housing Revenue Account,AMZNMktplace,Total Housing Revenue Account,27.07,MISCELLANEOUS AND SPECIALTY RETAIL STORES,2023-24Q2_PC0447
Sandwell Metropolitan Borough Council,https://www.sandwell.gov.uk/performance-spending/government-procurement-cards,19-Jul-2023,Total Housing Revenue Account,HSE - BSR,Total Housing Revenue Account,251,GOVERNMENT SERVICES-NOT ELSEWHERE CLASSIFIED,2023-24Q2_PC0448
Sandwell Metropolitan Borough Council,https://www.sandwell.gov.uk/performance-spending/government-procurement-cards,19-Jul-2023,Total Housing Revenue Account,HSE - BSR,Total Housing Revenue Account,251,GOVERNMENT SERVICES-NOT ELSEWHERE CLASSIFIED,2023-24Q2_PC0449
Sandwell Metropolitan Borough Council,https://www.sandwell.gov.uk/performance-spending/government-procurement-cards,19-Jul-2023,Total Housing Revenue Account,HSE - BSR,Total Housing Revenue Account,251,GOVERNMENT SERVICES-NOT ELSEWHERE CLASSIFIED,2023-24Q2_PC0450
Sandwell Metropolitan Borough Council,https://www.sandwell.gov.uk/performance-spending/government-procurement-cards,19-Jul-2023,Total Housing Revenue Account,HSE - BSR,Total Housing Revenue Account,251,GOVERNMENT SERVICES-NOT ELSEWHERE CLASSIFIED,2023-24Q2_PC0451
Sandwell Metropolitan Borough Council,https://www.sandwell.gov.uk/performance-spending/government-procurement-cards,19-Jul-2023,Total Housing Revenue Account,HSE - BSR,Total Housing Revenue Account,251,GOVERNMENT SERVICES-NOT ELSEWHERE CLASSIFIED,2023-24Q2_PC0452
Sandwell Metropolitan Borough Council,https://www.sandwell.gov.uk/performance-spending/government-procurement-cards,19-Jul-2023,Total Housing Revenue Account,POST OFFICE COUNTER,Total Housing Revenue Account,246.4,POSTAL SERVICES-GOVERNMENT ONLY,2023-24Q2_PC0453
Sandwell Metropolitan Borough Council,https://www.sandwell.gov.uk/performance-spending/government-procurement-cards,20-Jul-2023,Assistant Chief Executive,SAINSBURYS S/MKTS,Assistant Chief Executive (Excl SIU),12.1,"GROCERY STORES, SUPERMARKETS",2023-24Q2_PC0454
Sandwell Metropolitan Borough Council,https://www.sandwell.gov.uk/performance-spending/government-procurement-cards,20-Jul-2023,Assistant Chief Executive,TESCO STORES LTD 6441,Assistant Chief Executive (Excl SIU),8,"GROCERY STORES, SUPERMARKETS",2023-24Q2_PC0455
Sandwell Metropolitan Borough Council,https://www.sandwell.gov.uk/performance-spending/government-procurement-cards,20-Jul-2023,FINANCE (Inc SIU),WWW.OFFICETEAMCONNECT.,Assistant Chief Executive (Excl SIU),147.13,STATIONERY/OFFICE SUPPLIES/PRINTING & WRITING PAP.,2023-24Q2_PC0456
Sandwell Metropolitan Borough Council,https://www.sandwell.gov.uk/performance-spending/government-procurement-cards,20-Jul-2023,Childrens Services,AMZNMKTPLACE AMAZON.CO,Childrens Services,44.2,MISCELLANEOUS AND SPECIALTY RETAIL STORES,2023-24Q2_PC0457
Sandwell Metropolitan Borough Council,https://www.sandwell.gov.uk/performance-spending/government-procurement-cards,20-Jul-2023,Childrens Services,AMZNMKTPLACE AMAZON.CO,Childrens Services,104.95,MISCELLANEOUS AND SPECIALTY RETAIL STORES,2023-24Q2_PC0458
Sandwell Metropolitan Borough Council,https://www.sandwell.gov.uk/performance-spending/government-procurement-cards,20-Jul-2023,Childrens Services,AMZNMKTPLACE AMAZON.CO,Childrens Services,54.75,MISCELLANEOUS AND SPECIALTY RETAIL STORES,2023-24Q2_PC0459
Sandwell Metropolitan Borough Council,https://www.sandwell.gov.uk/performance-spending/government-procurement-cards,20-Jul-2023,Childrens Services,ASDA GROCERIES ONLINE,Childrens Services,0.21,"GROCERY STORES, SUPERMARKETS",2023-24Q2_PC0460
Sandwell Metropolitan Borough Council,https://www.sandwell.gov.uk/performance-spending/government-procurement-cards,20-Jul-2023,Childrens Services,ASDA GROCERIES ONLINE,Childrens Services,55.12,"GROCERY STORES, SUPERMARKETS",2023-24Q2_PC0461
Sandwell Metropolitan Borough Council,https://www.sandwell.gov.uk/performance-spending/government-procurement-cards,20-Jul-2023,Childrens Services,ASDA GROCERIES ONLINE,Childrens Services,2.95,"GROCERY STORES, SUPERMARKETS",2023-24Q2_PC0462
Sandwell Metropolitan Borough Council,https://www.sandwell.gov.uk/performance-spending/government-procurement-cards,20-Jul-2023,Childrens Services,B & Q 1276,Childrens Services,58,HOME SUPPLY WAREHOUSE STORES,2023-24Q2_PC0463
Sandwell Metropolitan Borough Council,https://www.sandwell.gov.uk/performance-spending/government-procurement-cards,20-Jul-2023,Childrens Services,TESCO STORES 2770,Childrens Services,84.91,"GROCERY STORES, SUPERMARKETS",2023-24Q2_PC0464
Sandwell Metropolitan Borough Council,https://www.sandwell.gov.uk/performance-spending/government-procurement-cards,20-Jul-2023,Childrens Services,WWW.OFFICETEAMCONNECT.,Childrens Services,9.4,STATIONERY/OFFICE SUPPLIES/PRINTING & WRITING PAP.,2023-24Q2_PC0465
Sandwell Metropolitan Borough Council,https://www.sandwell.gov.uk/performance-spending/government-procurement-cards,20-Jul-2023,Housing & Assets Total,Amazon Prime M586C60V5,Corporate Management,8.99,DIRECT MARKETING-CONTINUITY/SUBSCRIPTION MERCHANTS,2023-24Q2_PC0466
Sandwell Metropolitan Borough Council,https://www.sandwell.gov.uk/performance-spending/government-procurement-cards,20-Jul-2023,Housing & Assets Total,Amazon.co.uk 7S9VV6BE5,Corporate Management,30.99,DIRECT MARKETING-OTHER DIRECT MARKETERS/NOT ELSEW.,2023-24Q2_PC0467
Sandwell Metropolitan Borough Council,https://www.sandwell.gov.uk/performance-spending/government-procurement-cards,20-Jul-2023,Housing & Assets Total,AMZN MKTP UK YH6U65CC5,Corporate Management,26,"GROCERY STORES, SUPERMARKETS",2023-24Q2_PC0468
Sandwell Metropolitan Borough Council,https://www.sandwell.gov.uk/performance-spending/government-procurement-cards,20-Jul-2023,Housing & Assets Total,AMZNMKTPLACE AMAZON.CO,Corporate Management,7.18,MISCELLANEOUS AND SPECIALTY RETAIL STORES,2023-24Q2_PC0469
Sandwell Metropolitan Borough Council,https://www.sandwell.gov.uk/performance-spending/government-procurement-cards,20-Jul-2023,Individual School Budgets With Inclusion,Amazon.co.uk 343E40XM5,Individual School Budgets With Inclusion,63.98,DIRECT MARKETING-OTHER DIRECT MARKETERS/NOT ELSEW.,2023-24Q2_PC0470
Sandwell Metropolitan Borough Council,https://www.sandwell.gov.uk/performance-spending/government-procurement-cards,20-Jul-2023,Individual School Budgets With Inclusion,ASDA GROCERIES ONLINE,Individual School Budgets With Inclusion,-6.2,"GROCERY STORES, SUPERMARKETS",2023-24Q2_PC0471
Sandwell Metropolitan Borough Council,https://www.sandwell.gov.uk/performance-spending/government-procurement-cards,20-Jul-2023,Individual School Budgets With Inclusion,ASDA GROCERIES ONLINE,Individual School Budgets With Inclusion,37.75,"GROCERY STORES, SUPERMARKETS",2023-24Q2_PC0472
Sandwell Metropolitan Borough Council,https://www.sandwell.gov.uk/performance-spending/government-procurement-cards,20-Jul-2023,Individual School Budgets With Inclusion,ASDA GROCERIES ONLINE,Individual School Budgets With Inclusion,127.5,"GROCERY STORES, SUPERMARKETS",2023-24Q2_PC0473
Sandwell Metropolitan Borough Council,https://www.sandwell.gov.uk/performance-spending/government-procurement-cards,20-Jul-2023,Individual School Budgets With Inclusion,ASDA GROCERIES ONLINE,Individual School Budgets With Inclusion,78.75,"GROCERY STORES, SUPERMARKETS",2023-24Q2_PC0474
Sandwell Metropolitan Borough Council,https://www.sandwell.gov.uk/performance-spending/government-procurement-cards,20-Jul-2023,Total ASCHWB,Amazon.co.uk K328373K5,Total Adult Social Care,37.96,DIRECT MARKETING-OTHER DIRECT MARKETERS/NOT ELSEW.,2023-24Q2_PC0475
Sandwell Metropolitan Borough Council,https://www.sandwell.gov.uk/performance-spending/government-procurement-cards,20-Jul-2023,Total ASCHWB,AMZNMktplace,Total Adult Social Care,99.45,MISCELLANEOUS AND SPECIALTY RETAIL STORES,2023-24Q2_PC0476
Sandwell Metropolitan Borough Council,https://www.sandwell.gov.uk/performance-spending/government-procurement-cards,20-Jul-2023,Total ASCHWB,AMZNMktplace,Total Adult Social Care,41.89,MISCELLANEOUS AND SPECIALTY RETAIL STORES,2023-24Q2_PC0477
Sandwell Metropolitan Borough Council,https://www.sandwell.gov.uk/performance-spending/government-procurement-cards,20-Jul-2023,Total ASCHWB,AMZNMKTPLACE AMAZON.CO,Total Adult Social Care,41.31,MISCELLANEOUS AND SPECIALTY RETAIL STORES,2023-24Q2_PC0478
Sandwell Metropolitan Borough Council,https://www.sandwell.gov.uk/performance-spending/government-procurement-cards,20-Jul-2023,Total ASCHWB,AMZNMKTPLACE AMAZON.CO,Total Adult Social Care,9.01,MISCELLANEOUS AND SPECIALTY RETAIL STORES,2023-24Q2_PC0479
Sandwell Metropolitan Borough Council,https://www.sandwell.gov.uk/performance-spending/government-procurement-cards,20-Jul-2023,Total ASCHWB,AMZNMKTPLACE AMAZON.CO,Total Adult Social Care,70.14,MISCELLANEOUS AND SPECIALTY RETAIL STORES,2023-24Q2_PC0480
Sandwell Metropolitan Borough Council,https://www.sandwell.gov.uk/performance-spending/government-procurement-cards,20-Jul-2023,Total ASCHWB,AMZNMKTPLACE AMAZON.CO,Total Adult Social Care,228.26,MISCELLANEOUS AND SPECIALTY RETAIL STORES,2023-24Q2_PC0481
Sandwell Metropolitan Borough Council,https://www.sandwell.gov.uk/performance-spending/government-procurement-cards,20-Jul-2023,Total Borough Economy,AMZNMKTPLACE AMAZON.CO,Total Adult Social Care,17.99,MISCELLANEOUS AND SPECIALTY RETAIL STORES,2023-24Q2_PC0482
Sandwell Metropolitan Borough Council,https://www.sandwell.gov.uk/performance-spending/government-procurement-cards,20-Jul-2023,Total Borough Economy,JUST GLOVES,Total Adult Social Care,140.4,DENTAL/LAB/MED/OPHTHALMIC HOSP EQUIP & SUPPLIES,2023-24Q2_PC0483
Sandwell Metropolitan Borough Council,https://www.sandwell.gov.uk/performance-spending/government-procurement-cards,20-Jul-2023,Total Borough Economy,WWW.SCREWFIX.COM,Total Adult Social Care,32.16,"BUILDING MATERIALS, LUMBER STORES",2023-24Q2_PC0484
Sandwell Metropolitan Borough Council,https://www.sandwell.gov.uk/performance-spending/government-procurement-cards,20-Jul-2023,Total Housing Revenue Account,Amazon.co.uk P96NH2G45,Total Housing Revenue Account,14.96,DIRECT MARKETING-OTHER DIRECT MARKETERS/NOT ELSEW.,2023-24Q2_PC0485
Sandwell Metropolitan Borough Council,https://www.sandwell.gov.uk/performance-spending/government-procurement-cards,20-Jul-2023,Total Housing Revenue Account,AMZNMKTPLACE AMAZON.CO,Total Housing Revenue Account,23.7,MISCELLANEOUS AND SPECIALTY RETAIL STORES,2023-24Q2_PC0486
Sandwell Metropolitan Borough Council,https://www.sandwell.gov.uk/performance-spending/government-procurement-cards,20-Jul-2023,Total Housing Revenue Account,HSE - BSR,Total Housing Revenue Account,251,GOVERNMENT SERVICES-NOT ELSEWHERE CLASSIFIED,2023-24Q2_PC0487
Sandwell Metropolitan Borough Council,https://www.sandwell.gov.uk/performance-spending/government-procurement-cards,20-Jul-2023,Total Housing Revenue Account,HSE - BSR,Total Housing Revenue Account,251,GOVERNMENT SERVICES-NOT ELSEWHERE CLASSIFIED,2023-24Q2_PC0488
Sandwell Metropolitan Borough Council,https://www.sandwell.gov.uk/performance-spending/government-procurement-cards,20-Jul-2023,Total Housing Revenue Account,HSE - BSR,Total Housing Revenue Account,251,GOVERNMENT SERVICES-NOT ELSEWHERE CLASSIFIED,2023-24Q2_PC0489
Sandwell Metropolitan Borough Council,https://www.sandwell.gov.uk/performance-spending/government-procurement-cards,20-Jul-2023,Total Housing Revenue Account,HSE - BSR,Total Housing Revenue Account,251,GOVERNMENT SERVICES-NOT ELSEWHERE CLASSIFIED,2023-24Q2_PC0490
Sandwell Metropolitan Borough Council,https://www.sandwell.gov.uk/performance-spending/government-procurement-cards,20-Jul-2023,Total Housing Revenue Account,HSE - BSR,Total Housing Revenue Account,251,GOVERNMENT SERVICES-NOT ELSEWHERE CLASSIFIED,2023-24Q2_PC0491
Sandwell Metropolitan Borough Council,https://www.sandwell.gov.uk/performance-spending/government-procurement-cards,20-Jul-2023,Total Housing Revenue Account,HSE - BSR,Total Housing Revenue Account,251,GOVERNMENT SERVICES-NOT ELSEWHERE CLASSIFIED,2023-24Q2_PC0492
Sandwell Metropolitan Borough Council,https://www.sandwell.gov.uk/performance-spending/government-procurement-cards,20-Jul-2023,Total Housing Revenue Account,HSE - BSR,Total Housing Revenue Account,251,GOVERNMENT SERVICES-NOT ELSEWHERE CLASSIFIED,2023-24Q2_PC0493
Sandwell Metropolitan Borough Council,https://www.sandwell.gov.uk/performance-spending/government-procurement-cards,20-Jul-2023,Total Housing Revenue Account,HSE - BSR,Total Housing Revenue Account,251,GOVERNMENT SERVICES-NOT ELSEWHERE CLASSIFIED,2023-24Q2_PC0494
Sandwell Metropolitan Borough Council,https://www.sandwell.gov.uk/performance-spending/government-procurement-cards,20-Jul-2023,Total Housing Revenue Account,HSE - BSR,Total Housing Revenue Account,251,GOVERNMENT SERVICES-NOT ELSEWHERE CLASSIFIED,2023-24Q2_PC0495
Sandwell Metropolitan Borough Council,https://www.sandwell.gov.uk/performance-spending/government-procurement-cards,20-Jul-2023,Total Housing Revenue Account,HSE - BSR,Total Housing Revenue Account,251,GOVERNMENT SERVICES-NOT ELSEWHERE CLASSIFIED,2023-24Q2_PC0496
Sandwell Metropolitan Borough Council,https://www.sandwell.gov.uk/performance-spending/government-procurement-cards,20-Jul-2023,Total Housing Revenue Account,HSE - BSR,Total Housing Revenue Account,251,GOVERNMENT SERVICES-NOT ELSEWHERE CLASSIFIED,2023-24Q2_PC0497
Sandwell Metropolitan Borough Council,https://www.sandwell.gov.uk/performance-spending/government-procurement-cards,20-Jul-2023,Total Housing Revenue Account,HSE - BSR,Total Housing Revenue Account,251,GOVERNMENT SERVICES-NOT ELSEWHERE CLASSIFIED,2023-24Q2_PC0498
Sandwell Metropolitan Borough Council,https://www.sandwell.gov.uk/performance-spending/government-procurement-cards,20-Jul-2023,Total Housing Revenue Account,HSE - BSR,Total Housing Revenue Account,251,GOVERNMENT SERVICES-NOT ELSEWHERE CLASSIFIED,2023-24Q2_PC0499
Sandwell Metropolitan Borough Council,https://www.sandwell.gov.uk/performance-spending/government-procurement-cards,20-Jul-2023,Total Housing Revenue Account,HSE - BSR,Total Housing Revenue Account,251,GOVERNMENT SERVICES-NOT ELSEWHERE CLASSIFIED,2023-24Q2_PC0500
Sandwell Metropolitan Borough Council,https://www.sandwell.gov.uk/performance-spending/government-procurement-cards,20-Jul-2023,Total Housing Revenue Account,HSE - BSR,Total Housing Revenue Account,251,GOVERNMENT SERVICES-NOT ELSEWHERE CLASSIFIED,2023-24Q2_PC0501
Sandwell Metropolitan Borough Council,https://www.sandwell.gov.uk/performance-spending/government-procurement-cards,20-Jul-2023,Total Housing Revenue Account,HSE - BSR,Total Housing Revenue Account,251,GOVERNMENT SERVICES-NOT ELSEWHERE CLASSIFIED,2023-24Q2_PC0502
Sandwell Metropolitan Borough Council,https://www.sandwell.gov.uk/performance-spending/government-procurement-cards,20-Jul-2023,Total Housing Revenue Account,HSE - BSR,Total Housing Revenue Account,251,GOVERNMENT SERVICES-NOT ELSEWHERE CLASSIFIED,2023-24Q2_PC0503
Sandwell Metropolitan Borough Council,https://www.sandwell.gov.uk/performance-spending/government-procurement-cards,20-Jul-2023,Total Housing Revenue Account,HSE - BSR,Total Housing Revenue Account,251,GOVERNMENT SERVICES-NOT ELSEWHERE CLASSIFIED,2023-24Q2_PC0504
Sandwell Metropolitan Borough Council,https://www.sandwell.gov.uk/performance-spending/government-procurement-cards,20-Jul-2023,Total Housing Revenue Account,HSE - BSR,Total Housing Revenue Account,251,GOVERNMENT SERVICES-NOT ELSEWHERE CLASSIFIED,2023-24Q2_PC0505
Sandwell Metropolitan Borough Council,https://www.sandwell.gov.uk/performance-spending/government-procurement-cards,20-Jul-2023,Total Housing Revenue Account,HSE - BSR,Total Housing Revenue Account,251,GOVERNMENT SERVICES-NOT ELSEWHERE CLASSIFIED,2023-24Q2_PC0506
Sandwell Metropolitan Borough Council,https://www.sandwell.gov.uk/performance-spending/government-procurement-cards,20-Jul-2023,Total Housing Revenue Account,HSE - BSR,Total Housing Revenue Account,251,GOVERNMENT SERVICES-NOT ELSEWHERE CLASSIFIED,2023-24Q2_PC0507
Sandwell Metropolitan Borough Council,https://www.sandwell.gov.uk/performance-spending/government-procurement-cards,20-Jul-2023,Total Housing Revenue Account,HSE - BSR,Total Housing Revenue Account,251,GOVERNMENT SERVICES-NOT ELSEWHERE CLASSIFIED,2023-24Q2_PC0508
Sandwell Metropolitan Borough Council,https://www.sandwell.gov.uk/performance-spending/government-procurement-cards,20-Jul-2023,Total Housing Revenue Account,HSE - BSR,Total Housing Revenue Account,251,GOVERNMENT SERVICES-NOT ELSEWHERE CLASSIFIED,2023-24Q2_PC0509
Sandwell Metropolitan Borough Council,https://www.sandwell.gov.uk/performance-spending/government-procurement-cards,20-Jul-2023,Total Housing Revenue Account,HSE - BSR,Total Housing Revenue Account,251,GOVERNMENT SERVICES-NOT ELSEWHERE CLASSIFIED,2023-24Q2_PC0510
Sandwell Metropolitan Borough Council,https://www.sandwell.gov.uk/performance-spending/government-procurement-cards,20-Jul-2023,Total Housing Revenue Account,HSE - BSR,Total Housing Revenue Account,251,GOVERNMENT SERVICES-NOT ELSEWHERE CLASSIFIED,2023-24Q2_PC0511
Sandwell Metropolitan Borough Council,https://www.sandwell.gov.uk/performance-spending/government-procurement-cards,20-Jul-2023,Total Housing Revenue Account,HSE - BSR,Total Housing Revenue Account,251,GOVERNMENT SERVICES-NOT ELSEWHERE CLASSIFIED,2023-24Q2_PC0512
Sandwell Metropolitan Borough Council,https://www.sandwell.gov.uk/performance-spending/government-procurement-cards,20-Jul-2023,Total Housing Revenue Account,HSE - BSR,Total Housing Revenue Account,251,GOVERNMENT SERVICES-NOT ELSEWHERE CLASSIFIED,2023-24Q2_PC0513
Sandwell Metropolitan Borough Council,https://www.sandwell.gov.uk/performance-spending/government-procurement-cards,20-Jul-2023,Total Housing Revenue Account,HSE - BSR,Total Housing Revenue Account,251,GOVERNMENT SERVICES-NOT ELSEWHERE CLASSIFIED,2023-24Q2_PC0514
Sandwell Metropolitan Borough Council,https://www.sandwell.gov.uk/performance-spending/government-procurement-cards,20-Jul-2023,Total Housing Revenue Account,HSE - BSR,Total Housing Revenue Account,251,GOVERNMENT SERVICES-NOT ELSEWHERE CLASSIFIED,2023-24Q2_PC0515
Sandwell Metropolitan Borough Council,https://www.sandwell.gov.uk/performance-spending/government-procurement-cards,20-Jul-2023,Total Housing Revenue Account,HSE - BSR,Total Housing Revenue Account,251,GOVERNMENT SERVICES-NOT ELSEWHERE CLASSIFIED,2023-24Q2_PC0516
Sandwell Metropolitan Borough Council,https://www.sandwell.gov.uk/performance-spending/government-procurement-cards,20-Jul-2023,Total Housing Revenue Account,HSE - BSR,Total Housing Revenue Account,251,GOVERNMENT SERVICES-NOT ELSEWHERE CLASSIFIED,2023-24Q2_PC0517
Sandwell Metropolitan Borough Council,https://www.sandwell.gov.uk/performance-spending/government-procurement-cards,20-Jul-2023,Total Housing Revenue Account,POST OFFICE COUNTER,Total Housing Revenue Account,2.6,POSTAL SERVICES-GOVERNMENT ONLY,2023-24Q2_PC0518
Sandwell Metropolitan Borough Council,https://www.sandwell.gov.uk/performance-spending/government-procurement-cards,21-Jul-2023,Law & Governance,ALDI 9 772,Assistant Chief Executive (Excl SIU),18.56,"GROCERY STORES, SUPERMARKETS",2023-24Q2_PC0519
Sandwell Metropolitan Borough Council,https://www.sandwell.gov.uk/performance-spending/government-procurement-cards,21-Jul-2023,Assistant Chief Executive,ASDA STORE 4376,Assistant Chief Executive (Excl SIU),16,"GROCERY STORES, SUPERMARKETS",2023-24Q2_PC0520
Sandwell Metropolitan Borough Council,https://www.sandwell.gov.uk/performance-spending/government-procurement-cards,21-Jul-2023,Childrens Services,AMZNMktplace,Childrens Services,104.95,MISCELLANEOUS AND SPECIALTY RETAIL STORES,2023-24Q2_PC0521
Sandwell Metropolitan Borough Council,https://www.sandwell.gov.uk/performance-spending/government-procurement-cards,21-Jul-2023,Childrens Services,AMZNMktplace,Childrens Services,18.64,MISCELLANEOUS AND SPECIALTY RETAIL STORES,2023-24Q2_PC0522
Sandwell Metropolitan Borough Council,https://www.sandwell.gov.uk/performance-spending/government-procurement-cards,21-Jul-2023,Childrens Services,ASDA GROCERIES ONLINE,Childrens Services,-4.4,"GROCERY STORES, SUPERMARKETS",2023-24Q2_PC0523
Sandwell Metropolitan Borough Council,https://www.sandwell.gov.uk/performance-spending/government-procurement-cards,21-Jul-2023,Childrens Services,ASDA GROCERIES ONLINE,Childrens Services,46.85,"GROCERY STORES, SUPERMARKETS",2023-24Q2_PC0524
Sandwell Metropolitan Borough Council,https://www.sandwell.gov.uk/performance-spending/government-procurement-cards,21-Jul-2023,Childrens Services,ASDA GROCERIES ONLINE,Childrens Services,32.76,"GROCERY STORES, SUPERMARKETS",2023-24Q2_PC0525
Sandwell Metropolitan Borough Council,https://www.sandwell.gov.uk/performance-spending/government-procurement-cards,21-Jul-2023,Childrens Services,ASDA GROCERIES ONLINE,Childrens Services,5.2,"GROCERY STORES, SUPERMARKETS",2023-24Q2_PC0526
Sandwell Metropolitan Borough Council,https://www.sandwell.gov.uk/performance-spending/government-procurement-cards,21-Jul-2023,Childrens Services,ASDA STORES LTD 5865,Childrens Services,20.84,"GROCERY STORES, SUPERMARKETS",2023-24Q2_PC0527
Sandwell Metropolitan Borough Council,https://www.sandwell.gov.uk/performance-spending/government-procurement-cards,21-Jul-2023,Childrens Services,Bassi Sweet Centre,Childrens Services,42.5,FAST FOOD RESTAURANTS,2023-24Q2_PC0528
Sandwell Metropolitan Borough Council,https://www.sandwell.gov.uk/performance-spending/government-procurement-cards,21-Jul-2023,Childrens Services,Domino's Dudley,Childrens Services,128.45,FAST FOOD RESTAURANTS,2023-24Q2_PC0529
Sandwell Metropolitan Borough Council,https://www.sandwell.gov.uk/performance-spending/government-procurement-cards,21-Jul-2023,Childrens Services,EB  OEAP NATIONAL PANE,Childrens Services,456,BUSINESS SERVICES-NOT ELSEWHERE CLASSIFIED,2023-24Q2_PC0530
Sandwell Metropolitan Borough Council,https://www.sandwell.gov.uk/performance-spending/government-procurement-cards,21-Jul-2023,Childrens Services,LIDL GB GREAT BRIDGE,Childrens Services,32.09,"GROCERY STORES, SUPERMARKETS",2023-24Q2_PC0531
Sandwell Metropolitan Borough Council,https://www.sandwell.gov.uk/performance-spending/government-procurement-cards,21-Jul-2023,Childrens Services,WWW.WMCA.ORG.UK,Childrens Services,10,"TRANSPRTN-SUBRBN & LOCAL COMTR PSNGR, INCL FERRIES",2023-24Q2_PC0532
Sandwell Metropolitan Borough Council,https://www.sandwell.gov.uk/performance-spending/government-procurement-cards,21-Jul-2023,Housing & Assets Total,STATION HOTEL,Corporate Management,1000,"LODGING-HOTELS,MOTELS,RESORTS-NOT CLASSIFIED",2023-24Q2_PC0533
Sandwell Metropolitan Borough Council,https://www.sandwell.gov.uk/performance-spending/government-procurement-cards,21-Jul-2023,Housing & Assets Total,STATION HOTEL,Corporate Management,575,"LODGING-HOTELS,MOTELS,RESORTS-NOT CLASSIFIED",2023-24Q2_PC0534
Sandwell Metropolitan Borough Council,https://www.sandwell.gov.uk/performance-spending/government-procurement-cards,21-Jul-2023,Housing & Assets Total,WWW.VICARAGELODGE.COM,Corporate Management,240,"LODGING-HOTELS,MOTELS,RESORTS-NOT CLASSIFIED",2023-24Q2_PC0535
Sandwell Metropolitan Borough Council,https://www.sandwell.gov.uk/performance-spending/government-procurement-cards,21-Jul-2023,Housing & Assets Total,WWW.VICARAGELODGE.COM,Corporate Management,80,"LODGING-HOTELS,MOTELS,RESORTS-NOT CLASSIFIED",2023-24Q2_PC0536
Sandwell Metropolitan Borough Council,https://www.sandwell.gov.uk/performance-spending/government-procurement-cards,21-Jul-2023,Total Public Health,DHAMAKA,Public Health,45.4,"EATING PLACES, RESTAURANTS",2023-24Q2_PC0537
Sandwell Metropolitan Borough Council,https://www.sandwell.gov.uk/performance-spending/government-procurement-cards,21-Jul-2023,Total Public Health,SAINSBURYS S/MKTS,Public Health,6.69,"GROCERY STORES, SUPERMARKETS",2023-24Q2_PC0538
Sandwell Metropolitan Borough Council,https://www.sandwell.gov.uk/performance-spending/government-procurement-cards,21-Jul-2023,Total Public Health,THE FISH & CHIP SHOP,Public Health,11.7,FAST FOOD RESTAURANTS,2023-24Q2_PC0539
Sandwell Metropolitan Borough Council,https://www.sandwell.gov.uk/performance-spending/government-procurement-cards,21-Jul-2023,Total Public Health,THE FISH & CHIP SHOP,Public Health,1.75,FAST FOOD RESTAURANTS,2023-24Q2_PC0540
Sandwell Metropolitan Borough Council,https://www.sandwell.gov.uk/performance-spending/government-procurement-cards,21-Jul-2023,Regeneration & Growth,NATWEST,Regeneration And The Economy,-27.5,CARD FEE,2023-24Q2_PC0541
Sandwell Metropolitan Borough Council,https://www.sandwell.gov.uk/performance-spending/government-procurement-cards,21-Jul-2023,Regeneration & Growth,Amazon.co.uk SB6G44M85,Regeneration And The Economy,19.98,DIRECT MARKETING-OTHER DIRECT MARKETERS/NOT ELSEW.,2023-24Q2_PC0542
Sandwell Metropolitan Borough Council,https://www.sandwell.gov.uk/performance-spending/government-procurement-cards,21-Jul-2023,Total ASCHWB,NATWEST,Total Adult Social Care,-27.5,CARD FEE,2023-24Q2_PC0543
Sandwell Metropolitan Borough Council,https://www.sandwell.gov.uk/performance-spending/government-procurement-cards,21-Jul-2023,Total ASCHWB,NATWEST,Total Adult Social Care,-27.5,CARD FEE,2023-24Q2_PC0544
Sandwell Metropolitan Borough Council,https://www.sandwell.gov.uk/performance-spending/government-procurement-cards,21-Jul-2023,Total ASCHWB,NATWEST,Total Adult Social Care,-27.5,CARD FEE,2023-24Q2_PC0545
Sandwell Metropolitan Borough Council,https://www.sandwell.gov.uk/performance-spending/government-procurement-cards,21-Jul-2023,Total Borough Economy,NATWEST,Total Adult Social Care,-27.5,CARD FEE,2023-24Q2_PC0546
Sandwell Metropolitan Borough Council,https://www.sandwell.gov.uk/performance-spending/government-procurement-cards,21-Jul-2023,Total Borough Economy,NATWEST,Total Adult Social Care,-27.5,CARD FEE,2023-24Q2_PC0547
Sandwell Metropolitan Borough Council,https://www.sandwell.gov.uk/performance-spending/government-procurement-cards,21-Jul-2023,Total Borough Economy,NATWEST,Total Adult Social Care,-27.5,CARD FEE,2023-24Q2_PC0548
Sandwell Metropolitan Borough Council,https://www.sandwell.gov.uk/performance-spending/government-procurement-cards,21-Jul-2023,Total Borough Economy,ALDI 6 772,Total Adult Social Care,26.85,"GROCERY STORES, SUPERMARKETS",2023-24Q2_PC0549
Sandwell Metropolitan Borough Council,https://www.sandwell.gov.uk/performance-spending/government-procurement-cards,21-Jul-2023,Total Borough Economy,ALDI 6 772,Total Adult Social Care,17.9,"GROCERY STORES, SUPERMARKETS",2023-24Q2_PC0550
Sandwell Metropolitan Borough Council,https://www.sandwell.gov.uk/performance-spending/government-procurement-cards,21-Jul-2023,Total Borough Economy,Amazon.co.uk 1M5RZ2KM5,Total Adult Social Care,22.31,DIRECT MARKETING-OTHER DIRECT MARKETERS/NOT ELSEW.,2023-24Q2_PC0551
Sandwell Metropolitan Borough Council,https://www.sandwell.gov.uk/performance-spending/government-procurement-cards,21-Jul-2023,Total ASCHWB,AMZNMktplace,Total Adult Social Care,5.01,MISCELLANEOUS AND SPECIALTY RETAIL STORES,2023-24Q2_PC0552
Sandwell Metropolitan Borough Council,https://www.sandwell.gov.uk/performance-spending/government-procurement-cards,21-Jul-2023,Total ASCHWB,AMZNMktplace,Total Adult Social Care,42.97,MISCELLANEOUS AND SPECIALTY RETAIL STORES,2023-24Q2_PC0553
Sandwell Metropolitan Borough Council,https://www.sandwell.gov.uk/performance-spending/government-procurement-cards,21-Jul-2023,Total ASCHWB,AMZNMktplace,Total Adult Social Care,5.95,MISCELLANEOUS AND SPECIALTY RETAIL STORES,2023-24Q2_PC0554
Sandwell Metropolitan Borough Council,https://www.sandwell.gov.uk/performance-spending/government-procurement-cards,21-Jul-2023,Total ASCHWB,AMZNMktplace,Total Adult Social Care,107.59,MISCELLANEOUS AND SPECIALTY RETAIL STORES,2023-24Q2_PC0555
Sandwell Metropolitan Borough Council,https://www.sandwell.gov.uk/performance-spending/government-procurement-cards,21-Jul-2023,Total ASCHWB,AMZNMktplace,Total Adult Social Care,19.95,MISCELLANEOUS AND SPECIALTY RETAIL STORES,2023-24Q2_PC0556
Sandwell Metropolitan Borough Council,https://www.sandwell.gov.uk/performance-spending/government-procurement-cards,21-Jul-2023,Total ASCHWB,AMZNMktplace,Total Adult Social Care,25.59,MISCELLANEOUS AND SPECIALTY RETAIL STORES,2023-24Q2_PC0557
Sandwell Metropolitan Borough Council,https://www.sandwell.gov.uk/performance-spending/government-procurement-cards,21-Jul-2023,Total Borough Economy,AMZNMktplace,Total Adult Social Care,34.18,MISCELLANEOUS AND SPECIALTY RETAIL STORES,2023-24Q2_PC0558
Sandwell Metropolitan Borough Council,https://www.sandwell.gov.uk/performance-spending/government-procurement-cards,21-Jul-2023,Total Borough Economy,AMZNMktplace,Total Adult Social Care,15.98,MISCELLANEOUS AND SPECIALTY RETAIL STORES,2023-24Q2_PC0559
Sandwell Metropolitan Borough Council,https://www.sandwell.gov.uk/performance-spending/government-procurement-cards,21-Jul-2023,Total ASCHWB,AMZNMKTPLACE AMAZON.CO,Total Adult Social Care,7.58,MISCELLANEOUS AND SPECIALTY RETAIL STORES,2023-24Q2_PC0560
Sandwell Metropolitan Borough Council,https://www.sandwell.gov.uk/performance-spending/government-procurement-cards,21-Jul-2023,Total ASCHWB,AMZNMKTPLACE AMAZON.CO,Total Adult Social Care,43.14,MISCELLANEOUS AND SPECIALTY RETAIL STORES,2023-24Q2_PC0561
Sandwell Metropolitan Borough Council,https://www.sandwell.gov.uk/performance-spending/government-procurement-cards,21-Jul-2023,Total ASCHWB,AMZNMKTPLACE AMAZON.CO,Total Adult Social Care,10.72,MISCELLANEOUS AND SPECIALTY RETAIL STORES,2023-24Q2_PC0562
Sandwell Metropolitan Borough Council,https://www.sandwell.gov.uk/performance-spending/government-procurement-cards,21-Jul-2023,Total Borough Economy,BOOKER LTD - 38593354,Total Adult Social Care,361.72,"GROCERY STORES, SUPERMARKETS",2023-24Q2_PC0563
Sandwell Metropolitan Borough Council,https://www.sandwell.gov.uk/performance-spending/government-procurement-cards,21-Jul-2023,Total Borough Economy,HOMEBASE LTD 085,Total Adult Social Care,7,HOME SUPPLY WAREHOUSE STORES,2023-24Q2_PC0564
Sandwell Metropolitan Borough Council,https://www.sandwell.gov.uk/performance-spending/government-procurement-cards,21-Jul-2023,Total Borough Economy,MARLBOROUGH PRINT,Total Adult Social Care,10,"OFFICE, SCHOOL SUPPLY, AND STATIONERY STORES",2023-24Q2_PC0565
Sandwell Metropolitan Borough Council,https://www.sandwell.gov.uk/performance-spending/government-procurement-cards,21-Jul-2023,FINANCE (Inc SIU),PAYPAL  AMPACSECURI,Total Adult Social Care,169.9,NONDURABLE GOODS (NOT ELSEWHERE CLASSIFIED),2023-24Q2_PC0566
Sandwell Metropolitan Borough Council,https://www.sandwell.gov.uk/performance-spending/government-procurement-cards,21-Jul-2023,Total Borough Economy,TOOLSTATION LTD,Total Adult Social Care,12.77,"BUILDING MATERIALS, LUMBER STORES",2023-24Q2_PC0567
Sandwell Metropolitan Borough Council,https://www.sandwell.gov.uk/performance-spending/government-procurement-cards,21-Jul-2023,Total ASCHWB,WWW.ARGOS.CO.UK,Total Adult Social Care,80,DEPARTMENT STORES,2023-24Q2_PC0568
Sandwell Metropolitan Borough Council,https://www.sandwell.gov.uk/performance-spending/government-procurement-cards,21-Jul-2023,Total Borough Economy,WWW.ARGOS.CO.UK,Total Adult Social Care,28,DEPARTMENT STORES,2023-24Q2_PC0569
Sandwell Metropolitan Borough Council,https://www.sandwell.gov.uk/performance-spending/government-procurement-cards,21-Jul-2023,Total Housing Revenue Account,NATWEST,Total Housing Revenue Account,-27.5,CARD FEE,2023-24Q2_PC0570
Sandwell Metropolitan Borough Council,https://www.sandwell.gov.uk/performance-spending/government-procurement-cards,21-Jul-2023,Total Housing Revenue Account,NATWEST,Total Housing Revenue Account,-27.5,CARD FEE,2023-24Q2_PC0571
Sandwell Metropolitan Borough Council,https://www.sandwell.gov.uk/performance-spending/government-procurement-cards,21-Jul-2023,Total Housing Revenue Account,HSE - BSR,Total Housing Revenue Account,251,GOVERNMENT SERVICES-NOT ELSEWHERE CLASSIFIED,2023-24Q2_PC0572
Sandwell Metropolitan Borough Council,https://www.sandwell.gov.uk/performance-spending/government-procurement-cards,21-Jul-2023,Total Housing Revenue Account,HSE - BSR,Total Housing Revenue Account,251,GOVERNMENT SERVICES-NOT ELSEWHERE CLASSIFIED,2023-24Q2_PC0573
Sandwell Metropolitan Borough Council,https://www.sandwell.gov.uk/performance-spending/government-procurement-cards,21-Jul-2023,Total Housing Revenue Account,HSE - BSR,Total Housing Revenue Account,251,GOVERNMENT SERVICES-NOT ELSEWHERE CLASSIFIED,2023-24Q2_PC0574
Sandwell Metropolitan Borough Council,https://www.sandwell.gov.uk/performance-spending/government-procurement-cards,21-Jul-2023,Total Housing Revenue Account,HSE - BSR,Total Housing Revenue Account,251,GOVERNMENT SERVICES-NOT ELSEWHERE CLASSIFIED,2023-24Q2_PC0575
Sandwell Metropolitan Borough Council,https://www.sandwell.gov.uk/performance-spending/government-procurement-cards,21-Jul-2023,Total Housing Revenue Account,HSE - BSR,Total Housing Revenue Account,251,GOVERNMENT SERVICES-NOT ELSEWHERE CLASSIFIED,2023-24Q2_PC0576
Sandwell Metropolitan Borough Council,https://www.sandwell.gov.uk/performance-spending/government-procurement-cards,21-Jul-2023,Total Housing Revenue Account,HSE - BSR,Total Housing Revenue Account,251,GOVERNMENT SERVICES-NOT ELSEWHERE CLASSIFIED,2023-24Q2_PC0577
Sandwell Metropolitan Borough Council,https://www.sandwell.gov.uk/performance-spending/government-procurement-cards,21-Jul-2023,Total Housing Revenue Account,HSE - BSR,Total Housing Revenue Account,251,GOVERNMENT SERVICES-NOT ELSEWHERE CLASSIFIED,2023-24Q2_PC0578
Sandwell Metropolitan Borough Council,https://www.sandwell.gov.uk/performance-spending/government-procurement-cards,21-Jul-2023,Total Housing Revenue Account,HSE - BSR,Total Housing Revenue Account,251,GOVERNMENT SERVICES-NOT ELSEWHERE CLASSIFIED,2023-24Q2_PC0579
Sandwell Metropolitan Borough Council,https://www.sandwell.gov.uk/performance-spending/government-procurement-cards,21-Jul-2023,Total Housing Revenue Account,HSE - BSR,Total Housing Revenue Account,251,GOVERNMENT SERVICES-NOT ELSEWHERE CLASSIFIED,2023-24Q2_PC0580
Sandwell Metropolitan Borough Council,https://www.sandwell.gov.uk/performance-spending/government-procurement-cards,21-Jul-2023,Total Housing Revenue Account,HSE - BSR,Total Housing Revenue Account,251,GOVERNMENT SERVICES-NOT ELSEWHERE CLASSIFIED,2023-24Q2_PC0581
Sandwell Metropolitan Borough Council,https://www.sandwell.gov.uk/performance-spending/government-procurement-cards,21-Jul-2023,Total Housing Revenue Account,HSE - BSR,Total Housing Revenue Account,251,GOVERNMENT SERVICES-NOT ELSEWHERE CLASSIFIED,2023-24Q2_PC0582
Sandwell Metropolitan Borough Council,https://www.sandwell.gov.uk/performance-spending/government-procurement-cards,21-Jul-2023,Total Housing Revenue Account,HSE - BSR,Total Housing Revenue Account,251,GOVERNMENT SERVICES-NOT ELSEWHERE CLASSIFIED,2023-24Q2_PC0583
Sandwell Metropolitan Borough Council,https://www.sandwell.gov.uk/performance-spending/government-procurement-cards,21-Jul-2023,Total Housing Revenue Account,HSE - BSR,Total Housing Revenue Account,251,GOVERNMENT SERVICES-NOT ELSEWHERE CLASSIFIED,2023-24Q2_PC0584
Sandwell Metropolitan Borough Council,https://www.sandwell.gov.uk/performance-spending/government-procurement-cards,21-Jul-2023,Total Housing Revenue Account,HSE - BSR,Total Housing Revenue Account,251,GOVERNMENT SERVICES-NOT ELSEWHERE CLASSIFIED,2023-24Q2_PC0585
Sandwell Metropolitan Borough Council,https://www.sandwell.gov.uk/performance-spending/government-procurement-cards,21-Jul-2023,Total Housing Revenue Account,HSE - BSR,Total Housing Revenue Account,251,GOVERNMENT SERVICES-NOT ELSEWHERE CLASSIFIED,2023-24Q2_PC0586
Sandwell Metropolitan Borough Council,https://www.sandwell.gov.uk/performance-spending/government-procurement-cards,24-Jul-2023,Assistant Chief Executive,AMZNMktplace,Assistant Chief Executive (Excl SIU),8.98,MISCELLANEOUS AND SPECIALTY RETAIL STORES,2023-24Q2_PC0587
Sandwell Metropolitan Borough Council,https://www.sandwell.gov.uk/performance-spending/government-procurement-cards,24-Jul-2023,Law & Governance,WWW.OFFICETEAMCONNECT.,Assistant Chief Executive (Excl SIU),409.52,STATIONERY/OFFICE SUPPLIES/PRINTING & WRITING PAP.,2023-24Q2_PC0588
Sandwell Metropolitan Borough Council,https://www.sandwell.gov.uk/performance-spending/government-procurement-cards,24-Jul-2023,Childrens Services,Aberconwy car & Van HI,Childrens Services,495,TRUCK RENTAL,2023-24Q2_PC0589
Sandwell Metropolitan Borough Council,https://www.sandwell.gov.uk/performance-spending/government-procurement-cards,24-Jul-2023,Childrens Services,Amazon.co.uk 567SK5H95,Childrens Services,18.99,DIRECT MARKETING-OTHER DIRECT MARKETERS/NOT ELSEW.,2023-24Q2_PC0590
Sandwell Metropolitan Borough Council,https://www.sandwell.gov.uk/performance-spending/government-procurement-cards,24-Jul-2023,Childrens Services,Amazon.co.uk RW3TM8EC5,Childrens Services,25.58,DIRECT MARKETING-OTHER DIRECT MARKETERS/NOT ELSEW.,2023-24Q2_PC0591
Sandwell Metropolitan Borough Council,https://www.sandwell.gov.uk/performance-spending/government-procurement-cards,24-Jul-2023,Childrens Services,AMZNMktplace,Childrens Services,38.86,MISCELLANEOUS AND SPECIALTY RETAIL STORES,2023-24Q2_PC0592
Sandwell Metropolitan Borough Council,https://www.sandwell.gov.uk/performance-spending/government-procurement-cards,24-Jul-2023,Childrens Services,AMZNMktplace,Childrens Services,133.99,MISCELLANEOUS AND SPECIALTY RETAIL STORES,2023-24Q2_PC0593
Sandwell Metropolitan Borough Council,https://www.sandwell.gov.uk/performance-spending/government-procurement-cards,24-Jul-2023,Childrens Services,ASDA STORES 4253,Childrens Services,15,"GROCERY STORES, SUPERMARKETS",2023-24Q2_PC0594
Sandwell Metropolitan Borough Council,https://www.sandwell.gov.uk/performance-spending/government-procurement-cards,24-Jul-2023,Childrens Services,ASDA STORES 4253,Childrens Services,1.4,"GROCERY STORES, SUPERMARKETS",2023-24Q2_PC0595
Sandwell Metropolitan Borough Council,https://www.sandwell.gov.uk/performance-spending/government-procurement-cards,24-Jul-2023,Childrens Services,ASDA STORES 4253,Childrens Services,54.75,"GROCERY STORES, SUPERMARKETS",2023-24Q2_PC0596
Sandwell Metropolitan Borough Council,https://www.sandwell.gov.uk/performance-spending/government-procurement-cards,24-Jul-2023,Childrens Services,ASDA STORES 4253,Childrens Services,52.5,"GROCERY STORES, SUPERMARKETS",2023-24Q2_PC0597
Sandwell Metropolitan Borough Council,https://www.sandwell.gov.uk/performance-spending/government-procurement-cards,24-Jul-2023,Childrens Services,BEEBYS BUBBLES,Childrens Services,135,"CLEANING, GARMENT, AND LAUNDRY SERVICES",2023-24Q2_PC0598
Sandwell Metropolitan Borough Council,https://www.sandwell.gov.uk/performance-spending/government-procurement-cards,24-Jul-2023,Childrens Services,TESCO PAY AT PUMP 3765,Childrens Services,37.95,"FUEL DISPENSER, AUTOMATED",2023-24Q2_PC0599
Sandwell Metropolitan Borough Council,https://www.sandwell.gov.uk/performance-spending/government-procurement-cards,24-Jul-2023,Childrens Services,WWW.SCREWFIX.COM,Childrens Services,20,"BUILDING MATERIALS, LUMBER STORES",2023-24Q2_PC0600
Sandwell Metropolitan Borough Council,https://www.sandwell.gov.uk/performance-spending/government-procurement-cards,24-Jul-2023,Housing & Assets Total,Amazon Prime YO5PR47X5,Corporate Management,8.99,DIRECT MARKETING-CONTINUITY/SUBSCRIPTION MERCHANTS,2023-24Q2_PC0601
Sandwell Metropolitan Borough Council,https://www.sandwell.gov.uk/performance-spending/government-procurement-cards,24-Jul-2023,Individual School Budgets With Inclusion,TENPIN.CO.UK,Individual School Budgets With Inclusion,249.9,BOWLING ALLEYS,2023-24Q2_PC0602
Sandwell Metropolitan Borough Council,https://www.sandwell.gov.uk/performance-spending/government-procurement-cards,24-Jul-2023,Individual School Budgets With Inclusion,WWW.SCREWFIX.COM,Individual School Budgets With Inclusion,93.96,"BUILDING MATERIALS, LUMBER STORES",2023-24Q2_PC0603
Sandwell Metropolitan Borough Council,https://www.sandwell.gov.uk/performance-spending/government-procurement-cards,24-Jul-2023,Total Public Health,Just Eat,Public Health,118.5,FAST FOOD RESTAURANTS,2023-24Q2_PC0604
Sandwell Metropolitan Borough Council,https://www.sandwell.gov.uk/performance-spending/government-procurement-cards,24-Jul-2023,Total Public Health,UBER    TRIP,Public Health,6.09,LIMOUSINES AND TAXICABS,2023-24Q2_PC0605
Sandwell Metropolitan Borough Council,https://www.sandwell.gov.uk/performance-spending/government-procurement-cards,24-Jul-2023,Total Public Health,UBER    TRIP,Public Health,5.24,LIMOUSINES AND TAXICABS,2023-24Q2_PC0606
Sandwell Metropolitan Borough Council,https://www.sandwell.gov.uk/performance-spending/government-procurement-cards,24-Jul-2023,Total Public Health,UBER    TRIP,Public Health,9.1,LIMOUSINES AND TAXICABS,2023-24Q2_PC0607
Sandwell Metropolitan Borough Council,https://www.sandwell.gov.uk/performance-spending/government-procurement-cards,24-Jul-2023,Regeneration & Growth,AMZNMktplace,Regeneration And The Economy,114.42,MISCELLANEOUS AND SPECIALTY RETAIL STORES,2023-24Q2_PC0608
Sandwell Metropolitan Borough Council,https://www.sandwell.gov.uk/performance-spending/government-procurement-cards,24-Jul-2023,Regeneration & Growth,TVLICENSING.CO.UK,Regeneration And The Economy,159,"CONSULTING, MANAGEMENT, AND PUBLIC RELATIONS SVCS",2023-24Q2_PC0609
Sandwell Metropolitan Borough Council,https://www.sandwell.gov.uk/performance-spending/government-procurement-cards,24-Jul-2023,Total ASCHWB,Amazon.co.uk CS8KE74M5,Total Adult Social Care,199.98,DIRECT MARKETING-OTHER DIRECT MARKETERS/NOT ELSEW.,2023-24Q2_PC0610
Sandwell Metropolitan Borough Council,https://www.sandwell.gov.uk/performance-spending/government-procurement-cards,24-Jul-2023,Total Borough Economy,AMZ nutpeat,Total Adult Social Care,-119.99,MISCELLANEOUS AND SPECIALTY RETAIL STORES,2023-24Q2_PC0611
Sandwell Metropolitan Borough Council,https://www.sandwell.gov.uk/performance-spending/government-procurement-cards,24-Jul-2023,Total ASCHWB,AMZNMKTPLACE AMAZON.CO,Total Adult Social Care,8.06,MISCELLANEOUS AND SPECIALTY RETAIL STORES,2023-24Q2_PC0612
Sandwell Metropolitan Borough Council,https://www.sandwell.gov.uk/performance-spending/government-procurement-cards,24-Jul-2023,Total ASCHWB,AMZNMKTPLACE AMAZON.CO,Total Adult Social Care,23.75,MISCELLANEOUS AND SPECIALTY RETAIL STORES,2023-24Q2_PC0613
Sandwell Metropolitan Borough Council,https://www.sandwell.gov.uk/performance-spending/government-procurement-cards,24-Jul-2023,Total ASCHWB,AMZNMKTPLACE AMAZON.CO,Total Adult Social Care,24.86,MISCELLANEOUS AND SPECIALTY RETAIL STORES,2023-24Q2_PC0614
Sandwell Metropolitan Borough Council,https://www.sandwell.gov.uk/performance-spending/government-procurement-cards,24-Jul-2023,Total ASCHWB,AMZNMKTPLACE AMAZON.CO,Total Adult Social Care,141.24,MISCELLANEOUS AND SPECIALTY RETAIL STORES,2023-24Q2_PC0615
Sandwell Metropolitan Borough Council,https://www.sandwell.gov.uk/performance-spending/government-procurement-cards,24-Jul-2023,Total Borough Economy,AMZNMKTPLACE AMAZON.CO,Total Adult Social Care,10.48,MISCELLANEOUS AND SPECIALTY RETAIL STORES,2023-24Q2_PC0616
Sandwell Metropolitan Borough Council,https://www.sandwell.gov.uk/performance-spending/government-procurement-cards,24-Jul-2023,Total Borough Economy,AMZNMKTPLACE AMAZON.CO,Total Adult Social Care,149.98,MISCELLANEOUS AND SPECIALTY RETAIL STORES,2023-24Q2_PC0617
Sandwell Metropolitan Borough Council,https://www.sandwell.gov.uk/performance-spending/government-procurement-cards,24-Jul-2023,Total Borough Economy,Canva  03853-18513736,Total Adult Social Care,10.99,"COMMERCIAL ART, GRAPHICS, PHOTOGRAPHY",2023-24Q2_PC0618
Sandwell Metropolitan Borough Council,https://www.sandwell.gov.uk/performance-spending/government-procurement-cards,24-Jul-2023,Total ASCHWB,First Rescue Train,Total Adult Social Care,195.6,MISCELLANEOUS GENERAL MERCHANDISE,2023-24Q2_PC0619
Sandwell Metropolitan Borough Council,https://www.sandwell.gov.uk/performance-spending/government-procurement-cards,24-Jul-2023,Total Borough Economy,IKEA LTD SHOP ONLINE,Total Adult Social Care,17,"EQUIP, FURNITURE, HOME FURNSHNGS STRS (EXCPT APPL)",2023-24Q2_PC0620
Sandwell Metropolitan Borough Council,https://www.sandwell.gov.uk/performance-spending/government-procurement-cards,24-Jul-2023,Total ASCHWB,Klarna poundshop.com,Total Adult Social Care,-2,MISCELLANEOUS AND SPECIALTY RETAIL STORES,2023-24Q2_PC0621
Sandwell Metropolitan Borough Council,https://www.sandwell.gov.uk/performance-spending/government-procurement-cards,24-Jul-2023,Total Borough Economy,PADDLE.NET SNAPWIDGET,Total Adult Social Care,5.41,DIGITAL GOODS SOFTWARE APPLICATIONS,2023-24Q2_PC0622
Sandwell Metropolitan Borough Council,https://www.sandwell.gov.uk/performance-spending/government-procurement-cards,24-Jul-2023,Total Borough Economy,SCREWFIX DIR LTD,Total Adult Social Care,44.56,"BUILDING MATERIALS, LUMBER STORES",2023-24Q2_PC0623
Sandwell Metropolitan Borough Council,https://www.sandwell.gov.uk/performance-spending/government-procurement-cards,24-Jul-2023,Total Housing Revenue Account,AMZNMktplace,Total Housing Revenue Account,18.99,MISCELLANEOUS AND SPECIALTY RETAIL STORES,2023-24Q2_PC0624
Sandwell Metropolitan Borough Council,https://www.sandwell.gov.uk/performance-spending/government-procurement-cards,25-Jul-2023,Law & Governance,WWW.OFFICETEAMCONNECT.,Assistant Chief Executive (Excl SIU),227.72,STATIONERY/OFFICE SUPPLIES/PRINTING & WRITING PAP.,2023-24Q2_PC0625
Sandwell Metropolitan Borough Council,https://www.sandwell.gov.uk/performance-spending/government-procurement-cards,25-Jul-2023,Childrens Services,AMZ Amazon.co.uk,Childrens Services,-52.99,DIRECT MARKETING-OTHER DIRECT MARKETERS/NOT ELSEW.,2023-24Q2_PC0626
Sandwell Metropolitan Borough Council,https://www.sandwell.gov.uk/performance-spending/government-procurement-cards,25-Jul-2023,Childrens Services,GOMPELS HEALTHCARE,Childrens Services,63.46,WHOLESALE CLUBS,2023-24Q2_PC0627
Sandwell Metropolitan Borough Council,https://www.sandwell.gov.uk/performance-spending/government-procurement-cards,25-Jul-2023,Childrens Services,LIDL GB PORTHMADOG,Childrens Services,50.88,"GROCERY STORES, SUPERMARKETS",2023-24Q2_PC0628
Sandwell Metropolitan Borough Council,https://www.sandwell.gov.uk/performance-spending/government-procurement-cards,25-Jul-2023,Childrens Services,POST OFFICE COUNTER,Childrens Services,7.65,POSTAL SERVICES-GOVERNMENT ONLY,2023-24Q2_PC0629
Sandwell Metropolitan Borough Council,https://www.sandwell.gov.uk/performance-spending/government-procurement-cards,25-Jul-2023,Childrens Services,POST OFFICE COUNTER,Childrens Services,26.4,POSTAL SERVICES-GOVERNMENT ONLY,2023-24Q2_PC0630
Sandwell Metropolitan Borough Council,https://www.sandwell.gov.uk/performance-spending/government-procurement-cards,25-Jul-2023,Corporate Management,AMZNMktplace,Corporate Management,50.92,MISCELLANEOUS AND SPECIALTY RETAIL STORES,2023-24Q2_PC0631
Sandwell Metropolitan Borough Council,https://www.sandwell.gov.uk/performance-spending/government-procurement-cards,25-Jul-2023,Housing & Assets Total,AMZNMKTPLACE AMAZON.CO,Corporate Management,457.37,MISCELLANEOUS AND SPECIALTY RETAIL STORES,2023-24Q2_PC0632
Sandwell Metropolitan Borough Council,https://www.sandwell.gov.uk/performance-spending/government-procurement-cards,25-Jul-2023,Corporate Management,FS  JotForm,Corporate Management,18.31,DIGITAL GOODS SOFTWARE APPLICATIONS,2023-24Q2_PC0633
Sandwell Metropolitan Borough Council,https://www.sandwell.gov.uk/performance-spending/government-procurement-cards,25-Jul-2023,Housing & Assets Total,IKEA LTD SHOP ONLINE,Corporate Management,483,"EQUIP, FURNITURE, HOME FURNSHNGS STRS (EXCPT APPL)",2023-24Q2_PC0634
Sandwell Metropolitan Borough Council,https://www.sandwell.gov.uk/performance-spending/government-procurement-cards,25-Jul-2023,Individual School Budgets With Inclusion,TESCO STORES 6197,Individual School Budgets With Inclusion,26.05,"GROCERY STORES, SUPERMARKETS",2023-24Q2_PC0635
Sandwell Metropolitan Borough Council,https://www.sandwell.gov.uk/performance-spending/government-procurement-cards,25-Jul-2023,Individual School Budgets With Inclusion,WWW.TAKEAWAY.JE,Individual School Budgets With Inclusion,58.5,DEPARTMENT STORES,2023-24Q2_PC0636
Sandwell Metropolitan Borough Council,https://www.sandwell.gov.uk/performance-spending/government-procurement-cards,25-Jul-2023,Total ASCHWB,AMZ Amazon.co.uk,Total Adult Social Care,-199.98,DIRECT MARKETING-OTHER DIRECT MARKETERS/NOT ELSEW.,2023-24Q2_PC0637
Sandwell Metropolitan Borough Council,https://www.sandwell.gov.uk/performance-spending/government-procurement-cards,25-Jul-2023,Total ASCHWB,AMZNMktplace,Total Adult Social Care,18.5,MISCELLANEOUS AND SPECIALTY RETAIL STORES,2023-24Q2_PC0638
Sandwell Metropolitan Borough Council,https://www.sandwell.gov.uk/performance-spending/government-procurement-cards,25-Jul-2023,Total Borough Economy,AMZNMktplace,Total Adult Social Care,54.73,MISCELLANEOUS AND SPECIALTY RETAIL STORES,2023-24Q2_PC0639
Sandwell Metropolitan Borough Council,https://www.sandwell.gov.uk/performance-spending/government-procurement-cards,25-Jul-2023,Total Borough Economy,AMZNMktplace,Total Adult Social Care,20.59,MISCELLANEOUS AND SPECIALTY RETAIL STORES,2023-24Q2_PC0640
Sandwell Metropolitan Borough Council,https://www.sandwell.gov.uk/performance-spending/government-procurement-cards,25-Jul-2023,Total Borough Economy,AMZNMktplace,Total Adult Social Care,15.91,MISCELLANEOUS AND SPECIALTY RETAIL STORES,2023-24Q2_PC0641
Sandwell Metropolitan Borough Council,https://www.sandwell.gov.uk/performance-spending/government-procurement-cards,25-Jul-2023,Total Borough Economy,AMZNMktplace,Total Adult Social Care,7.94,MISCELLANEOUS AND SPECIALTY RETAIL STORES,2023-24Q2_PC0642
Sandwell Metropolitan Borough Council,https://www.sandwell.gov.uk/performance-spending/government-procurement-cards,25-Jul-2023,Total Borough Economy,AMZNMktplace,Total Adult Social Care,20.58,MISCELLANEOUS AND SPECIALTY RETAIL STORES,2023-24Q2_PC0643
Sandwell Metropolitan Borough Council,https://www.sandwell.gov.uk/performance-spending/government-procurement-cards,25-Jul-2023,Total Borough Economy,AMZNMktplace,Total Adult Social Care,33.98,MISCELLANEOUS AND SPECIALTY RETAIL STORES,2023-24Q2_PC0644
Sandwell Metropolitan Borough Council,https://www.sandwell.gov.uk/performance-spending/government-procurement-cards,25-Jul-2023,Total Borough Economy,AMZNMktplace,Total Adult Social Care,37.96,MISCELLANEOUS AND SPECIALTY RETAIL STORES,2023-24Q2_PC0645
Sandwell Metropolitan Borough Council,https://www.sandwell.gov.uk/performance-spending/government-procurement-cards,25-Jul-2023,Total Borough Economy,AMZNMktplace,Total Adult Social Care,19.99,MISCELLANEOUS AND SPECIALTY RETAIL STORES,2023-24Q2_PC0646
Sandwell Metropolitan Borough Council,https://www.sandwell.gov.uk/performance-spending/government-procurement-cards,25-Jul-2023,Total Borough Economy,AMZNMktplace,Total Adult Social Care,62.97,MISCELLANEOUS AND SPECIALTY RETAIL STORES,2023-24Q2_PC0647
Sandwell Metropolitan Borough Council,https://www.sandwell.gov.uk/performance-spending/government-procurement-cards,25-Jul-2023,Total ASCHWB,AMZNMKTPLACE AMAZON.CO,Total Adult Social Care,26.35,MISCELLANEOUS AND SPECIALTY RETAIL STORES,2023-24Q2_PC0648
Sandwell Metropolitan Borough Council,https://www.sandwell.gov.uk/performance-spending/government-procurement-cards,25-Jul-2023,Total Borough Economy,GET LICENSED,Total Adult Social Care,239.99,"CONSULTING, MANAGEMENT, AND PUBLIC RELATIONS SVCS",2023-24Q2_PC0649
Sandwell Metropolitan Borough Council,https://www.sandwell.gov.uk/performance-spending/government-procurement-cards,25-Jul-2023,Total Borough Economy,SCREWFIX DIR LTD,Total Adult Social Care,82.96,"BUILDING MATERIALS, LUMBER STORES",2023-24Q2_PC0650
Sandwell Metropolitan Borough Council,https://www.sandwell.gov.uk/performance-spending/government-procurement-cards,25-Jul-2023,Total Borough Economy,VIKING OFFICE UK LIMIT,Total Adult Social Care,289.72,STATIONERY/OFFICE SUPPLIES/PRINTING & WRITING PAP.,2023-24Q2_PC0651
Sandwell Metropolitan Borough Council,https://www.sandwell.gov.uk/performance-spending/government-procurement-cards,25-Jul-2023,Total Borough Economy,VIKING OFFICE UK LIMIT,Total Adult Social Care,57.46,STATIONERY/OFFICE SUPPLIES/PRINTING & WRITING PAP.,2023-24Q2_PC0652
Sandwell Metropolitan Borough Council,https://www.sandwell.gov.uk/performance-spending/government-procurement-cards,25-Jul-2023,Total Borough Economy,VIKING OFFICE UK LIMIT,Total Adult Social Care,124.8,STATIONERY/OFFICE SUPPLIES/PRINTING & WRITING PAP.,2023-24Q2_PC0653
Sandwell Metropolitan Borough Council,https://www.sandwell.gov.uk/performance-spending/government-procurement-cards,25-Jul-2023,Total Borough Economy,Wm Morrisons Store Pic,Total Adult Social Care,71.62,"GROCERY STORES, SUPERMARKETS",2023-24Q2_PC0654
Sandwell Metropolitan Borough Council,https://www.sandwell.gov.uk/performance-spending/government-procurement-cards,25-Jul-2023,Total Housing Revenue Account,AMZNMktplace,Total Housing Revenue Account,32.97,MISCELLANEOUS AND SPECIALTY RETAIL STORES,2023-24Q2_PC0655
Sandwell Metropolitan Borough Council,https://www.sandwell.gov.uk/performance-spending/government-procurement-cards,25-Jul-2023,Total Housing Revenue Account,TILE CHOICE LTD,Total Housing Revenue Account,37.5,"BUILDING MATERIALS, LUMBER STORES",2023-24Q2_PC0656
Sandwell Metropolitan Borough Council,https://www.sandwell.gov.uk/performance-spending/government-procurement-cards,26-Jul-2023,Law & Governance,AMZNMKTPLACE AMAZON.CO,Assistant Chief Executive (Excl SIU),96.5,MISCELLANEOUS AND SPECIALTY RETAIL STORES,2023-24Q2_PC0657
Sandwell Metropolitan Borough Council,https://www.sandwell.gov.uk/performance-spending/government-procurement-cards,26-Jul-2023,Assistant Chief Executive,POSTURITE LTD,Assistant Chief Executive (Excl SIU),110.63,MISCELLANEOUS HOUSE FURNISHING SPECIALTY SHOPS,2023-24Q2_PC0658
Sandwell Metropolitan Borough Council,https://www.sandwell.gov.uk/performance-spending/government-procurement-cards,26-Jul-2023,FINANCE (Inc SIU),REMARKABLE,Assistant Chief Executive (Excl SIU),2.99,ELECTRONIC SALES,2023-24Q2_PC0659
Sandwell Metropolitan Borough Council,https://www.sandwell.gov.uk/performance-spending/government-procurement-cards,26-Jul-2023,Law & Governance,WWW.OFFICETEAMCONNECT.,Assistant Chief Executive (Excl SIU),109.78,STATIONERY/OFFICE SUPPLIES/PRINTING & WRITING PAP.,2023-24Q2_PC0660
Sandwell Metropolitan Borough Council,https://www.sandwell.gov.uk/performance-spending/government-procurement-cards,26-Jul-2023,Childrens Services,ADOBE SYSTEMS SOFTWARE,Childrens Services,19.97,COMPUTER SOFTWARE STORES,2023-24Q2_PC0661
Sandwell Metropolitan Borough Council,https://www.sandwell.gov.uk/performance-spending/government-procurement-cards,26-Jul-2023,Childrens Services,Amazon.co.uk 7H3TS1SP5,Childrens Services,27.93,DIRECT MARKETING-OTHER DIRECT MARKETERS/NOT ELSEW.,2023-24Q2_PC0662
Sandwell Metropolitan Borough Council,https://www.sandwell.gov.uk/performance-spending/government-procurement-cards,26-Jul-2023,Childrens Services,AMZNMktplace,Childrens Services,16,MISCELLANEOUS AND SPECIALTY RETAIL STORES,2023-24Q2_PC0663
Sandwell Metropolitan Borough Council,https://www.sandwell.gov.uk/performance-spending/government-procurement-cards,26-Jul-2023,Childrens Services,AMZNMktplace,Childrens Services,19.95,MISCELLANEOUS AND SPECIALTY RETAIL STORES,2023-24Q2_PC0664
Sandwell Metropolitan Borough Council,https://www.sandwell.gov.uk/performance-spending/government-procurement-cards,26-Jul-2023,Childrens Services,AMZNMktplace,Childrens Services,6.29,MISCELLANEOUS AND SPECIALTY RETAIL STORES,2023-24Q2_PC0665
Sandwell Metropolitan Borough Council,https://www.sandwell.gov.uk/performance-spending/government-procurement-cards,26-Jul-2023,Childrens Services,BAKER ROSS,Childrens Services,78.9,"ARTIST SUPPLY STORES, CRAFT SHOPS",2023-24Q2_PC0666
Sandwell Metropolitan Borough Council,https://www.sandwell.gov.uk/performance-spending/government-procurement-cards,26-Jul-2023,Childrens Services,LIDL GB PORTHMADOG,Childrens Services,29.6,"GROCERY STORES, SUPERMARKETS",2023-24Q2_PC0667
Sandwell Metropolitan Borough Council,https://www.sandwell.gov.uk/performance-spending/government-procurement-cards,26-Jul-2023,Childrens Services,POUNDLAND LTD - 1792,Childrens Services,102,DISCOUNT STORES,2023-24Q2_PC0668
Sandwell Metropolitan Borough Council,https://www.sandwell.gov.uk/performance-spending/government-procurement-cards,26-Jul-2023,Childrens Services,TESCO STORES 3057,Childrens Services,6.4,"GROCERY STORES, SUPERMARKETS",2023-24Q2_PC0669
Sandwell Metropolitan Borough Council,https://www.sandwell.gov.uk/performance-spending/government-procurement-cards,26-Jul-2023,Corporate Management,WWW.EMAP.COM,Corporate Management,353.68,MISCELLANEOUS PUBLISHING AND PRINTING,2023-24Q2_PC0670
Sandwell Metropolitan Borough Council,https://www.sandwell.gov.uk/performance-spending/government-procurement-cards,26-Jul-2023,Individual School Budgets With Inclusion,Drayton Manor,Individual School Budgets With Inclusion,322,RECREATION SERVICES (NOT ELSEWHERE CLASSIFIED),2023-24Q2_PC0671
Sandwell Metropolitan Borough Council,https://www.sandwell.gov.uk/performance-spending/government-procurement-cards,26-Jul-2023,Individual School Budgets With Inclusion,EB  2ND REHABILITATION,Individual School Budgets With Inclusion,225,BUSINESS SERVICES-NOT ELSEWHERE CLASSIFIED,2023-24Q2_PC0672
Sandwell Metropolitan Borough Council,https://www.sandwell.gov.uk/performance-spending/government-procurement-cards,26-Jul-2023,Individual School Budgets With Inclusion,EB  2ND REHABILITATION,Individual School Budgets With Inclusion,225,BUSINESS SERVICES-NOT ELSEWHERE CLASSIFIED,2023-24Q2_PC0673
Sandwell Metropolitan Borough Council,https://www.sandwell.gov.uk/performance-spending/government-procurement-cards,26-Jul-2023,Total Public Health,AMZNMKTPLACE AMAZON.CO,Public Health,4.89,MISCELLANEOUS AND SPECIALTY RETAIL STORES,2023-24Q2_PC0674
Sandwell Metropolitan Borough Council,https://www.sandwell.gov.uk/performance-spending/government-procurement-cards,26-Jul-2023,Regeneration & Growth,ASAP STAMPS LTD,Regeneration And The Economy,64.68,BUSINESS SERVICES-NOT ELSEWHERE CLASSIFIED,2023-24Q2_PC0675
Sandwell Metropolitan Borough Council,https://www.sandwell.gov.uk/performance-spending/government-procurement-cards,26-Jul-2023,Regeneration & Growth,PLANNING PORTAL CONF,Regeneration And The Economy,811.2,COMPUTER SOFTWARE STORES,2023-24Q2_PC0676
Sandwell Metropolitan Borough Council,https://www.sandwell.gov.uk/performance-spending/government-procurement-cards,26-Jul-2023,Total Borough Economy,Amazon.co.uk 7N0VO55X5,Total Adult Social Care,25.5,DIRECT MARKETING-OTHER DIRECT MARKETERS/NOT ELSEW.,2023-24Q2_PC0677
Sandwell Metropolitan Borough Council,https://www.sandwell.gov.uk/performance-spending/government-procurement-cards,26-Jul-2023,Total ASCHWB,AMZNMktplace,Total Adult Social Care,24.99,MISCELLANEOUS AND SPECIALTY RETAIL STORES,2023-24Q2_PC0678
Sandwell Metropolitan Borough Council,https://www.sandwell.gov.uk/performance-spending/government-procurement-cards,26-Jul-2023,Total ASCHWB,AMZNMktplace,Total Adult Social Care,5.88,MISCELLANEOUS AND SPECIALTY RETAIL STORES,2023-24Q2_PC0679
Sandwell Metropolitan Borough Council,https://www.sandwell.gov.uk/performance-spending/government-procurement-cards,26-Jul-2023,Total ASCHWB,AMZNMktplace,Total Adult Social Care,15.69,MISCELLANEOUS AND SPECIALTY RETAIL STORES,2023-24Q2_PC0680
Sandwell Metropolitan Borough Council,https://www.sandwell.gov.uk/performance-spending/government-procurement-cards,26-Jul-2023,Total ASCHWB,AMZNMktplace,Total Adult Social Care,26.23,MISCELLANEOUS AND SPECIALTY RETAIL STORES,2023-24Q2_PC0681
Sandwell Metropolitan Borough Council,https://www.sandwell.gov.uk/performance-spending/government-procurement-cards,26-Jul-2023,Total Borough Economy,AMZNMktplace,Total Adult Social Care,17.85,MISCELLANEOUS AND SPECIALTY RETAIL STORES,2023-24Q2_PC0682
Sandwell Metropolitan Borough Council,https://www.sandwell.gov.uk/performance-spending/government-procurement-cards,26-Jul-2023,Total Borough Economy,AMZNMktplace,Total Adult Social Care,22.5,MISCELLANEOUS AND SPECIALTY RETAIL STORES,2023-24Q2_PC0683
Sandwell Metropolitan Borough Council,https://www.sandwell.gov.uk/performance-spending/government-procurement-cards,26-Jul-2023,Total ASCHWB,AMZNMKTPLACE AMAZON.CO,Total Adult Social Care,11.99,MISCELLANEOUS AND SPECIALTY RETAIL STORES,2023-24Q2_PC0684
Sandwell Metropolitan Borough Council,https://www.sandwell.gov.uk/performance-spending/government-procurement-cards,26-Jul-2023,Total Borough Economy,AMZNMKTPLACE AMAZON.CO,Total Adult Social Care,15.56,MISCELLANEOUS AND SPECIALTY RETAIL STORES,2023-24Q2_PC0685
Sandwell Metropolitan Borough Council,https://www.sandwell.gov.uk/performance-spending/government-procurement-cards,26-Jul-2023,Total Borough Economy,EXPO  LARAC UK,Total Adult Social Care,258,BUSINESS SERVICES-NOT ELSEWHERE CLASSIFIED,2023-24Q2_PC0686
Sandwell Metropolitan Borough Council,https://www.sandwell.gov.uk/performance-spending/government-procurement-cards,26-Jul-2023,Total ASCHWB,FIXXON,Total Adult Social Care,122.8,NURSING AND PERSONAL CARE FACILITIES,2023-24Q2_PC0687
Sandwell Metropolitan Borough Council,https://www.sandwell.gov.uk/performance-spending/government-procurement-cards,26-Jul-2023,Total Borough Economy,Wm Morrisons Store Pic,Total Adult Social Care,156.17,"GROCERY STORES, SUPERMARKETS",2023-24Q2_PC0688
Sandwell Metropolitan Borough Council,https://www.sandwell.gov.uk/performance-spending/government-procurement-cards,26-Jul-2023,Housing & Assets Total,WWW.SHAWS.CO.UK,Total Adult Social Care,118.8,MISCELLANEOUS PUBLISHING AND PRINTING,2023-24Q2_PC0689
Sandwell Metropolitan Borough Council,https://www.sandwell.gov.uk/performance-spending/government-procurement-cards,27-Jul-2023,Childrens Services,AMZNMktplace,Childrens Services,34.78,MISCELLANEOUS AND SPECIALTY RETAIL STORES,2023-24Q2_PC0690
Sandwell Metropolitan Borough Council,https://www.sandwell.gov.uk/performance-spending/government-procurement-cards,27-Jul-2023,Childrens Services,B&M 200 - MARKET DRAYT,Childrens Services,30.96,MISCELLANEOUS GENERAL MERCHANDISE,2023-24Q2_PC0691
Sandwell Metropolitan Borough Council,https://www.sandwell.gov.uk/performance-spending/government-procurement-cards,27-Jul-2023,Childrens Services,BRIDEBOOK,Childrens Services,153.6,COMPUTER SOFTWARE STORES,2023-24Q2_PC0692
Sandwell Metropolitan Borough Council,https://www.sandwell.gov.uk/performance-spending/government-procurement-cards,27-Jul-2023,Childrens Services,TG HARDWICKS,Childrens Services,413.4,"BUILDING MATERIALS, LUMBER STORES",2023-24Q2_PC0693
Sandwell Metropolitan Borough Council,https://www.sandwell.gov.uk/performance-spending/government-procurement-cards,27-Jul-2023,Individual School Budgets With Inclusion,WWW.ARGOS.CO.UK,Individual School Budgets With Inclusion,84.98,DEPARTMENT STORES,2023-24Q2_PC0694
Sandwell Metropolitan Borough Council,https://www.sandwell.gov.uk/performance-spending/government-procurement-cards,27-Jul-2023,Regeneration & Growth,PARAGON SERVICE POINT,Regeneration And The Economy,216,MISCELLANEOUS PUBLISHING AND PRINTING,2023-24Q2_PC0695
Sandwell Metropolitan Borough Council,https://www.sandwell.gov.uk/performance-spending/government-procurement-cards,27-Jul-2023,Total Borough Economy,Amazon.co.uk R124J8OR5,Total Adult Social Care,20.99,DIRECT MARKETING-OTHER DIRECT MARKETERS/NOT ELSEW.,2023-24Q2_PC0696
Sandwell Metropolitan Borough Council,https://www.sandwell.gov.uk/performance-spending/government-procurement-cards,27-Jul-2023,Total ASCHWB,Amazon.co.uk SZ0JY5VN5,Total Adult Social Care,315.91,DIRECT MARKETING-OTHER DIRECT MARKETERS/NOT ELSEW.,2023-24Q2_PC0697
Sandwell Metropolitan Borough Council,https://www.sandwell.gov.uk/performance-spending/government-procurement-cards,27-Jul-2023,Total Borough Economy,AMZNMktplace,Total Adult Social Care,6.29,MISCELLANEOUS AND SPECIALTY RETAIL STORES,2023-24Q2_PC0698
Sandwell Metropolitan Borough Council,https://www.sandwell.gov.uk/performance-spending/government-procurement-cards,27-Jul-2023,Total ASCHWB,AMZNMKTPLACE AMAZON.CO,Total Adult Social Care,-23.75,MISCELLANEOUS AND SPECIALTY RETAIL STORES,2023-24Q2_PC0699
Sandwell Metropolitan Borough Council,https://www.sandwell.gov.uk/performance-spending/government-procurement-cards,27-Jul-2023,Total ASCHWB,AMZNMKTPLACE AMAZON.CO,Total Adult Social Care,96.24,MISCELLANEOUS AND SPECIALTY RETAIL STORES,2023-24Q2_PC0700
Sandwell Metropolitan Borough Council,https://www.sandwell.gov.uk/performance-spending/government-procurement-cards,27-Jul-2023,Total Borough Economy,ASDA GROCERIES ONLINE,Total Adult Social Care,57.62,"GROCERY STORES, SUPERMARKETS",2023-24Q2_PC0701
Sandwell Metropolitan Borough Council,https://www.sandwell.gov.uk/performance-spending/government-procurement-cards,27-Jul-2023,Total Borough Economy,TESCO STORES 2335,Total Adult Social Care,19.15,"GROCERY STORES, SUPERMARKETS",2023-24Q2_PC0702
Sandwell Metropolitan Borough Council,https://www.sandwell.gov.uk/performance-spending/government-procurement-cards,27-Jul-2023,Total Borough Economy,Wm Morrisons Store Pic,Total Adult Social Care,91.39,"GROCERY STORES, SUPERMARKETS",2023-24Q2_PC0703
Sandwell Metropolitan Borough Council,https://www.sandwell.gov.uk/performance-spending/government-procurement-cards,27-Jul-2023,Total Housing Revenue Account,AMZ ZALALAS 1996,Total Housing Revenue Account,-27.07,MISCELLANEOUS AND SPECIALTY RETAIL STORES,2023-24Q2_PC0704
Sandwell Metropolitan Borough Council,https://www.sandwell.gov.uk/performance-spending/government-procurement-cards,28-Jul-2023,Law & Governance,ALDI 42 772,Assistant Chief Executive (Excl SIU),12.8,"GROCERY STORES, SUPERMARKETS",2023-24Q2_PC0705
Sandwell Metropolitan Borough Council,https://www.sandwell.gov.uk/performance-spending/government-procurement-cards,28-Jul-2023,Law & Governance,CURRYS BUSINESS,Assistant Chief Executive (Excl SIU),373.62,COMPUTER SOFTWARE STORES,2023-24Q2_PC0706
Sandwell Metropolitan Borough Council,https://www.sandwell.gov.uk/performance-spending/government-procurement-cards,28-Jul-2023,Law & Governance,PAYPAL  PRETTYDARNC,Assistant Chief Executive (Excl SIU),48,PROFESSIONAL SERVICES-NOT ELSEWHERE CLASSIFIED,2023-24Q2_PC0707
Sandwell Metropolitan Borough Council,https://www.sandwell.gov.uk/performance-spending/government-procurement-cards,28-Jul-2023,Childrens Services,ALDI 8 778,Childrens Services,39.9,"GROCERY STORES, SUPERMARKETS",2023-24Q2_PC0708
Sandwell Metropolitan Borough Council,https://www.sandwell.gov.uk/performance-spending/government-procurement-cards,28-Jul-2023,Childrens Services,ALDI 8 778,Childrens Services,3.38,"GROCERY STORES, SUPERMARKETS",2023-24Q2_PC0709
Sandwell Metropolitan Borough Council,https://www.sandwell.gov.uk/performance-spending/government-procurement-cards,28-Jul-2023,Childrens Services,Amazon.co.uk IN1WA17I5,Childrens Services,79.9,DIRECT MARKETING-OTHER DIRECT MARKETERS/NOT ELSEW.,2023-24Q2_PC0710
Sandwell Metropolitan Borough Council,https://www.sandwell.gov.uk/performance-spending/government-procurement-cards,28-Jul-2023,Childrens Services,AMZNMktplace,Childrens Services,33.98,MISCELLANEOUS AND SPECIALTY RETAIL STORES,2023-24Q2_PC0711
Sandwell Metropolitan Borough Council,https://www.sandwell.gov.uk/performance-spending/government-procurement-cards,28-Jul-2023,Childrens Services,AMZNMktplace,Childrens Services,54.9,MISCELLANEOUS AND SPECIALTY RETAIL STORES,2023-24Q2_PC0712
Sandwell Metropolitan Borough Council,https://www.sandwell.gov.uk/performance-spending/government-procurement-cards,28-Jul-2023,Childrens Services,AMZNMktplace,Childrens Services,40.94,MISCELLANEOUS AND SPECIALTY RETAIL STORES,2023-24Q2_PC0713
Sandwell Metropolitan Borough Council,https://www.sandwell.gov.uk/performance-spending/government-procurement-cards,28-Jul-2023,Childrens Services,AMZNMktplace,Childrens Services,26.73,MISCELLANEOUS AND SPECIALTY RETAIL STORES,2023-24Q2_PC0714
Sandwell Metropolitan Borough Council,https://www.sandwell.gov.uk/performance-spending/government-procurement-cards,28-Jul-2023,Childrens Services,AMZNMktplace,Childrens Services,50,MISCELLANEOUS AND SPECIALTY RETAIL STORES,2023-24Q2_PC0715
Sandwell Metropolitan Borough Council,https://www.sandwell.gov.uk/performance-spending/government-procurement-cards,28-Jul-2023,Childrens Services,AMZNMKTPLACE AMAZON.CO,Childrens Services,24.95,MISCELLANEOUS AND SPECIALTY RETAIL STORES,2023-24Q2_PC0716
Sandwell Metropolitan Borough Council,https://www.sandwell.gov.uk/performance-spending/government-procurement-cards,28-Jul-2023,Childrens Services,CATER-KWIK LTD,Childrens Services,94.73,"COMMERCIAL EQUIPMENT, NOT ELSEWHERE CLASSIFIED",2023-24Q2_PC0717
Sandwell Metropolitan Borough Council,https://www.sandwell.gov.uk/performance-spending/government-procurement-cards,28-Jul-2023,Childrens Services,CONCEPT FILTER PRODUCT,Childrens Services,52.85,INDUSTRIAL SUPPLIES NOT ELSEWHERE CLASSIFIED,2023-24Q2_PC0718
Sandwell Metropolitan Borough Council,https://www.sandwell.gov.uk/performance-spending/government-procurement-cards,28-Jul-2023,Childrens Services,ONLINE POUND STORE,Childrens Services,-2,"GROCERY STORES, SUPERMARKETS",2023-24Q2_PC0719
Sandwell Metropolitan Borough Council,https://www.sandwell.gov.uk/performance-spending/government-procurement-cards,28-Jul-2023,Childrens Services,ONLINE POUND STORE,Childrens Services,41.95,"GROCERY STORES, SUPERMARKETS",2023-24Q2_PC0720
Sandwell Metropolitan Borough Council,https://www.sandwell.gov.uk/performance-spending/government-procurement-cards,28-Jul-2023,Childrens Services,SNOWDONIA WATERSPO,Childrens Services,27.2,"CLUBS-CNTRY,MBRSHIP(ATHLET,REC,SPRTS,PRIVATE GOLF",2023-24Q2_PC0721
Sandwell Metropolitan Borough Council,https://www.sandwell.gov.uk/performance-spending/government-procurement-cards,28-Jul-2023,Childrens Services,THE HOME FUSION CO,Childrens Services,23.84,"GAME, TOY, AND HOBBY SHOPS",2023-24Q2_PC0722
Sandwell Metropolitan Borough Council,https://www.sandwell.gov.uk/performance-spending/government-procurement-cards,28-Jul-2023,Childrens Services,WWW.THEWORKS.CO.UK,Childrens Services,74,DISCOUNT STORES,2023-24Q2_PC0723
Sandwell Metropolitan Borough Council,https://www.sandwell.gov.uk/performance-spending/government-procurement-cards,28-Jul-2023,Childrens Services,WWW.THEWORKS.CO.UK,Childrens Services,30,DISCOUNT STORES,2023-24Q2_PC0724
Sandwell Metropolitan Borough Council,https://www.sandwell.gov.uk/performance-spending/government-procurement-cards,28-Jul-2023,Individual School Budgets With Inclusion,CRAVEN DUNNILL JACKF L,Individual School Budgets With Inclusion,259,"BUILDING MATERIALS, LUMBER STORES",2023-24Q2_PC0725
Sandwell Metropolitan Borough Council,https://www.sandwell.gov.uk/performance-spending/government-procurement-cards,28-Jul-2023,Assistant Chief Executive,AMZNMktplace,Neighbourhoods,27.37,MISCELLANEOUS AND SPECIALTY RETAIL STORES,2023-24Q2_PC0726
Sandwell Metropolitan Borough Council,https://www.sandwell.gov.uk/performance-spending/government-procurement-cards,28-Jul-2023,Assistant Chief Executive,Helloprint United King,Neighbourhoods,68.38,"QUICK COPY,REPRODUCTION AND BLUEPRINTING SERVICES",2023-24Q2_PC0727
Sandwell Metropolitan Borough Council,https://www.sandwell.gov.uk/performance-spending/government-procurement-cards,28-Jul-2023,Regeneration & Growth,AMZNMktplace,Regeneration And The Economy,96.83,MISCELLANEOUS AND SPECIALTY RETAIL STORES,2023-24Q2_PC0728
Sandwell Metropolitan Borough Council,https://www.sandwell.gov.uk/performance-spending/government-procurement-cards,28-Jul-2023,Total Borough Economy,Amazon.co.uk AY00Q21P5,Total Adult Social Care,5.96,DIRECT MARKETING-OTHER DIRECT MARKETERS/NOT ELSEW.,2023-24Q2_PC0729
Sandwell Metropolitan Borough Council,https://www.sandwell.gov.uk/performance-spending/government-procurement-cards,28-Jul-2023,Total Borough Economy,AMZNMktplace,Total Adult Social Care,66.97,MISCELLANEOUS AND SPECIALTY RETAIL STORES,2023-24Q2_PC0730
Sandwell Metropolitan Borough Council,https://www.sandwell.gov.uk/performance-spending/government-procurement-cards,28-Jul-2023,Total Borough Economy,AMZNMktplace,Total Adult Social Care,374.97,MISCELLANEOUS AND SPECIALTY RETAIL STORES,2023-24Q2_PC0731
Sandwell Metropolitan Borough Council,https://www.sandwell.gov.uk/performance-spending/government-procurement-cards,28-Jul-2023,Total Borough Economy,AMZNMktplace,Total Adult Social Care,199,MISCELLANEOUS AND SPECIALTY RETAIL STORES,2023-24Q2_PC0732
Sandwell Metropolitan Borough Council,https://www.sandwell.gov.uk/performance-spending/government-procurement-cards,28-Jul-2023,Total Borough Economy,AMZNMktplace,Total Adult Social Care,44.98,MISCELLANEOUS AND SPECIALTY RETAIL STORES,2023-24Q2_PC0733
Sandwell Metropolitan Borough Council,https://www.sandwell.gov.uk/performance-spending/government-procurement-cards,28-Jul-2023,Total ASCHWB,AMZNMKTPLACE AMAZON.CO,Total Adult Social Care,31.68,MISCELLANEOUS AND SPECIALTY RETAIL STORES,2023-24Q2_PC0734
Sandwell Metropolitan Borough Council,https://www.sandwell.gov.uk/performance-spending/government-procurement-cards,28-Jul-2023,Total ASCHWB,POUNDLAND LTD - 1729,Total Adult Social Care,32.75,DISCOUNT STORES,2023-24Q2_PC0735
Sandwell Metropolitan Borough Council,https://www.sandwell.gov.uk/performance-spending/government-procurement-cards,28-Jul-2023,Total Borough Economy,RS RECOVERY LTD,Total Adult Social Care,218,AUTOMOTIVE SERVICE SHOPS,2023-24Q2_PC0736
Sandwell Metropolitan Borough Council,https://www.sandwell.gov.uk/performance-spending/government-procurement-cards,28-Jul-2023,Total Borough Economy,SP BULLDOG TOYS,Total Adult Social Care,7.93,"GAME, TOY, AND HOBBY SHOPS",2023-24Q2_PC0737
Sandwell Metropolitan Borough Council,https://www.sandwell.gov.uk/performance-spending/government-procurement-cards,28-Jul-2023,Total Borough Economy,TIMPSON LTD,Total Adult Social Care,73.5,MISCELLANEOUS AND SPECIALTY RETAIL STORES,2023-24Q2_PC0738
Sandwell Metropolitan Borough Council,https://www.sandwell.gov.uk/performance-spending/government-procurement-cards,28-Jul-2023,Total Borough Economy,VIKING OFFICE UK LIMIT,Total Adult Social Care,149.94,STATIONERY/OFFICE SUPPLIES/PRINTING & WRITING PAP.,2023-24Q2_PC0739
Sandwell Metropolitan Borough Council,https://www.sandwell.gov.uk/performance-spending/government-procurement-cards,28-Jul-2023,Total Borough Economy,Wm Morrisons Store Pic,Total Adult Social Care,48.38,"GROCERY STORES, SUPERMARKETS",2023-24Q2_PC0740
Sandwell Metropolitan Borough Council,https://www.sandwell.gov.uk/performance-spending/government-procurement-cards,28-Jul-2023,Total Housing Revenue Account,AMZNMktplace,Total Housing Revenue Account,29.99,MISCELLANEOUS AND SPECIALTY RETAIL STORES,2023-24Q2_PC0741
Sandwell Metropolitan Borough Council,https://www.sandwell.gov.uk/performance-spending/government-procurement-cards,28-Jul-2023,Total Housing Revenue Account,AMZNMKTPLACE AMAZON.CO,Total Housing Revenue Account,44.99,MISCELLANEOUS AND SPECIALTY RETAIL STORES,2023-24Q2_PC0742
Sandwell Metropolitan Borough Council,https://www.sandwell.gov.uk/performance-spending/government-procurement-cards,28-Jul-2023,Total Housing Revenue Account,SANDWELL M B C LIGHTWO,Total Housing Revenue Account,75,GOVERNMENT SERVICES-NOT ELSEWHERE CLASSIFIED,2023-24Q2_PC0743
Sandwell Metropolitan Borough Council,https://www.sandwell.gov.uk/performance-spending/government-procurement-cards,31-Jul-2023,Law & Governance,AMZNMktplace,Assistant Chief Executive (Excl SIU),134.78,MISCELLANEOUS AND SPECIALTY RETAIL STORES,2023-24Q2_PC0744
Sandwell Metropolitan Borough Council,https://www.sandwell.gov.uk/performance-spending/government-procurement-cards,31-Jul-2023,Law & Governance,PAYPAL  PRETTYDARNC,Assistant Chief Executive (Excl SIU),96,PROFESSIONAL SERVICES-NOT ELSEWHERE CLASSIFIED,2023-24Q2_PC0745
Sandwell Metropolitan Borough Council,https://www.sandwell.gov.uk/performance-spending/government-procurement-cards,31-Jul-2023,FINANCE (Inc SIU),SHUTTERSTOCK IRELAND L,Assistant Chief Executive (Excl SIU),274.8,"COMMERCIAL ART, GRAPHICS, PHOTOGRAPHY",2023-24Q2_PC0746
Sandwell Metropolitan Borough Council,https://www.sandwell.gov.uk/performance-spending/government-procurement-cards,31-Jul-2023,Childrens Services,AMZ Gelanty,Childrens Services,-48.4,MISCELLANEOUS AND SPECIALTY RETAIL STORES,2023-24Q2_PC0747
Sandwell Metropolitan Borough Council,https://www.sandwell.gov.uk/performance-spending/government-procurement-cards,31-Jul-2023,Childrens Services,AMZ Uaugulft-EU,Childrens Services,-26.63,MISCELLANEOUS AND SPECIALTY RETAIL STORES,2023-24Q2_PC0748
Sandwell Metropolitan Borough Council,https://www.sandwell.gov.uk/performance-spending/government-procurement-cards,31-Jul-2023,Childrens Services,AMZNMktplace,Childrens Services,8.3,MISCELLANEOUS AND SPECIALTY RETAIL STORES,2023-24Q2_PC0749
Sandwell Metropolitan Borough Council,https://www.sandwell.gov.uk/performance-spending/government-procurement-cards,31-Jul-2023,Childrens Services,AMZNMKTPLACE AMAZON.CO,Childrens Services,75.39,MISCELLANEOUS AND SPECIALTY RETAIL STORES,2023-24Q2_PC0750
Sandwell Metropolitan Borough Council,https://www.sandwell.gov.uk/performance-spending/government-procurement-cards,31-Jul-2023,Childrens Services,ASDA GROCERIES ONLINE,Childrens Services,-0.02,"GROCERY STORES, SUPERMARKETS",2023-24Q2_PC0751
Sandwell Metropolitan Borough Council,https://www.sandwell.gov.uk/performance-spending/government-procurement-cards,31-Jul-2023,Childrens Services,ASDA GROCERIES ONLINE,Childrens Services,83.1,"GROCERY STORES, SUPERMARKETS",2023-24Q2_PC0752
Sandwell Metropolitan Borough Council,https://www.sandwell.gov.uk/performance-spending/government-procurement-cards,31-Jul-2023,Childrens Services,ASDA GROCERIES ONLINE,Childrens Services,19.25,"GROCERY STORES, SUPERMARKETS",2023-24Q2_PC0753
Sandwell Metropolitan Borough Council,https://www.sandwell.gov.uk/performance-spending/government-procurement-cards,31-Jul-2023,Childrens Services,ASDA STORE LTD,Childrens Services,10,TELECOM INCL PREPAID/RECURRING PHONE SVCS,2023-24Q2_PC0754
Sandwell Metropolitan Borough Council,https://www.sandwell.gov.uk/performance-spending/government-procurement-cards,31-Jul-2023,Childrens Services,BEEBYS BUBBLES,Childrens Services,105,"CLEANING, GARMENT, AND LAUNDRY SERVICES",2023-24Q2_PC0755
Sandwell Metropolitan Borough Council,https://www.sandwell.gov.uk/performance-spending/government-procurement-cards,31-Jul-2023,Childrens Services,DENBIGHSHIRE COUNTY CO,Childrens Services,25,GOVERNMENT SERVICES-NOT ELSEWHERE CLASSIFIED,2023-24Q2_PC0756
Sandwell Metropolitan Borough Council,https://www.sandwell.gov.uk/performance-spending/government-procurement-cards,31-Jul-2023,Childrens Services,ELECTROMARKET,Childrens Services,148,ELECTRONIC SALES,2023-24Q2_PC0757
Sandwell Metropolitan Borough Council,https://www.sandwell.gov.uk/performance-spending/government-procurement-cards,31-Jul-2023,Childrens Services,HOZAH PARKING,Childrens Services,4,AUTOMOBILE PARKING LOTS AND GARAGES,2023-24Q2_PC0758
Sandwell Metropolitan Borough Council,https://www.sandwell.gov.uk/performance-spending/government-procurement-cards,31-Jul-2023,Childrens Services,Hozah_Parking,Childrens Services,4,AUTOMOBILE PARKING LOTS AND GARAGES,2023-24Q2_PC0759
Sandwell Metropolitan Borough Council,https://www.sandwell.gov.uk/performance-spending/government-procurement-cards,31-Jul-2023,Childrens Services,LIDL GB PORTHMADOG,Childrens Services,33.21,"GROCERY STORES, SUPERMARKETS",2023-24Q2_PC0760
Sandwell Metropolitan Borough Council,https://www.sandwell.gov.uk/performance-spending/government-procurement-cards,31-Jul-2023,Childrens Services,LIDL GB PORTHMADOG,Childrens Services,32.73,"GROCERY STORES, SUPERMARKETS",2023-24Q2_PC0761
Sandwell Metropolitan Borough Council,https://www.sandwell.gov.uk/performance-spending/government-procurement-cards,31-Jul-2023,Childrens Services,TESCO PAY AT PUMP 3765,Childrens Services,43.54,"FUEL DISPENSER, AUTOMATED",2023-24Q2_PC0762
Sandwell Metropolitan Borough Council,https://www.sandwell.gov.uk/performance-spending/government-procurement-cards,31-Jul-2023,Childrens Services,WWW.THEBMC.CO.UK,Childrens Services,43.9,"ORGANIZATIONS, MEMBERSHIP-NOT ELSEWHERE CLASSIFIED",2023-24Q2_PC0763
Sandwell Metropolitan Borough Council,https://www.sandwell.gov.uk/performance-spending/government-procurement-cards,31-Jul-2023,Individual School Budgets With Inclusion,AMZNMktplace,Individual School Budgets With Inclusion,205.44,MISCELLANEOUS AND SPECIALTY RETAIL STORES,2023-24Q2_PC0764
Sandwell Metropolitan Borough Council,https://www.sandwell.gov.uk/performance-spending/government-procurement-cards,31-Jul-2023,Individual School Budgets With Inclusion,AMZNMktplace,Individual School Budgets With Inclusion,65.46,MISCELLANEOUS AND SPECIALTY RETAIL STORES,2023-24Q2_PC0765
Sandwell Metropolitan Borough Council,https://www.sandwell.gov.uk/performance-spending/government-procurement-cards,31-Jul-2023,Individual School Budgets With Inclusion,BLISTS HILL VICTORIAN,Individual School Budgets With Inclusion,2,AUTOMOBILE PARKING LOTS AND GARAGES,2023-24Q2_PC0766
Sandwell Metropolitan Borough Council,https://www.sandwell.gov.uk/performance-spending/government-procurement-cards,31-Jul-2023,Individual School Budgets With Inclusion,BLISTS HILL VICTORIAN,Individual School Budgets With Inclusion,2,AUTOMOBILE PARKING LOTS AND GARAGES,2023-24Q2_PC0767
Sandwell Metropolitan Borough Council,https://www.sandwell.gov.uk/performance-spending/government-procurement-cards,31-Jul-2023,Individual School Budgets With Inclusion,BLISTS HILL VICTORIAN,Individual School Budgets With Inclusion,2,AUTOMOBILE PARKING LOTS AND GARAGES,2023-24Q2_PC0768
Sandwell Metropolitan Borough Council,https://www.sandwell.gov.uk/performance-spending/government-procurement-cards,31-Jul-2023,Individual School Budgets With Inclusion,HOZAH PARKING,Individual School Budgets With Inclusion,4,AUTOMOBILE PARKING LOTS AND GARAGES,2023-24Q2_PC0769
Sandwell Metropolitan Borough Council,https://www.sandwell.gov.uk/performance-spending/government-procurement-cards,31-Jul-2023,Individual School Budgets With Inclusion,HOZAH PARKING,Individual School Budgets With Inclusion,4,AUTOMOBILE PARKING LOTS AND GARAGES,2023-24Q2_PC0770
Sandwell Metropolitan Borough Council,https://www.sandwell.gov.uk/performance-spending/government-procurement-cards,31-Jul-2023,Regeneration & Growth,WWW.LABC.UK.COM,Regeneration And The Economy,630,BUSINESS SERVICES-NOT ELSEWHERE CLASSIFIED,2023-24Q2_PC0771
Sandwell Metropolitan Borough Council,https://www.sandwell.gov.uk/performance-spending/government-procurement-cards,31-Jul-2023,Total Borough Economy,Amazon.co.uk XR9WX1EE5,Total Adult Social Care,28.66,DIRECT MARKETING-OTHER DIRECT MARKETERS/NOT ELSEW.,2023-24Q2_PC0772
Sandwell Metropolitan Borough Council,https://www.sandwell.gov.uk/performance-spending/government-procurement-cards,31-Jul-2023,Total Borough Economy,AMZ Amazon.co.uk,Total Adult Social Care,-1.66,MISCELLANEOUS AND SPECIALTY RETAIL STORES,2023-24Q2_PC0773
Sandwell Metropolitan Borough Council,https://www.sandwell.gov.uk/performance-spending/government-procurement-cards,31-Jul-2023,Total Borough Economy,AMZ Amazon.co.uk,Total Adult Social Care,-0.56,MISCELLANEOUS AND SPECIALTY RETAIL STORES,2023-24Q2_PC0774
Sandwell Metropolitan Borough Council,https://www.sandwell.gov.uk/performance-spending/government-procurement-cards,31-Jul-2023,Total Borough Economy,AMZ Everything but the,Total Adult Social Care,-2.22,MISCELLANEOUS AND SPECIALTY RETAIL STORES,2023-24Q2_PC0775
Sandwell Metropolitan Borough Council,https://www.sandwell.gov.uk/performance-spending/government-procurement-cards,31-Jul-2023,Total Borough Economy,AMZ Staks & Co,Total Adult Social Care,-19.98,MISCELLANEOUS AND SPECIALTY RETAIL STORES,2023-24Q2_PC0776
Sandwell Metropolitan Borough Council,https://www.sandwell.gov.uk/performance-spending/government-procurement-cards,31-Jul-2023,Total Borough Economy,AMZNMktplace,Total Adult Social Care,17.99,MISCELLANEOUS AND SPECIALTY RETAIL STORES,2023-24Q2_PC0777
Sandwell Metropolitan Borough Council,https://www.sandwell.gov.uk/performance-spending/government-procurement-cards,31-Jul-2023,Total Borough Economy,AMZNMktplace,Total Adult Social Care,13.09,MISCELLANEOUS AND SPECIALTY RETAIL STORES,2023-24Q2_PC0778
Sandwell Metropolitan Borough Council,https://www.sandwell.gov.uk/performance-spending/government-procurement-cards,31-Jul-2023,Total Borough Economy,AMZNMktplace,Total Adult Social Care,193.18,MISCELLANEOUS AND SPECIALTY RETAIL STORES,2023-24Q2_PC0779
Sandwell Metropolitan Borough Council,https://www.sandwell.gov.uk/performance-spending/government-procurement-cards,31-Jul-2023,Total Borough Economy,AMZNMktplace,Total Adult Social Care,56.36,MISCELLANEOUS AND SPECIALTY RETAIL STORES,2023-24Q2_PC0780
Sandwell Metropolitan Borough Council,https://www.sandwell.gov.uk/performance-spending/government-procurement-cards,31-Jul-2023,Total Borough Economy,AMZNMKTPLACE AMAZON.CO,Total Adult Social Care,19.98,MISCELLANEOUS AND SPECIALTY RETAIL STORES,2023-24Q2_PC0781
Sandwell Metropolitan Borough Council,https://www.sandwell.gov.uk/performance-spending/government-procurement-cards,31-Jul-2023,Total Borough Economy,AMZNMKTPLACE AMAZON.CO,Total Adult Social Care,9,MISCELLANEOUS AND SPECIALTY RETAIL STORES,2023-24Q2_PC0782
Sandwell Metropolitan Borough Council,https://www.sandwell.gov.uk/performance-spending/government-procurement-cards,31-Jul-2023,Total Borough Economy,FACEBK  FY7K7QFCA2,Total Adult Social Care,3,ADVERTISING SERVICES,2023-24Q2_PC0783
Sandwell Metropolitan Borough Council,https://www.sandwell.gov.uk/performance-spending/government-procurement-cards,31-Jul-2023,Total Borough Economy,PAYPAL  BAKER ROSS,Total Adult Social Care,76.39,"GAME, TOY, AND HOBBY SHOPS",2023-24Q2_PC0784
Sandwell Metropolitan Borough Council,https://www.sandwell.gov.uk/performance-spending/government-procurement-cards,31-Jul-2023,Total Borough Economy,Wm Morrisons Store Pic,Total Adult Social Care,102.92,"GROCERY STORES, SUPERMARKETS",2023-24Q2_PC0785
